Workbook

Sheet _TM_Uvod (hidden)
A1: Left | B1: Top | C1: Right | D1: Bottom | E1: Ref
A2: 1 | B2: 12 | C2: 2 | D2: 12 | E2: $A$12:$B$12

Sheet (Naslovna)
A1: v_2.11/2020
B2: Prilog 9.2.2 | I2: Godišnji financijski plan poslovanja
B3: Ministarstvo prostornoga uređenja, graditeljstva i državne imovine
B8: Godišnji financijski plan poslovanja
C12: ="za "&LEFT(Podloga!B8,4)&". godinu" -> za 2021. godinu
C16: =HYPERLINK("#Uvod!A1","Uvod") -> Uvod
C18: =HYPERLINK("#Podloga!$A$1","Podloga za izradu plana") -> Podloga za izradu plana
C20: =HYPERLINK("#'Tijela društva'!A1","Tijela društva") -> Tijela društva
C22: =HYPERLINK("#'Vl. struktura'!A1","Vlasnička struktura") -> Vlasnička struktura
C24: =HYPERLINK("#Bilanca!A1","Izvještaj o financijskom položaju ") -> Izvještaj o financijskom položaju
C26: =HYPERLINK("#RDG!A1","Račun dobiti i gubitka ") -> Račun dobiti i gubitka
C28: =HYPERLINK("#'NT dir.'!A1","Izvještaj o novčanom toku (direktna metoda)") -> Izvještaj o novčanom toku (direktna metoda)
C30: =HYPERLINK("#'NT indir.'!A1","Izvještaj o novčanom toku (indirektna metoda)") -> Izvještaj o novčanom toku (indirektna metoda)
C32: =HYPERLINK("#MFIN!A1","Podaci za Ministarstvo financija") -> Podaci za Ministarstvo financija
C34: =HYPERLINK("#'Sektorski pokazatelji'!A1","Ključni sektorski pokazatelji ") -> Ključni sektorski pokazatelji

Sheet Naslovna (hidden)
B1: 6
B2: Prilog 9.2.2 | I2: Godišnji financijski plan poslovanja
B3: Ministarstvo državne imovine
B8: Godišnji financijski plan poslovanja
C12: ="za "&LEFT(Podloga!B8,4)&". godinu" -> za 2021. godinu
C16: =HYPERLINK("#Uvod!A1","Uvod") -> Uvod
C18: =HYPERLINK("#Sadržaj!A1","Sadržaj") -> Sadržaj
C20: =HYPERLINK("#Podloga!$A$1","Podloga za izradu plana") -> Podloga za izradu plana
C22: =HYPERLINK("#Bilanca!A1","Izvještaj o financijskom položaju ") -> Izvještaj o financijskom položaju
C24: =HYPERLINK("#RDG!A1","Račun dobiti i gubitka ") -> Račun dobiti i gubitka
C26: =HYPERLINK("#'NT dir.'!A1","Izvještaj o novčanom toku (direktna metoda)") -> Izvještaj o novčanom toku (direktna metoda)
C28: =HYPERLINK("#'NT indir.'!A1","Izvještaj o novčanom toku (indirektna metoda)") -> Izvještaj o novčanom toku (indirektna metoda)
C30: =HYPERLINK("#MFIN!A1","Podaci za Ministarstvo financija") -> Podaci za Ministarstvo financija
C32: =HYPERLINK("#Dashboard!A1","Dashboard") -> Dashboard
C34: =HYPERLINK("#DuPont!A1","DuPont analiza") -> DuPont analiza
C36: =HYPERLINK("#'Altman Integral (Basic)'!A1","Altman Integral (Basic)") -> Altman Integral (Basic)
C38: =HYPERLINK("#'Altman Integral (A)'!A1","Altman Integral (A model)") -> Altman Integral (A model)
C40: =HYPERLINK("#'Altman Integral (B)'!A1","Altman Integral (B model)") -> Altman Integral (B model)
C42: =HYPERLINK("#'Zračne luke'!A1","Ključni sektorski pokazatelji ") -> Ključni sektorski pokazatelji

Sheet Uvod
A1: Prilog: Podloga za izradu godišnjeg financijskog plana poslovanja
A3: Sukladno važećim zakonskim i podzakonskim propisima sve pravne osobe na koje se odnosi Uputa za izradu i dostavu planova i izvještaja o poslovanju, dužne su dostavljati planove poslovanja Primateljima planova i izvještaja kako je definirano Uputom.
A5: Kao što je propisano u Uputi za izradu i dostavu planova i izvještaja o poslovanju, ovaj dokument sadrži propisanu formu većine potrebnih sastavnica plana poslovanja.
A7: Sve pravne osobe na koje se odnosi Uputa za izradu i dostavu planova i izvještaja o poslovanju obvezne su popuniti: Zelene Listove u Excel podlozi: Prvi List “Podloga” → Subjekti izvještavanja trebaju unijeti osnovne informacije o društvu, na primjer: ime društva, adresa, članovi Uprave, temeljni kapital, planirane investicije (kratki opis). Također, Subjekti izvještavanja trebaju odabrati metodu pripreme Izvještaja o novčanom toku (direktna ili indirektna), popuniti informacije o broju izdanih dionica, njihovoj vrijednosti te o prosječnom broju zaposlenika u promatranom razdoblju. Podloge za planske financijske izvještaje (Listovi: “Bilanca”, “RDG”, “NT dir.” ili “NT indir.") → Subjekti izvještavanja trebaju unijeti stvarne podatke. Napomena: Podloge za planske izvještaje pripremljene su u skladu s standardnim formatima za financijsko izvještavanje u Republici Hrvatskoj (kako je utvrđeno Zakonom). Specijalni List za Ministarstvo financija → Subjekti izvještavanja trebaju unijeti specifične podatke koji su traženi od strane Ministarstva financija poput: iznosa državnih subvencija, investicija, iznosa isplaćenih dividendi itd. Specifične sektorske pokazatelje (narančasti Listovi) → navedeni Listovi uključuju operativne, financijske, tržišne i razvojne pokazatelje. Subjekti izvještavanja trebaju popuniti pokazatelje za industriju u kojoj posluju.
A12: Objašnjenje boja Listova:
B14: Listovi s osnovnim informacijama i uputama
B15: Listovi s financijskim izvještajima (potrebno unijeti podatke)
B16: Listovi s osnovnim pokazateljima o poslovanju (pokazatelji su dostupni nakon što su ispunjeni Listovi s podacima iz financijskih izvještaja)
B17: Listovi s specifičnim sektorskim pokazateljima

Sheet Sadržaj (hidden)
A1: Sadržaj
A2: Podloga za izradu plana | B2: =HYPERLINK("#Podloga!A1","Podloga za izradu plana") -> Podloga za izradu plana
A3: Izvještaj o financijskom položaju | B3: =HYPERLINK("#Bilanca!A1","Bilanca") -> Bilanca
A4: Račun dobiti i gubitka | B4: =HYPERLINK("#RDG!A1","RDG") -> RDG
A5: Izvještaj o novčanom toku (direktna metoda) | B5: =HYPERLINK("#'NT dir.'!A1","NT dir.") -> NT dir.
A6: Izvještaj o novčanom toku (indirektna metoda) | B6: =HYPERLINK("#'NT indir.'!A1","NT indir.") -> NT indir.
A7: Podaci za Ministarstvo financija | B7: =HYPERLINK("#MFIN!A1","MFIN") -> MFIN
A8: Dashboard | B8: =HYPERLINK("#Dashboard!A1","Dashboard") -> Dashboard
A9: DuPont | B9: =HYPERLINK("#DuPont!A1","DuPont") -> DuPont
A10: Altman Integral
A11: • Za proizvodna trgovačka društva koja kotiraju na burzi (Basic model) | B11: =HYPERLINK("#'Altman Integral (Basic)'!A1","Altman - Basic") -> Altman - Basic
A12: • Za trgovačka društva koja ne kotiraju na burzi (A model) | B12: =HYPERLINK("#'Altman Integral (A)'!A1","Altman - A") -> Altman - A
A13: • Za neproizvodna trgovačka društva koja kotiraju na burzi (B model) | B13: =HYPERLINK("#'Altman Integral (B)'!A1","Altman - B") -> Altman - B
A14: Sektorski ključni pokazatelji poslovanja

Sheet _TM_Podloga (hidden)
A1: Left | B1: Top | C1: Right | D1: Bottom | E1: Ref
A2: 1 | B2: 19 | C2: 9 | D2: 22 | E2: $A$19:$I$22
A3: 1 | B3: 1 | C3: 9 | D3: 10 | E3: $A$1:$I$10
A4: 1 | B4: 11 | C4: 9 | D4: 17 | E4: $A$11:$I$17

Sheet _TM_Bilanca (hidden)
A1: Left | B1: Top | C1: Right | D1: Bottom | E1: Ref
A2: 3 | B2: 105 | C2: 5 | D2: 105 | E2: $C$105:$E$105

Sheet Podloga
A1: Informacije o trgovačkom društvu
A2: Naziv društva: | B2: LUKA-VUKOVAR d.o.o.
A3: Adresa društva: | B3: Dunavski prilaz 8, Vukovar
A4: Temeljni kapital (HRK): | B4: 35716200
A5: Plan je konsolidiran: | B5: NE
A6: Plan je odobren / od nadležnog tijela / datum: | B6: DA | C6: Nadzorni odbor | D6: 2020-12-04 | E6: =IF(B6="DA", "< Upisati datum", "") -> < Upisati datum
A7: Primjena računovodstvenih standarda: | B7: HSFI
A8: Sastavlja se za godinu: | B8: 2021
A9: Veličina subjekta: | B9: Srednji
A10: Osnovna djelatnost društva: | B10: Prekrcaj tereta
A11: Pravni oblik: | B11: d.o.o.
A12: OIB: | B12: 53535248695
A13: Da li je društvo u procesu restrukturiranja: | B13: NE | C13: =IF(B13="DA","Potrebno postupiti prema točki 6.3.1. Upute","") -> 
A14: Primjena Kodeksa korporativnog upravljanja trgovačkim društvima | B14: NE
A15: Compliance officer (funkcija usklađenosti) | B15: DA
A16: Temeljni akt (datum zadnje promjene): | B16: 2016-06-13
A17: Datum zadnje održane skupštine: | B17: 2020-06-29 | C17: =IF((B17>0),"Molimo dostaviti zapisnike.","") -> Molimo dostaviti zapisnike.
A18: Opis strateških i financijskih ciljeva / planiranog poslovanja:
A19: Korištena metoda kod Izvještaja o novčanom toku: | B19: Direktna
A20: Datum ispunjavanja plana: | B20: 2020-11-30
A21: Razrada godišnjeg plana poslovanja trgovačkog društva
A22: Planirane investicije za razdoblje: | B22: 1100000 | C22: kupovina dotrajale opreme
A23: Izvor sredstava za investicije (iznos - izvor): | B23: vlastiti
A24: Sudski sporovi sa značajnim utjecajem na poslovni rezultat:
A25: Planirana bespovratna sredstva iz EU (naziv projekta / izvor-fond / iznos u kn):
A26: Planirana državna jamstva: | B26: 0 | D26: =IF(B26>0, "Molimo opisati u opisnom dijelu.","") -> 
A27: Planirane subvencije (iznos / opis): | B27: 0 | D27: 0
A28: Planirane donacije (iznos / opis):
A30: Tržišni pokazatelji dionica*
B31: =LEFT(B8,4)-2&". ostvareno" -> 2019. ostvareno | C31: =LEFT(B8,4)-1&". procijenjeno" -> 2020. procijenjeno
A32: Broj izdanih dionica:
A33: Tržišna vrijednost dionice:
A36: Vremenska razdoblja: | B36: =LEFT(B8,4)-2&". planirano" -> 2019. planirano | C36: =LEFT(B8,4)-2&". ostvareno" -> 2019. ostvareno | D36: =LEFT(B8,4)-1&". planirano" -> 2020. planirano | E36: =LEFT(B8,4)-1&". procijenjeno" -> 2020. procijenjeno | F36: =LEFT(B8,4)&". planirano" -> 2021. planirano
A37: Prosječan broj zaposlenih za izvještajno razdoblje: | B37: 68 | C37: 69 | D37: 69 | E37: 65 | F37: 65
A38: Investicije za razdoblje (HRK 000): | B38: =-SUM('NT dir.'!C27) -> 41000 | C38: =-SUM('NT dir.'!D27) -> 1372976 | D38: =-SUM('NT dir.'!E27) -> 885000 | E38: =-SUM('NT dir.'!F27) -> 885000 | F38: =-SUM('NT dir.'!G27) -> 1100000
A41: * Tržišni pokazatelji dionica ispunjavaju se za zadnji dan u razdoblju

Sheet Tijela društva
B1: Tijela društva
B3: Datum ispunjavanja plana: | G3: =Podloga!B20 -> 2020-11-30
B4: Promjene u Tijelima društva od posljednjeg plana / izvještaja: | G4: NE | I4: =IF(G4="DA","Molimo dostaviti Zapisnike MPGI-u - ako već nisu dostavljeni","") -> 
B6: Uprava
B7: R.Br. | C7: Ime | D7: Prezime | E7: Funkcija | G7: Spol | H7: Početak mandata | I7: Kraj mandata | J7: Kontakt e-mail | K7: Broj telefona | L7: Broj mobitela
B8: 1 | C8: Marijan | D8: Kuprešak | E8: Direktor | G8: M | H8: 14.02.2018. | I8: 14.02.2023. | J8: marijan.kupresak@luka-vukovar.hr | L8: +385 91 2535 701
B9: 2
B10: 3
B11: 4
B12: 5
B14: Nadzorni odbor*
B15: R.Br. | C15: Ime | D15: Prezime | E15: Funkcija | F15: Predstavnik | G15: Spol | H15: Početak mandata | I15: Kraj mandata | J15: Kontakt e-mail | K15: Broj telefona | L15: Broj mobitela
B16: 1 | C16: Ljilja | D16: Blažević | E16: Predsjednik | F16: RH - funkcija | G16: Ž | H16: 2018-04-16 | I16: 2022-04-16 | J16: 1.ljiljana.blazevic@gmail.com
B17: 2 | C17: Marijana | D17: Grubišić | E17: Zamjenik predsj. | G17: Ž | H17: 2018-04-16 | I17: 2022-04-16 | J17: marijana.grubisic@vukovar.hr
B18: 3 | C18: Vinko | D18: Rezo | E18: Predstavnik radnika | F18: predst. radnika | G18: M | H18: 2017-03-30 | I18: 2021-03-30 | J18: vinko.rezo@gmail.com
B19: 4 | C19: Zoran | D19: Turuk | E19: Član | F19: RH - funkcija | G19: M | H19: 2018-04-16 | I19: 2022-04-16 | J19: zoran.turuk@mmpi.hr
B20: 5 | C20: Tanja | D20: Kral | E20: Član | F20: RH - funkcija | G20: ž | H20: 2018-04-16 | I20: 2022-04-16 | J20: tanja.kral@pomorstvo.hr
B22: Revizijski odbor
B23: R.Br. | C23: Ime | D23: Prezime | E23: Funkcija | G23: Spol | H23: Početak mandata | I23: Kraj mandata | J23: Kontakt e-mail | K23: Broj telefona | L23: Broj mobitela
B24: 1
B25: 2
B26: 3
B27: 4
B28: 5
B31: Osobe ovlaštene za komunikaciju s Primateljima
B32: R.Br. | C32: Ime | D32: Prezime | E32: Funkcija | J32: Kontakt e-mail | K32: Broj telefona | L32: Broj mobitela
B33: 1 | C33: KATARINA | D33: VICKOVIĆ | E33: rukovoditelj sektora financija | J33: katarina.vickovic@luka-vukovar.hr | L33: 099 26 88 667
B34: 2
B35: 3
B36: 4
B37: 5
B39: * Ako u društvu postoje pomoćna tijela nadzornog odbora (odbori. komisije, povjerenstva i sl.) potrebno ih je obrazložiti u opisnom dijelu (obavezno navesti članove).

Sheet Vl. struktura
A1: Vlasnička struktura na dan: | D1: =IFERROR(Podloga!B20,0) -> 2020-11-30
A3: Promjene u Vlasničkoj strukturi društva od posljednjeg izvještaja / plana:
A5: Društvo s ograničenom odgovornošću
A6: R.Br. | B6: Naziv društva | C6: Poštanski broj sjedišta | D6: Sjedište | E6: OIB društva | F6: Temeljni kapital (kn) | G6: Nominalna vrijednost imatelja RH (kn) | H6: % vlas. RH | I6: Nominalna vrijednost ost. drž. Imatelja (kn) | J6: % vlas. ostalih drž. Imatelja | K6: Teret | L6: Sudski spor
B7: =IF(ISBLANK(Podloga!B2),"",Podloga!B2) -> LUKA-VUKOVAR d.o.o. | C7: 32000 | D7: VUKOVAR | E7: 53535248695 | F7: 35716200 | G7: 35716200 | H7: 100 | K7: 0 | L7: 0
A11: Dioničko društvo
A12: R. Br. | B12: Naziv društva | C12: Poštanski broj sjedišta | D12: Sjedište | E12: Oznaka VP | F12: OIB društva | G12: Temeljni kapital (kn) | H12: Izdana količina dionica | I12: Nominalna vrijednost dionice (kn) | J12: broj dionica čiji je imatelj RH | K12: % vlas. RH | L12: broj dionica ost. drž. imatelja | M12: % vlas.ost. drž. Imatelja | N12: Teret | O12: Sudski spor
B13: =IF(ISBLANK(Podloga!B2),"",Podloga!B2) -> LUKA-VUKOVAR d.o.o.
A18: NAPOMENA
A19: * popunjava se tablica ovisno o pravnom obliku pravne osobe od posebnog interesa

Sheet Bilanca
A1: IZVJEŠTAJ O FINANCIJSKOM POLOŽAJU SA STANJEM NA 31.12. | C1: =IF(C68=C131,Podloga!B36&" bilancira",Podloga!B36&" ne bilancira") -> 2019. planirano bilancira | D1: =IF(D68=D131,Podloga!C36&" bilancira",Podloga!C36&" ne bilancira") -> 2019. ostvareno bilancira | E1: =IF(E68=E131,Podloga!D36&" bilancira",Podloga!D36&" ne bilancira") -> 2020. planirano bilancira | F1: =IF(F68=F131,Podloga!E36&" bilancira",Podloga!E36&" ne bilancira") -> 2020. procijenjeno bilancira | G1: =IF(G68=G131,Podloga!F36&" bilancira",Podloga!F36&" ne bilancira") -> 2021. planirano bilancira
A2: Obveznik: | B2: =IF(ISBLANK(Podloga!B2),"",Podloga!B2) -> LUKA-VUKOVAR d.o.o. | C2: I Z N O S (u 000 kn) | H2: ="Indeks "& RIGHT(LEFT(Podloga!C36,7),5) &" / "& RIGHT(LEFT(Podloga!B36,8),6) -> Indeks 19. o / 19. pl | I2: ="Indeks "& RIGHT(LEFT(Podloga!E36,8),6) &" / "& RIGHT(LEFT(Podloga!D36,8),6) -> Indeks 20. pr / 20. pl | J2: ="Indeks "& RIGHT(LEFT(Podloga!E36,8),6) &" / "& RIGHT(LEFT(Podloga!C36,7),5) -> Indeks 20. pr / 19. o | K2: ="Indeks "& RIGHT(LEFT(Podloga!D36,8),6) &" / "& RIGHT(LEFT(Podloga!B36,8),6) -> Indeks 20. pl / 19. pl | L2: ="Indeks "& RIGHT(LEFT(Podloga!F36,8),6) &" / "& RIGHT(LEFT(Podloga!D36,8),6) -> Indeks 21. pl / 20. pl | M2: ="Indeks "& RIGHT(LEFT(Podloga!F36,8),6) &" / "& RIGHT(LEFT(Podloga!E36,8),6) -> Indeks 21. pl / 20. pr
B3: A K T I V A | C3: =Podloga!B36 -> 2019. planirano | D3: =Podloga!C36 -> 2019. ostvareno | E3: =Podloga!D36 -> 2020. planirano | F3: =Podloga!E36 -> 2020. procijenjeno | G3: =Podloga!F36 -> 2021. planirano
A4: 1. | B4: POTRAŽIVANJA ZA UPISANI A NEUPLAĆENI KAPITAL | H4: =IFERROR(D4/C4*100,) -> 0 | I4: =IFERROR(F4/E4*100,) -> 0 | J4: =IFERROR(F4/D4*100,) -> 0 | K4: =IFERROR(E4/C4*100,) -> 0 | L4: =IFERROR(G4/E4*100,) -> 0 | M4: =IFERROR(G4/F4*100,) -> 0
A5: 2. | B5: DUGOTRAJNA IMOVINA | C5: =C6+C13+C23+C34+C39 -> 16040947 | D5: =D6+D13+D23+D34+D39 -> 16631857 | E5: =E6+E13+E23+E34+E39 -> 16014779 | F5: 16014779 | G5: 15930529 | H5: =IFERROR(D5/C5*100,) -> 103.6837601 | I5: =IFERROR(F5/E5*100,) -> 100 | J5: =IFERROR(F5/D5*100,) -> 96.28978291 | K5: =IFERROR(E5/C5*100,) -> 99.83686749 | L5: =IFERROR(G5/E5*100,) -> 99.47392343 | M5: 99.47392343
A6: 2.1. | B6: Nematerijalna imovina | C6: =SUM(C7:C12) -> 1718717.5 | D6: =SUM(D7:D12) -> 4406183 | E6: =SUM(E7:E12) -> 4075490 | F6: 4075490 | G6: 3761620 | H6: 256.3645858 | I6: 100 | J6: 92.49479652 | K6: 237.123902 | L6: 92.29859477 | M6: 92.29859477
A7: 2.1.1. | B7: Izdaci za razvoj | D7: 0 | H7: 0 | I7: 0 | J7: 0 | K7: 0 | L7: 0 | M7: 0
A8: 2.1.2. | B8: Koncesije, patenti, licencencije, robne i uslužne marke, softver i ostala prava | D8: 20545 | E8: 2570 | F8: 2570 | G8: 1500 | H8: 0 | I8: 100 | J8: 12.50912631 | K8: 0 | L8: 58.36575875 | M8: 58.36575875
A9: 2.1.3. | B9: Goodwill | D9: 0 | H9: 0 | I9: 0 | J9: 0 | K9: 0 | L9: 0 | M9: 0
A10: 2.1.4. | B10: Predujmovi za nabavu nematerijalne imovine | D10: 0 | H10: 0 | I10: 0 | J10: 0 | K10: 0 | L10: 0 | M10: 0
A11: 2.1.5. | B11: Nematerijalna imovina u pripremi | D11: 2666920 | E11: 2666920 | F11: 2666920 | G11: 2666920 | H11: 0 | I11: 100 | J11: 100 | K11: 0 | L11: 100 | M11: 100
A12: 2.1.6. | B12: Ostala nematerijalna imovina | C12: 1718717.5 | D12: 1718718 | E12: 1406000 | F12: 1406000 | G12: 1093200 | H12: 100.0000291 | I12: 100 | J12: 81.80515943 | K12: 81.80518323 | L12: 77.75248933 | M12: 77.75248933
A13: 2.2. | B13: Materijalna imovina | C13: =SUM(C14:C22) -> 8987697 | D13: =SUM(D14:D22) -> 9860361 | E13: =SUM(E14:E22) -> 9890289 | F13: 9890289 | G13: 10436222 | H13: 109.7095396 | I13: 100 | J13: 100.3035183 | K13: 110.0425281 | L13: 105.5198893 | M13: 105.5198893
A14: 2.2.1. | B14: Zemljište | C14: 6417697 | D14: 6417697 | E14: 6417697 | F14: 6417697 | G14: 6417697 | H14: 100 | I14: 100 | J14: 100 | K14: 100 | L14: 100 | M14: 100
A15: 2.2.2. | B15: Građevinski objekti | C15: 1670000 | D15: 1714539 | E15: 1619000 | F15: 1619000 | G15: 1598525 | H15: 102.667006 | I15: 100 | J15: 94.42771497 | K15: 96.94610778 | L15: 98.73533045 | M15: 98.73533045
A16: 2.2.3. | B16: Postrojenja i oprema | C16: 900000 | D16: 1654533 | E16: 1780000 | F16: 1780000 | G16: 2420000 | H16: 183.837 | I16: 100 | J16: 107.5832274 | K16: 197.7777778 | L16: 135.9550562 | M16: 135.9550562
A17: 2.2.4. | B17: Alati, pogonski inventar i transportna imovina | D17: 0 | H17: 0 | I17: 0 | J17: 0 | K17: 0 | L17: 0 | M17: 0
A18: 2.2.5. | B18: Biološka imovina | D18: 0 | H18: 0 | I18: 0 | J18: 0 | K18: 0 | L18: 0 | M18: 0
A19: 2.2.6. | B19: Predujmovi za materijalnu imovinu | D19: 0 | H19: 0 | I19: 0 | J19: 0 | K19: 0 | L19: 0 | M19: 0
A20: 2.2.7. | B20: Materijalna imovina u pripremi | D20: 73592 | E20: 73592 | F20: 73592 | H20: 0 | I20: 100 | J20: 100 | K20: 0 | L20: 0 | M20: 0
A21: 2.2.8. | B21: Ostala materijalna imovina | D21: 0 | H21: 0 | I21: 0 | J21: 0 | K21: 0 | L21: 0 | M21: 0
A22: 2.2.9. | B22: Ulaganja u nekretnine | D22: 0 | H22: 0 | I22: 0 | J22: 0 | K22: 0 | L22: 0 | M22: 0
A23: 2.3. | B23: Dugotrajna financijska imovina | C23: =SUM(C24:C33) -> 5334532.5 | D23: =SUM(D24:D33) -> 2365313 | E23: =SUM(E24:E33) -> 2049000 | F23: 2049000 | G23: 1732687 | H23: 44.33964926 | I23: 100 | J23: 86.627013 | K23: 38.41011373 | L23: 84.56256711 | M23: 84.56256711
A24: 2.3.1. | B24: Ulaganja u udjele (dionice) poduzetnika unutar grupe | D24: 0 | H24: 0 | I24: 0 | J24: 0 | K24: 0 | L24: 0 | M24: 0
A25: 2.3.2. | B25: Ulaganja u ostale vrijednosne papire poduzetnika unutar grupe | D25: 0 | H25: 0 | I25: 0 | J25: 0 | K25: 0 | L25: 0 | M25: 0
A26: 2.3.3. | B26: Dani zajmovi, depoziti i slično poduzetnicima unutar grupe | D26: 0 | H26: 0 | I26: 0 | J26: 0 | K26: 0 | L26: 0 | M26: 0
A27: 2.3.4. | B27: Ulaganja u udjele (dionice) društava povezanih sudjelujućim interesom | D27: 0 | H27: 0 | I27: 0 | J27: 0 | K27: 0 | L27: 0 | M27: 0
A28: 2.3.5. | B28: Ulaganja u ostale vrijednosne papire društava povezanih sudjelujućim interesom | D28: 0 | H28: 0 | I28: 0 | J28: 0 | K28: 0 | L28: 0 | M28: 0
A29: 2.3.6. | B29: Dani zajmovi, depoziti i slično društvima povezanim sudjelujućim interesom | D29: 0 | H29: 0 | I29: 0 | J29: 0 | K29: 0 | L29: 0 | M29: 0
A30: 2.3.7. | B30: Ulaganja u vrijednosne papire | D30: 0 | H30: 0 | I30: 0 | J30: 0 | K30: 0 | L30: 0 | M30: 0
A31: 2.3.8. | B31: Dani zajmovi, depoziti i slično | D31: 0 | H31: 0 | I31: 0 | J31: 0 | K31: 0 | L31: 0 | M31: 0
A32: 2.3.9. | B32: Ostala ulaganja koja se obračunavaju metodom udjela | C32: 299600 | D32: 0 | H32: 0 | I32: 0 | J32: 0 | K32: 0 | L32: 0 | M32: 0
A33: 2.3.10. | B33: Ostala dugotrajna financijska imovina | C33: 5034932.5 | D33: 2365313 | E33: 2049000 | F33: 2049000 | G33: 1732687 | H33: 46.97804787 | I33: 100 | J33: 86.627013 | K33: 40.69567963 | L33: 84.56256711 | M33: 84.56256711
A34: 2.4. | B34: Potraživanja | C34: =SUM(C35:C38) -> 0 | D34: =SUM(D35:D38) -> 0 | E34: =SUM(E35:E38) -> 0 | F34: 0 | G34: 0 | H34: 0 | I34: 0 | J34: 0 | K34: 0 | L34: 0 | M34: 0
A35: 2.4.1. | B35: Potraživanja od poduzetnika unutar grupe | H35: 0 | I35: 0 | J35: 0 | K35: 0 | L35: 0 | M35: 0
A36: 2.4.2. | B36: Potraživanja od društava povezanih sudjelujućim interesom | H36: 0 | I36: 0 | J36: 0 | K36: 0 | L36: 0 | M36: 0
A37: 2.4.3. | B37: Potraživanja od kupaca | H37: 0 | I37: 0 | J37: 0 | K37: 0 | L37: =IFERROR(G37/E37*100,) -> 0 | M37: =IFERROR(G37/F37*100,) -> 0
A38: 2.4.4. | B38: Ostala potraživanja | H38: 0 | I38: 0 | J38: 0 | K38: 0 | L38: 0 | M38: 0
A39: 2.5. | B39: Odgođena porezna imovina | H39: 0 | I39: 0 | J39: 0 | K39: 0 | L39: 0 | M39: 0
A40: 3. | B40: KRATKOTRAJNA IMOVINA | C40: =C41+C49+C56+C66 -> 17543850.14 | D40: =D41+D49+D56+D66 -> 17437730 | E40: =E41+E49+E56+E66 -> 18003247.4 | F40: 18003247.4 | G40: 18179839 | H40: 99.39511487 | I40: 100 | J40: 103.2430678 | K40: 102.6185658 | L40: 100.9808875 | M40: 100.9808875
A41: 3.1. | B41: Zalihe | C41: =SUM(C42:C48) -> 902000 | D41: =SUM(D42:D48) -> 836189 | E41: =SUM(E42:E48) -> 840452 | F41: 840452 | G41: 825000 | H41: 92.70388027 | I41: 100 | J41: 100.509813 | K41: 93.17649667 | L41: 98.1614655 | M41: 98.1614655
A42: 3.1.1. | B42: Sirovine i materijal | C42: 850000 | D42: 784384 | E42: 807000 | F42: 807000 | G42: 815000 | H42: 92.28047059 | I42: 100 | J42: 102.8832817 | K42: 94.94117647 | L42: 100.9913259 | M42: 100.9913259
A43: 3.1.2. | B43: Proizvodnja u tijeku | D43: 0 | H43: 0 | I43: 0 | J43: 0 | K43: 0 | L43: 0 | M43: 0
A44: 3.1.3. | B44: Gotovi proizvodi | D44: 0 | H44: 0 | I44: 0 | J44: 0 | K44: 0 | L44: 0 | M44: 0
A45: 3.1.4. | B45: Trgovačka roba | C45: 52000 | D45: 51805 | E45: 33452 | F45: 33452 | G45: 10000 | H45: 99.625 | I45: 100 | J45: 64.57291767 | K45: 64.33076923 | L45: 29.89357886 | M45: 29.89357886
A46: 3.1.5. | B46: Predujmovi za zalihe | D46: 0 | H46: 0 | I46: 0 | J46: 0 | K46: 0 | L46: 0 | M46: 0
A47: 3.1.6. | B47: Dugotrajna imovina namijenjena prodaji | D47: 0 | H47: 0 | I47: 0 | J47: 0 | K47: 0 | L47: 0 | M47: 0
A48: 3.1.7. | B48: Biološka imovina | D48: 0 | H48: 0 | I48: 0 | J48: 0 | K48: 0 | L48: 0 | M48: 0
A49: 3.2. | B49: Potraživanja | C49: =SUM(C50:C55) -> 1670000 | D49: =SUM(D50:D55) -> 1657391 | E49: =SUM(E50:E55) -> 1610000 | F49: 1610000 | G49: 1740000 | H49: 99.24497006 | I49: 100 | J49: 97.14062644 | K49: 96.40718563 | L49: 108.0745342 | M49: 108.0745342
A50: 3.2.1. | B50: Potraživanja od poduzetnika unutar grupe | D50: 0 | H50: 0 | I50: 0 | J50: 0 | K50: 0 | L50: 0 | M50: 0
A51: 3.2.2. | B51: Potraživanja od društava povezanih sudjelujućim interesom | D51: 0 | H51: 0 | I51: 0 | J51: 0 | K51: 0 | L51: 0 | M51: 0
A52: 3.2.3. | B52: Potraživanja od kupaca | C52: 1500000 | D52: 1569207 | E52: 1500000 | F52: 1500000 | G52: 1650000 | H52: 104.6138 | I52: 100 | J52: 95.5896832 | K52: 100 | L52: 110 | M52: 110
A53: 3.2.4. | B53: Potraživanja od zaposlenika i članova poduzetnika | D53: 0 | H53: 0 | I53: 0 | J53: 0 | K53: 0 | L53: 0 | M53: 0
A54: 3.2.5. | B54: Potraživanja od države i drugih institucija | C54: 170000 | D54: 72325 | E54: 110000 | F54: 110000 | G54: 75000 | H54: 42.54411765 | I54: 100 | J54: 152.0912548 | K54: 64.70588235 | L54: 68.18181818 | M54: 68.18181818
A55: 3.2.6. | B55: Ostala potraživanja | D55: 15859 | G55: 15000 | H55: 0 | I55: 0 | J55: 0 | K55: 0 | L55: 0 | M55: 0
A56: 3.3. | B56: Kratkotrajna financijska imovina | C56: =SUM(C57:C65) -> 50000 | D56: =SUM(D57:D65) -> 50000 | E56: =SUM(E57:E65) -> 0 | F56: 0 | G56: 0 | H56: 100 | I56: 0 | J56: 0 | K56: 0 | L56: 0 | M56: 0
A57: 3.3.1. | B57: Ulaganja u udjele (dionice) poduzetnika unutar grupe | D57: 0 | H57: 0 | I57: 0 | J57: 0 | K57: 0 | L57: 0 | M57: 0
A58: 3.3.2. | B58: Ulaganja u ostale vrijednosne papire poduzetnika unutar grupe | D58: 0 | H58: 0 | I58: 0 | J58: 0 | K58: 0 | L58: 0 | M58: 0
A59: 3.3.3. | B59: Dani zajmovi, depoziti i slično poduzetnicima unutar grupe | D59: 0 | H59: 0 | I59: 0 | J59: 0 | K59: 0 | L59: 0 | M59: 0
A60: 3.3.4. | B60: Ulaganja u udjele (dionice) društava povezanih sudjelujućim interesom | D60: 0 | H60: 0 | I60: 0 | J60: 0 | K60: 0 | L60: 0 | M60: 0
A61: 3.3.5. | B61: Ulaganja u ostale vrijednosne papire društava povezanih sudjelujućim interesom | D61: 0 | H61: 0 | I61: 0 | J61: 0 | K61: 0 | L61: 0 | M61: 0
A62: 3.3.6. | B62: Dani zajmovi, depoziti i slično društvima povezanim sudjelujućim interesom | D62: 0 | H62: 0 | I62: 0 | J62: 0 | K62: 0 | L62: 0 | M62: 0
A63: 3.3.7. | B63: Ulaganja u vrijednosne papire | D63: 0 | H63: 0 | I63: 0 | J63: 0 | K63: 0 | L63: 0 | M63: 0
A64: 3.3.8. | B64: Dani zajmovi, depoziti i slično | D64: 0 | H64: 0 | I64: 0 | J64: 0 | K64: 0 | L64: 0 | M64: 0
A65: 3.3.9. | B65: Ostala financijska imovina | C65: 50000 | D65: 50000 | H65: 100 | I65: 0 | J65: 0 | K65: 0 | L65: 0 | M65: 0
A66: 3.4. | B66: Novac u banci i blagajni | C66: 14921850.14 | D66: 14894150 | E66: 15552795.4 | F66: =15698654.67-145859.27 -> 15552795.4 | G66: =15900699-285860 -> 15614839 | H66: 99.81436524 | I66: 100 | J66: 104.4221751 | K66: 104.2283313 | L66: 100.3989225 | M66: 100.3989225
A67: 4. | B67: PLAĆENI TROŠKOVI BUDUĆEG RAZDOBLJA I OBRAČUNATI PRIHODI | C67: 350000 | D67: 135202 | E67: 142000 | F67: 142000 | G67: 135000 | H67: 38.62914286 | I67: 100 | J67: 105.0280321 | K67: 40.57142857 | L67: 95.07042254 | M67: 95.07042254
A68: 5. | B68: UKUPNA AKTIVA | C68: =C4+C5+C40+C67 -> 33934797.14 | D68: =D4+D5+D40+D67 -> 34204789 | E68: =E4+E5+E40+E67 -> 34160026.4 | F68: 34160026.4 | G68: 34245368 | H68: 100.7956195 | I68: 100 | J68: 99.86913353 | K68: 100.6637118 | L68: 100.2498288 | M68: 100.2498288
A69: 6. | B69: IZVANBILANČNI ZAPISI | D69: 760000 | E69: 770000 | F69: 770000 | G69: 770000 | H69: =IFERROR(D69/C69*100,) -> 0 | I69: =IFERROR(F69/E69*100,) -> 100 | J69: =IFERROR(F69/D69*100,) -> 101.3157895 | K69: =IFERROR(E69/C69*100,) -> 0 | L69: 100 | M69: 100
C73: I Z N O S (u 000 kn) | H73: ="Indeks "& RIGHT(LEFT(Podloga!C36,7),5) &" / "& RIGHT(LEFT(Podloga!B36,7),5) -> Indeks 19. o / 19. p | I73: ="Indeks "& RIGHT(LEFT(Podloga!E36,8),6) &" / "& RIGHT(LEFT(Podloga!D36,8),6) -> Indeks 20. pr / 20. pl | J73: ="Indeks "& RIGHT(LEFT(Podloga!E36,8),6) &" / "& RIGHT(LEFT(Podloga!C36,7),5) -> Indeks 20. pr / 19. o | K73: ="Indeks "& RIGHT(LEFT(Podloga!D36,8),6) &" / "& RIGHT(LEFT(Podloga!B36,8),6) -> Indeks 20. pl / 19. pl | L73: ="Indeks "& RIGHT(LEFT(Podloga!F36,8),6) &" / "& RIGHT(LEFT(Podloga!D36,8),6) -> Indeks 21. pl / 20. pl | M73: ="Indeks "& RIGHT(LEFT(Podloga!F36,8),6) &" / "& RIGHT(LEFT(Podloga!E36,8),6) -> Indeks 21. pl / 20. pr
B74: P A S I V A | C74: =Podloga!B36 -> 2019. planirano | D74: =Podloga!C36 -> 2019. ostvareno | E74: =Podloga!D36 -> 2020. planirano | F74: =Podloga!E36 -> 2020. procijenjeno | G74: =Podloga!F36 -> 2021. planirano
A75: 1. | B75: KAPITAL I REZERVE | C75: =SUM(C76:C78,C84,C85,C89,C92,C95) -> 30817702.14 | D75: =SUM(D76:D78,D84,D85,D89,D92,D95) -> 30903899 | E75: =SUM(E76:E78,E84,E85,E89,E92,E95) -> 31217588.4 | F75: 31217588.4 | G75: 31605308 | H75: =IFERROR(D75/C75*100,) -> 100.2796992 | I75: =IFERROR(F75/E75*100,) -> 100 | J75: =IFERROR(F75/D75*100,) -> 101.015048 | K75: =IFERROR(E75/C75*100,) -> 101.2975862 | L75: =IFERROR(G75/E75*100,) -> 101.2419909 | M75: =IFERROR(G75/F75*100,) -> 101.2419909
A76: 1.1. | B76: Temeljni (upisani) kapital | C76: 35716200 | D76: 35716200 | E76: 35716200 | F76: 35716200 | G76: 35716200 | H76: =IFERROR(D76/C76*100,) -> 100 | I76: =IFERROR(F76/E76*100,) -> 100 | J76: =IFERROR(F76/D76*100,) -> 100 | K76: =IFERROR(E76/C76*100,) -> 100 | L76: =IFERROR(G76/E76*100,) -> 100 | M76: =IFERROR(G76/F76*100,) -> 100
A77: 1.2. | B77: Kapitalne rezerve | H77: 0 | I77: 0 | J77: 0 | K77: 0 | L77: 0 | M77: 0
A78: 1.3. | B78: Rezerve iz dobiti | C78: =SUM(C79:C83) -> 0 | D78: =SUM(D79:D83) -> 0 | E78: =SUM(E79:E83) -> 0 | F78: 0 | G78: 0 | H78: 0 | I78: 0 | J78: 0 | K78: 0 | L78: 0 | M78: 0
A79: 1.3.1. | B79: Zakonske rezerve | H79: 0 | I79: 0 | J79: 0 | K79: 0 | L79: 0 | M79: 0
A80: 1.3.2. | B80: Rezerve za vlastite dionice | H80: 0 | I80: 0 | J80: 0 | K80: 0 | L80: 0 | M80: 0
A81: 1.3.3. | B81: Vlastite dionice i udjeli (odbitna stavka) | H81: 0 | I81: 0 | J81: 0 | K81: 0 | L81: 0 | M81: 0
A82: 1.3.4. | B82: Statutarne rezerve | H82: 0 | I82: 0 | J82: 0 | K82: 0 | L82: 0 | M82: 0
A83: 1.3.5. | B83: Ostale rezerve | H83: 0 | I83: 0 | J83: 0 | K83: 0 | L83: 0 | M83: 0
A84: 1.4. | B84: Revalorizacijske rezerve | H84: 0 | I84: 0 | J84: 0 | K84: 0 | L84: 0 | M84: 0
A85: 1.5. | B85: Rezerve fer vrijednosti | C85: =SUM(C86:C88) -> 0 | D85: =SUM(D86:D88) -> 0 | E85: =SUM(E86:E88) -> 0 | F85: 0 | G85: 0 | H85: 0 | I85: 0 | J85: 0 | K85: 0 | L85: 0 | M85: 0
A86: 1.5.1. | B86: Fer vrijednost financijske imovine raspoložive za prodaju | H86: 0 | I86: 0 | J86: 0 | K86: 0 | L86: 0 | M86: 0
A87: 1.5.2. | B87: Učinkoviti dio zaštite novčanih tokova | H87: 0 | I87: 0 | J87: 0 | K87: 0 | L87: 0 | M87: 0
A88: 1.5.3. | B88: Učinkoviti dio zaštite neto ulaganja u inozemstvu | H88: 0 | I88: 0 | J88: 0 | K88: 0 | L88: 0 | M88: 0
A89: 1.6. | B89: Zadržana dobit ili preneseni gubitak | C89: =C90-ABS(C91) -> -5172713.8 | D89: =D90-ABS(D91) -> -5074763 | E89: -4812301.6 | F89: -4812301.6 | G89: -4498612 | H89: 98.10639436 | I89: 100 | J89: 94.82810527 | K89: 93.03243493 | L89: 93.48150581 | M89: 93.48150581
A90: 1.6.1. | B90: Zadržana dobit | D90: 0 | H90: 0 | I90: 0 | J90: 0 | K90: 0 | L90: 0 | M90: 0
A91: 1.6.2. | B91: Preneseni gubitak | C91: 5172713.8 | D91: 5074763 | E91: 4812301.6 | F91: 4812301.6 | G91: 4498612 | H91: 98.10639436 | I91: 100 | J91: 94.82810527 | K91: 93.03243493 | L91: 93.48150581 | M91: 93.48150581
A92: 1.7. | B92: Dobit ili gubitak poslovne godine | C92: =C93-ABS(C94) -> 274215.94 | D92: =D93-ABS(D94) -> 262462 | E92: 313690 | F92: 313690 | G92: 387720 | H92: 95.71361898 | I92: 100 | J92: 119.5182541 | K92: 114.3952463 | L92: 123.5997322 | M92: 123.5997322
A93: 1.7.1. | B93: Dobit poslovne godine | C93: 274215.94 | D93: 262462 | E93: 313690 | F93: =SUM(RDG!F59) -> 313690 | G93: =SUM(RDG!G59) -> 387720 | H93: 95.71361898 | I93: 100 | J93: 119.5182541 | K93: 114.3952463 | L93: 123.5997322 | M93: 123.5997322
A94: 1.7.2. | B94: Gubitak poslovne godine | H94: 0 | I94: 0 | J94: 0 | K94: 0 | L94: 0 | M94: 0
A95: 1.8. | B95: Manjinski (nekontrolirajući) interes | H95: 0 | I95: 0 | J95: 0 | K95: 0 | L95: 0 | M95: 0
A96: 2. | B96: REZERVIRANJA | C96: =SUM(C97:C102) -> 0 | D96: =SUM(D97:D102) -> 0 | E96: =SUM(E97:E102) -> 0 | F96: 0 | G96: 0 | H96: 0 | I96: 0 | J96: 0 | K96: 0 | L96: 0 | M96: 0
A97: 2.1. | B97: Rezerviranja za mirovine, otpremnine i slične obveze | H97: 0 | I97: 0 | J97: 0 | K97: 0 | L97: 0 | M97: 0
A98: 2.2. | B98: Rezerviranja za porezne obveze | H98: 0 | I98: 0 | J98: 0 | K98: 0 | L98: 0 | M98: 0
A99: 2.3. | B99: Rezerviranja za započete sudske sporove | H99: 0 | I99: 0 | J99: 0 | K99: 0 | L99: 0 | M99: 0
A100: 2.4. | B100: Rezerviranja za troškove obnavljanja prirodnih bogatstava | H100: 0 | I100: 0 | J100: 0 | K100: 0 | L100: 0 | M100: 0
A101: 2.5. | B101: Rezerviranja za troškove u jamstvenim rokovima | H101: 0 | I101: 0 | J101: 0 | K101: 0 | L101: 0 | M101: 0
A102: 2.6. | B102: Druga rezerviranja | H102: 0 | I102: 0 | J102: 0 | K102: 0 | L102: 0 | M102: 0
A103: 3. | B103: DUGOROČNE OBVEZE | C103: =SUM(C104:C114) -> 0 | D103: =SUM(D104:D114) -> 0 | E103: =SUM(E104:E114) -> 0 | F103: 0 | G103: 0 | H103: 0 | I103: 0 | J103: 0 | K103: 0 | L103: 0 | M103: 0
A104: 3.1. | B104: Obveze prema poduzetnicima unutar grupe | H104: 0 | I104: 0 | J104: 0 | K104: 0 | L104: 0 | M104: 0
A105: 3.2. | B105: Obveze za zajmove, depozite i slično poduzetnika unutar grupe | H105: 0 | I105: 0 | J105: 0 | K105: 0 | L105: 0 | M105: 0
A106: 3.3. | B106: Obveze prema društvima povezanim sudjelujućim interesom | H106: 0 | I106: 0 | J106: 0 | K106: 0 | L106: 0 | M106: 0
A107: 3.4. | B107: Obveze za zajmove, depozite i slično društava povezanih sudjelujućim interesom | H107: 0 | I107: 0 | J107: 0 | K107: 0 | L107: 0 | M107: 0
A108: 3.5. | B108: Obveze za zajmove, depozite i slično | H108: 0 | I108: 0 | J108: 0 | K108: 0 | L108: 0 | M108: 0
A109: 3.6. | B109: Obveze prema bankama i drugim financijskim institucijama | H109: 0 | I109: 0 | J109: 0 | K109: 0 | L109: 0 | M109: 0
A110: 3.7. | B110: Obveze za predujmove | H110: 0 | I110: 0 | J110: 0 | K110: 0 | L110: 0 | M110: 0
A111: 3.8. | B111: Obveze prema dobavljačima | H111: 0 | I111: 0 | J111: 0 | K111: 0 | L111: 0 | M111: 0
A112: 3.9. | B112: Obveze po vrijednosnim papirima | H112: 0 | I112: 0 | J112: 0 | K112: 0 | L112: 0 | M112: 0
A113: 3.10. | B113: Ostale dugoročne obveze | H113: 0 | I113: 0 | J113: 0 | K113: 0 | L113: 0 | M113: 0
A114: 3.11. | B114: Odgođena porezna obveza | H114: 0 | I114: 0 | J114: 0 | K114: 0 | L114: 0 | M114: 0
A115: 4. | B115: KRATKOROČNE OBVEZE | C115: =SUM(C116:C129) -> 751785 | D115: =SUM(D116:D129) -> 935577 | E115: =SUM(E116:E129) -> 892500 | F115: 892500 | G115: 905500 | H115: 124.4474152 | I115: 100 | J115: 95.39567561 | K115: 118.7174525 | L115: 101.4565826 | M115: 101.4565826
A116: 4.1. | B116: Obveze prema poduzetnicima unutar grupe | D116: 0 | H116: 0 | I116: 0 | J116: 0 | K116: 0 | L116: 0 | M116: 0
A117: 4.2. | B117: Obveze za zajmove, depozite i slično poduzetnika unutar grupe | D117: 0 | H117: 0 | I117: 0 | J117: 0 | K117: 0 | L117: 0 | M117: 0
A118: 4.3. | B118: Obveze prema društvima povezanim sudjelujućim interesom | D118: 0 | H118: 0 | I118: 0 | J118: 0 | K118: 0 | L118: 0 | M118: 0
A119: 4.4. | B119: Obveze za zajmove, depozite i slično društava povezanih sudjelujućim interesom | D119: 0 | H119: 0 | I119: 0 | J119: 0 | K119: 0 | L119: 0 | M119: 0
A120: 4.5. | B120: Obveze za zajmove, depozite i slično | D120: 0 | H120: 0 | I120: 0 | J120: 0 | K120: 0 | L120: 0 | M120: 0
A121: 4.6. | B121: Obveze prema bankama i drugim financijskim institucijama | D121: 0 | H121: 0 | I121: 0 | J121: 0 | K121: 0 | L121: 0 | M121: 0
A122: 4.7. | B122: Obveze za predujmove | D122: 2271 | H122: 0 | I122: 0 | J122: 0 | K122: 0 | L122: 0 | M122: 0
A123: 4.8. | B123: Obveze prema dobavljačima | C123: 120000 | D123: 279367 | E123: 257000 | F123: 257000 | G123: 255000 | H123: 232.8058333 | I123: 100 | J123: 91.99368573 | K123: 214.1666667 | L123: 99.22178988 | M123: 99.22178988
A124: 4.9. | B124: Obveze po vrijednosnim papirima | D124: 0 | H124: 0 | I124: 0 | J124: 0 | K124: 0 | L124: 0 | M124: 0
A125: 4.10. | B125: Obveze prema zaposlenicima | C125: 337050 | D125: 390996 | E125: 395000 | F125: 395000 | G125: 405000 | H125: 116.0053405 | I125: 100 | J125: 101.0240514 | K125: 117.1932948 | L125: 102.5316456 | M125: 102.5316456
A126: 4.11. | B126: Obveze za poreze, doprinose i slična davanja | C126: 284235 | D126: 232985 | E126: 230000 | F126: 230000 | G126: 235000 | H126: 81.96914525 | I126: 100 | J126: 98.71880164 | K126: 80.9189579 | L126: 102.173913 | M126: 102.173913
A127: 4.12. | B127: Obveze s osnove udjela u rezultatu | D127: 0 | H127: 0 | I127: 0 | J127: 0 | K127: 0 | L127: 0 | M127: 0
A128: 4.13. | B128: Obveze po osnovi dugotrajne imovine namijenjene prodaji | D128: 0 | H128: 0 | I128: 0 | J128: 0 | K128: 0 | L128: 0 | M128: 0
A129: 4.14. | B129: Ostale kratkoročne obveze | C129: 10500 | D129: 29958 | E129: 10500 | F129: 10500 | G129: 10500 | H129: 285.3142857 | I129: 100 | J129: 35.0490687 | K129: 100 | L129: 100 | M129: 100
A130: 5. | B130: ODGOĐENO PLAĆANJE TROŠKOVA I PRIHOD BUDUĆEG RAZDOBLJA | C130: 2365310 | D130: 2365313 | E130: 2049938 | F130: 2049938 | G130: 1734560 | H130: 100.0001268 | I130: 100 | J130: 86.66666949 | K130: 86.66677941 | L130: 84.61524202 | M130: 84.61524202
A131: 6. | B131: UKUPNA PASIVA | C131: =C75+C96+C103+C115+C130 -> 33934797.14 | D131: =D75+D96+D103+D115+D130 -> 34204789 | E131: =E75+E96+E103+E115+E130 -> 34160026.4 | F131: 34160026.4 | G131: 34245368 | H131: 100.7956195 | I131: 100 | J131: 99.86913353 | K131: 100.6637118 | L131: 100.2498288 | M131: 100.2498288
A132: 7. | B132: IZVANBILANČNI ZAPISI | D132: 760000 | E132: 770000 | F132: 770000 | G132: 770000 | H132: 0 | I132: 100 | J132: 101.3157895 | K132: 0 | L132: 100 | M132: 100
A133: * DODATAK IZVJEŠTAJU O FINANCIJSKOM POLOŽAJU (popunjava trgovačko društvo koje sastavlja konsolidirani godišnji financijski izvještaj)
A134: 8. | B134: KAPITAL I REZERVE | C134: =IF(C135+C136=C75,C75,"Neodgovarajuća raspodjela") -> Neodgovarajuća raspodjela | D134: Neodgovarajuća raspodjela | E134: =IF(E135+E136=E75,E75,"Neodgovarajuća raspodjela") -> Neodgovarajuća raspodjela | F134: =IF(F135+F136=F75,F75,"Neodgovarajuća raspodjela") -> Neodgovarajuća raspodjela | G134: =IF(G135+G136=G75,G75,"Neodgovarajuća raspodjela") -> Neodgovarajuća raspodjela | H134: =IFERROR(D134/C134*100,) -> 0 | I134: =IFERROR(F134/E134*100,) -> 0 | J134: =IFERROR(F134/D134*100,) -> 0 | K134: =IFERROR(E134/C134*100,) -> 0 | L134: =IFERROR(G134/E134*100,) -> 0 | M134: =IFERROR(G134/F134*100,) -> 0
A135: 8.1. | B135: Pripisano imateljima kapitala matice | H135: =IFERROR(D135/C135*100,) -> 0 | I135: =IFERROR(F135/E135*100,) -> 0 | J135: =IFERROR(F135/D135*100,) -> 0 | K135: =IFERROR(E135/C135*100,) -> 0 | L135: =IFERROR(G135/E135*100,) -> 0 | M135: =IFERROR(G135/F135*100,) -> 0
A136: 8.2. | B136: Pripisano manjinskom interesu | H136: 0 | I136: 0 | J136: 0 | K136: 0 | L136: 0 | M136: 0
A138: * | B138: Napomena 1: Dodatak izvještaju o financijskom položaju popunjavaju trgovačka društva koja sastavljaju konsolidirane godišnje financijske izvještaje
B139: Napomena 2: Prilikom razvrstavanja trgovačkih društva, sukladno članku 3. Zakona o računovodstvu, ne uzima se u zbroju aktive iznos gubitka iznad kapitala

Sheet RDG
A1: RAČUN DOBITI I GUBITKA | C1: =IF(C83>0,"Sveobuhvatna dobit razdoblja",IF(C83=0,"Stagnacija u razdoblju","Sveobuhvatni gubitak razdoblja")) -> Sveobuhvatna dobit razdoblja | D1: Sveobuhvatna dobit razdoblja | E1: Sveobuhvatna dobit razdoblja | F1: Sveobuhvatna dobit razdoblja | G1: Sveobuhvatna dobit razdoblja
A2: Obveznik: | B2: =IF(ISBLANK(Podloga!B2),"",Podloga!B2) -> LUKA-VUKOVAR d.o.o. | C2: za razdoblje od 1. siječnja do 31. prosinca
C3: I Z N O S (u 000 kn) | H3: ="Indeks "& RIGHT(LEFT(Podloga!C36,7),5) &" / "& RIGHT(LEFT(Podloga!B36,8),6) -> Indeks 19. o / 19. pl | I3: ="Indeks "& RIGHT(LEFT(Podloga!E36,8),6) &" / "& RIGHT(LEFT(Podloga!D36,8),6) -> Indeks 20. pr / 20. pl | J3: ="Indeks "& RIGHT(LEFT(Podloga!E36,8),6) &" / "& RIGHT(LEFT(Podloga!C36,7),5) -> Indeks 20. pr / 19. o | K3: ="Indeks "& RIGHT(LEFT(Podloga!D36,8),6) &" / "& RIGHT(LEFT(Podloga!B36,8),6) -> Indeks 20. pl / 19. pl | L3: ="Indeks "& RIGHT(LEFT(Podloga!F36,8),6) &" / "& RIGHT(LEFT(Podloga!D36,8),6) -> Indeks 21. pl / 20. pl | M3: ="Indeks "& RIGHT(LEFT(Podloga!F36,8),6) &" / "& RIGHT(LEFT(Podloga!E36,8),6) -> Indeks 21. pl / 20. pr
C4: =Podloga!B36 -> 2019. planirano | D4: =Podloga!C36 -> 2019. ostvareno | E4: =Podloga!D36 -> 2020. planirano | F4: =Podloga!E36 -> 2020. procijenjeno | G4: =Podloga!F36 -> 2021. planirano
A5: 1. | B5: POSLOVNI PRIHODI | C5: =SUM(C6:C10) -> 13102025.76 | D5: =SUM(D6:D10) -> 14040963 | E5: =SUM(E6:E10) -> 12699000 | F5: 12699000 | G5: 13398120 | H5: =IFERROR(D5/C5*100,) -> 107.1663517 | I5: =IFERROR(F5/E5*100,) -> 100 | J5: =IFERROR(F5/D5*100,) -> 90.44251452 | K5: =IFERROR(E5/C5*100,) -> 96.92394316 | L5: =IFERROR(G5/E5*100,) -> 105.5053154 | M5: =IFERROR(G5/F5*100,) -> 105.5053154
A6: 1.1. | B6: Prihodi od prodaje s poduzetnicima unutar grupe | D6: 0 | H6: =IFERROR(D6/C6*100,) -> 0 | I6: =IFERROR(F6/E6*100,) -> 0 | J6: =IFERROR(F6/D6*100,) -> 0 | K6: =IFERROR(E6/C6*100,) -> 0 | L6: =IFERROR(G6/E6*100,) -> 0 | M6: =IFERROR(G6/F6*100,) -> 0
A7: 1.2. | B7: Prihodi od prodaje | C7: 12124990 | D7: 13053753 | E7: 11749000 | F7: 11749000 | G7: 12448120 | H7: 107.6599073 | I7: 100 | J7: 90.00476721 | K7: 96.89904899 | L7: 105.9504639 | M7: 105.9504639
A8: 1.3. | B8: Prihodi na temelju upotrebe vlastitih proizvoda, robe i usluga | D8: 11961 | H8: 0 | I8: 0 | J8: 0 | K8: 0 | L8: 0 | M8: 0
A9: 1.4. | B9: Ostali poslovni prihodi s poduzetnicima unutar grupe | D9: 0 | H9: 0 | I9: 0 | J9: 0 | K9: 0 | L9: 0 | M9: 0
A10: 1.5. | B10: Ostali poslovni prihodi | C10: 977035.76 | D10: 975249 | E10: 950000 | F10: 950000 | G10: 950000 | H10: 99.8171244 | I10: 100 | J10: 97.41102016 | K10: 97.23287917 | L10: 100 | M10: 100
A11: 2. | B11: POSLOVNI RASHODI | C11: =C12+C13+C17+C21+C22+C23+C26+C33 -> 12817809.82 | D11: =D12+D13+D17+D21+D22+D23+D26+D33 -> 13583337 | E11: =E12+E13+E17+E21+E22+E23+E26+E33 -> 12571000 | F11: 12571000 | G11: 13011500 | H11: 105.9723712 | I11: 100 | J11: 92.54721428 | K11: 98.07447744 | L11: 103.5040967 | M11: 103.5040967
A12: 2.1. | B12: Promjene vrijednosti zaliha proizvodnje u tijeku i gotovih proizvoda | H12: 0 | I12: 0 | J12: 0 | K12: 0 | L12: 0 | M12: 0
A13: 2.2. | B13: Materijalni troškovi | C13: =SUM(C14:C16) -> 3910250.11 | D13: =SUM(D14:D16) -> 4373759 | E13: 3877000 | F13: 3877000 | G13: 3955000 | H13: 111.8536891 | I13: 100 | J13: 88.64228687 | K13: 99.14966795 | L13: 102.0118648 | M13: 102.0118648
A14: 2.2.1. | B14: Troškovi sirovina i materijala | C14: 1530005.792 | D14: 1747184 | E14: 1340000 | F14: 1340000 | G14: 1425000 | H14: 114.1946004 | I14: 100 | J14: 76.69484153 | K14: 87.58136777 | L14: 106.3432836 | M14: 106.3432836
A15: 2.2.2. | B15: Troškovi prodane robe | C15: 26587.39848 | D15: 895 | E15: 67000 | F15: =67000 -> 67000 | G15: 15000 | H15: 3.366256389 | I15: 100 | J15: 7486.03352 | K15: 251.9990817 | L15: 22.3880597 | M15: 22.3880597
A16: 2.2.3. | B16: Ostali vanjski troškovi | C16: 2353656.919 | D16: 2625680 | E16: 2470000 | F16: 2470000 | G16: 2515000 | H16: 111.5574653 | I16: 100 | J16: 94.07086926 | K16: 104.9430773 | L16: 101.8218623 | M16: 101.8218623
A17: 2.3. | B17: Troškovi osoblja | C17: =SUM(C18:C20) -> 6002555.317 | D17: =SUM(D18:D20) -> 6089650 | E17: 6044000 | F17: 6044000 | G17: 6220000 | H17: 101.4509601 | I17: 100 | J17: 99.25036743 | K17: 100.6904507 | L17: 102.9119788 | M17: 102.9119788
A18: 2.3.1. | B18: Neto plaće i nadnice | C18: 3961686.51 | D18: 4068772 | E18: 4038000 | F18: 4038000 | G18: 4150000 | H18: 102.7030279 | I18: 100 | J18: 99.24370301 | K18: 101.926288 | L18: 102.7736503 | M18: 102.7736503
A19: 2.3.2. | B19: Troškovi poreza i doprinosa iz plaća | C19: 1140485.51 | D19: 1158395 | E19: 1150000 | F19: 1150000 | G19: 1185000 | H19: 101.5703391 | I19: 100 | J19: 99.27529038 | K19: 100.8342491 | L19: 103.0434783 | M19: 103.0434783
A20: 2.3.3. | B20: Doprinosi na plaće | C20: 900383.2976 | D20: 862483 | E20: 856000 | F20: 856000 | G20: 885000 | H20: 95.79064852 | I20: 100 | J20: 99.24833301 | K20: 95.07062184 | L20: 103.3878505 | M20: 103.3878505
A21: 2.4. | B21: Amortizacija | C21: 1475586.893 | D21: 1399338 | E21: 1315000 | F21: 1315000 | G21: 1380000 | H21: 94.83263962 | I21: 100 | J21: 93.97300724 | K21: 89.11708329 | L21: 104.9429658 | M21: 104.9429658
A22: 2.5. | B22: Ostali troškovi | C22: 1415277.287 | D22: 1674874 | E22: 1320000 | F22: 1320000 | G22: 1450000 | H22: 118.3424631 | I22: 100 | J22: 78.81189869 | K22: 93.26794209 | L22: 109.8484848 | M22: 109.8484848
A23: 2.6. | B23: Vrijednosna usklađenja | C23: =SUM(C24:C25) -> 0 | D23: =SUM(D24:D25) -> 0 | E23: 0 | F23: 0 | G23: 0 | H23: 0 | I23: 0 | J23: 0 | K23: 0 | L23: 0 | M23: 0
A24: 2.6.1. | B24: Dugotrajne imovine (osim financijske imovine) | H24: 0 | I24: 0 | J24: 0 | K24: 0 | L24: 0 | M24: 0
A25: 2.6.2. | B25: Kratkotrajne imovine (osim financijske imovine) | H25: 0 | I25: 0 | J25: 0 | K25: 0 | L25: 0 | M25: 0
A26: 2.7. | B26: Rezerviranja | C26: =SUM(C27:C32) -> 0 | D26: =SUM(D27:D32) -> 0 | E26: 0 | F26: 0 | G26: 0 | H26: 0 | I26: 0 | J26: 0 | K26: 0 | L26: 0 | M26: 0
A27: 2.7.1. | B27: Rezerviranja za mirovine, otpremnine i slične obveze | H27: 0 | I27: 0 | J27: 0 | K27: 0 | L27: 0 | M27: 0
A28: 2.7.2. | B28: Rezerviranja za porezne obveze | H28: 0 | I28: 0 | J28: 0 | K28: 0 | L28: 0 | M28: 0
A29: 2.7.3. | B29: Rezerviranja za započete sudske sporove | H29: 0 | I29: 0 | J29: 0 | K29: 0 | L29: 0 | M29: 0
A30: 2.7.4. | B30: Rezerviranja za troškove obnavljanja prirodnih bogatstava | H30: 0 | I30: 0 | J30: 0 | K30: 0 | L30: 0 | M30: 0
A31: 2.7.5. | B31: Rezerviranja za troškove u jamstvenim rokovima | H31: 0 | I31: 0 | J31: 0 | K31: 0 | L31: 0 | M31: 0
A32: 2.7.6. | B32: Druga rezerviranja | H32: 0 | I32: 0 | J32: 0 | K32: 0 | L32: 0 | M32: 0
A33: 2.8. | B33: Ostali poslovni rashodi | C33: 14140.2135 | D33: 45716 | E33: 15000 | F33: 15000 | G33: 6500 | H33: 323.304878 | I33: 100 | J33: 32.81126958 | K33: 106.0804351 | L33: 43.33333333 | M33: 43.33333333
A34: 3. | B34: FINANCIJSKI PRIHODI | C34: =SUM(C35:C44) -> 30000 | D34: =SUM(D35:D44) -> 109087 | E34: =SUM(E35:E44) -> 191200 | F34: 191200 | G34: 16100 | H34: 363.6233333 | I34: 100 | J34: 175.2729473 | K34: 637.3333333 | L34: 8.420502092 | M34: 8.420502092
A35: 3.1. | B35: Prihodi od ulaganja u udjele (dionice) poduzetnika unutar grupe | H35: 0 | I35: 0 | J35: 0 | K35: 0 | L35: 0 | M35: 0
A36: 3.2. | B36: Prihodi od ulaganja u udjele (dionice) društava povezanih sudjelujućim interesom | H36: 0 | I36: 0 | J36: 0 | K36: 0 | L36: 0 | M36: 0
A37: 3.3. | B37: Prihodi od ostalih dugotrajnih financijskih ulaganja i zajmova poduzetnicima unutar grupe | H37: 0 | I37: 0 | J37: 0 | K37: 0 | L37: 0 | M37: 0
A38: 3.4. | B38: Ostali prihodi s osnove kamata iz odnosa s poduzetnicima unutar grupe | H38: 0 | I38: 0 | J38: 0 | K38: 0 | L38: 0 | M38: 0
A39: 3.5. | B39: Tečajne razlike i ostali financijski prihodi iz odnosa s poduzetnicima unutar grupe | H39: 0 | I39: 0 | J39: 0 | K39: 0 | L39: 0 | M39: 0
A40: 3.6. | B40: Prihodi od ostalih dugotrajnih financijskih ulaganja i zajmova | D40: 50000 | H40: 0 | I40: 0 | J40: 0 | K40: 0 | L40: 0 | M40: 0
A41: 3.7. | B41: Ostali prihodi s osnove kamata | D41: 2877 | E41: 1200 | F41: 1200 | G41: 1100 | H41: 0 | I41: 100 | J41: 41.7101147 | K41: 0 | L41: 91.66666667 | M41: 91.66666667
A42: 3.8. | B42: Tečajne razlike i ostali financijski prihodi | C42: 30000 | D42: 56210 | E42: 190000 | F42: 190000 | G42: 15000 | H42: 187.3666667 | I42: 100 | J42: 338.0181462 | K42: 633.3333333 | L42: 7.894736842 | M42: 7.894736842
A43: 3.9. | B43: Nerealizirani dobici (prihodi) od financijske imovine | H43: 0 | I43: 0 | J43: 0 | K43: 0 | L43: 0 | M43: 0
A44: 3.10. | B44: Ostali financijski prihodi | H44: 0 | I44: 0 | J44: 0 | K44: 0 | L44: 0 | M44: 0
A45: 4. | B45: FINANCIJSKI RASHODI | C45: =SUM(C46:C52) -> 40000 | D45: =SUM(D46:D52) -> 304251 | E45: =SUM(E46:E52) -> 5510 | F45: 5510 | G45: 15000 | H45: 760.6275 | I45: 100 | J45: 1.81100473 | K45: 13.775 | L45: 272.2323049 | M45: 272.2323049
A46: 4.1. | B46: Rashodi s osnove kamata i slični rashodi s poduzetnicima unutar grupe | H46: 0 | I46: 0 | J46: 0 | K46: 0 | L46: 0 | M46: 0
A47: 4.2. | B47: Tečajne razlike i drugi rashodi s poduzetnicima unutar grupe | H47: 0 | I47: 0 | J47: 0 | K47: 0 | L47: 0 | M47: 0
A48: 4.3. | B48: Rashodi s osnove kamata i slični rashodi | D48: 22 | E48: 310 | F48: 310 | H48: 0 | I48: 100 | J48: 1409.090909 | K48: 0 | L48: 0 | M48: 0
A49: 4.4. | B49: Tečajne razlike i drugi rashodi | C49: 40000 | D49: 4629 | E49: 5200 | F49: 5200 | G49: 15000 | H49: 11.5725 | I49: 100 | J49: 112.3352776 | K49: 13 | L49: 288.4615385 | M49: 288.4615385
A50: 4.5. | B50: Nerealizirani gubici (rashodi) od financijske imovine | D50: 299600 | H50: 0 | I50: 0 | J50: 0 | K50: 0 | L50: 0 | M50: 0
A51: 4.6. | B51: Vrijednosna usklađenja financijske imovine (neto) | H51: 0 | I51: 0 | J51: 0 | K51: 0 | L51: 0 | M51: 0
A52: 4.7. | B52: Ostali financijski rashodi | H52: 0 | I52: 0 | J52: 0 | K52: 0 | L52: 0 | M52: 0
A53: 5. | B53: UDIO U DOBITI OD DRUŠTAVA POVEZANIH SUDJELUJUĆIM INTERESOM | H53: 0 | I53: 0 | J53: 0 | K53: 0 | L53: 0 | M53: 0
A54: 6. | B54: UDIO U DOBITI OD ZAJEDNIČKIH POTHVATA | H54: 0 | I54: 0 | J54: 0 | K54: 0 | L54: 0 | M54: 0
A55: 7. | B55: UDIO U GUBITKU OD DRUŠTAVA POVEZANIH SUDJELUJUĆIM INTERESOM | H55: 0 | I55: 0 | J55: 0 | K55: 0 | L55: 0 | M55: 0
A56: 8. | B56: UDIO U GUBITKU OD ZAJEDNIČKIH POTHVATA | H56: 0 | I56: 0 | J56: 0 | K56: 0 | L56: 0 | M56: 0
A57: 9. | B57: UKUPNI PRIHODI | C57: =C5+C34+C53+C54 -> 13132025.76 | D57: 14150050 | E57: =E5+E34+E53+E54 -> 12890200 | F57: 12890200 | G57: 13414220 | H57: 107.7522254 | I57: 100 | J57: 91.09649789 | K57: 98.15850376 | L57: 104.0652589 | M57: 104.0652589
A58: 10. | B58: UKUPNI RASHODI | C58: =C11+C45+C55+C56 -> 12857809.82 | D58: 13887588 | E58: =E11+E45+E55+E56 -> 12576510 | F58: 12576510 | G58: 13026500 | H58: 108.0089704 | I58: 100 | J58: 90.55935415 | K58: 97.812226 | L58: 103.5780197 | M58: 103.5780197
A59: 11. | B59: DOBIT ILI GUBITAK PRIJE OPOREZIVANJA | C59: =C57-C58 -> 274215.9399 | D59: =D57-D58 -> 262462 | E59: =E57-E58 -> 313690 | F59: 313690 | G59: 387720 | H59: 95.71361901 | I59: 100 | J59: 119.5182541 | K59: 114.3952463 | L59: 123.5997322 | M59: =IFERROR(G59/F59*100,) -> 123.5997322
A60: 11.1. | B60: Dobit prije oporezivanja | C60: =IF(C59>0,C59,) -> 274215.9399 | D60: 262462 | E60: 313690 | F60: 313690 | G60: 387720 | H60: 95.71361901 | I60: 100 | J60: 119.5182541 | K60: 114.3952463 | L60: 123.5997322 | M60: 123.5997322
A61: 11.2. | B61: Gubitak prije oporezivanja | C61: =IF(C59<0,C59,) -> 0 | D61: 0 | E61: 0 | F61: 0 | G61: 0 | H61: 0 | I61: 0 | J61: 0 | K61: 0 | L61: 0 | M61: 0
A62: 12. | B62: POREZ NA DOBIT | H62: 0 | I62: 0 | J62: 0 | K62: 0 | L62: 0 | M62: 0
A63: 13. | B63: DOBIT ILI GUBITAK RAZDOBLJA | C63: =C59-C62 -> 274215.9399 | D63: =D59-D62 -> 262462 | E63: =E59-E62 -> 313690 | F63: 313690 | G63: 387720 | H63: 95.71361901 | I63: 100 | J63: 119.5182541 | K63: =IFERROR(E63/C63*100,) -> 114.3952463 | L63: 123.5997322 | M63: 123.5997322
A64: 13.1. | B64: Dobit razdoblja | C64: =IF(C63>0,C63,) -> 274215.9399 | D64: 262462 | E64: 313690 | F64: 313690 | G64: 387720 | H64: 95.71361901 | I64: 100 | J64: 119.5182541 | K64: 114.3952463 | L64: 123.5997322 | M64: 123.5997322
A65: 13.2. | B65: Gubitak razdoblja | C65: =IF(C63<0,C63,) -> 0 | D65: 0 | E65: 0 | F65: 0 | G65: 0 | H65: 0 | I65: 0 | J65: 0 | K65: 0 | L65: 0 | M65: 0
A66: * DODATAK RDG -u (popunjava trgovačko društvo koje sastavlja konsolidirani godišnji financijski izvještaj)
A67: 14. | B67: DOBIT ILI GUBITAK RAZDOBLJA | C67: =IF((C68+C69)=C63,C63,"Neodgovarajuća raspodjela") -> Neodgovarajuća raspodjela | D67: =IF((D68+D69)=D63,D63,"Neodgovarajuća raspodjela") -> Neodgovarajuća raspodjela | E67: =IF((E68+E69)=E63,E63,"Neodgovarajuća raspodjela") -> Neodgovarajuća raspodjela | F67: =IF((F68+F69)=F63,F63,"Neodgovarajuća raspodjela") -> Neodgovarajuća raspodjela | G67: =IF((G68+G69)=G63,G63,"Neodgovarajuća raspodjela") -> Neodgovarajuća raspodjela | H67: =IFERROR(D67/C67*100,) -> 0 | I67: =IFERROR(F67/E67*100,) -> 0 | J67: =IFERROR(F67/D67*100,) -> 0 | K67: =IFERROR(E67/C67*100,) -> 0 | L67: =IFERROR(G67/E67*100,) -> 0 | M67: =IFERROR(G67/F67*100,) -> 0
A68: 14.1. | B68: Pripisana imateljima kapitala matice | H68: 0 | I68: 0 | J68: 0 | K68: 0 | L68: 0 | M68: 0
A69: 14.2. | B69: Pripisana manjinskom (nekontrolirajućem) interesu | H69: 0 | I69: 0 | J69: 0 | K69: 0 | L69: 0 | M69: 0
A70: IZVJEŠTAJ O OSTALOJ SVEOBUHVATNOJ DOBITI (popunjava trgovačko društvo obveznik primjene MSFI-a)
A71: 1. | B71: DOBIT ILI GUBITAK RAZDOBLJA | C71: =C63 -> 274215.9399 | D71: 262462 | E71: =E63 -> 313690 | F71: =F63 -> 313690 | G71: =G63 -> 387720 | H71: =IFERROR(D71/C71*100,) -> 95.71361901 | I71: =IFERROR(F71/E71*100,) -> 100 | J71: =IFERROR(F71/D71*100,) -> 119.5182541 | K71: =IFERROR(E71/C71*100,) -> 114.3952463 | L71: =IFERROR(G71/E71*100,) -> 123.5997322 | M71: =IFERROR(G71/F71*100,) -> 123.5997322
A72: 2. | B72: OSTALA SVEOBUHVATNA DOBIT/GUBITAK PRIJE POREZA | C72: =SUM(C73:C80) -> 0 | D72: =SUM(D73:D80) -> 0 | E72: =SUM(E73:E80) -> 0 | F72: =SUM(F73:F80) -> 0 | G72: =SUM(G73:G80) -> 0 | H72: 0 | I72: 0 | J72: 0 | K72: 0 | L72: 0 | M72: 0
A73: 2.1. | B73: Tečajne razlike iz preračuna inozemnog poslovanja | H73: 0 | I73: 0 | J73: 0 | K73: 0 | L73: 0 | M73: 0
A74: 2.2. | B74: Promjene revalorizacijskih rezervi dugotrajne materijalne i nematerijalne imovine | H74: 0 | I74: 0 | J74: 0 | K74: 0 | L74: 0 | M74: 0
A75: 2.3. | B75: Dobit ili gubitak s osnove naknadnog vrednovanja financijske imovine raspoložive za prodaju | H75: 0 | I75: 0 | J75: 0 | K75: 0 | L75: 0 | M75: 0
A76: 2.4. | B76: Dobit ili gubitak s osnove učinkovite zaštite novčanih tokova | H76: 0 | I76: 0 | J76: 0 | K76: 0 | L76: 0 | M76: 0
A77: 2.5. | B77: Dobit ili gubitak s osnove učinkovite zaštite neto ulaganja u inozemstvu | H77: 0 | I77: 0 | J77: 0 | K77: 0 | L77: 0 | M77: 0
A78: 2.6. | B78: Udio u ostaloj sveobuhvatnoj dobiti/gubitku društava povezanih sudjelujućim interesom | H78: 0 | I78: 0 | J78: 0 | K78: 0 | L78: 0 | M78: 0
A79: 2.7. | B79: Aktuarski dobici/gubici po planovima definiranih primanja | H79: 0 | I79: 0 | J79: 0 | K79: 0 | L79: 0 | M79: 0
A80: 2.8. | B80: Ostale nevlasničke promjene kapitala | H80: 0 | I80: 0 | J80: 0 | K80: 0 | L80: 0 | M80: 0
A81: 3. | B81: POREZ NA OSTALU SVEOBUHVATNU DOBIT RAZDOBLJA | H81: 0 | I81: 0 | J81: 0 | K81: 0 | L81: 0 | M81: 0
A82: 4. | B82: NETO OSTALA SVEOBUHVATNA DOBIT ILI GUBITAK | C82: =C72-C81 -> 0 | D82: =D72-D81 -> 0 | E82: =E72-E81 -> 0 | F82: =F72-F81 -> 0 | G82: =G72-G81 -> 0 | H82: 0 | I82: 0 | J82: 0 | K82: 0 | L82: 0 | M82: 0
A83: 5. | B83: SVEOBUHVATNA DOBIT ILI GUBITAK RAZDOBLJA | C83: =C71+C82 -> 274215.9399 | D83: =D71+D82 -> 262462 | E83: =E71+E82 -> 313690 | F83: =F71+F82 -> 313690 | G83: =G71+G82 -> 387720 | H83: 95.71361901 | I83: 100 | J83: 119.5182541 | K83: 114.3952463 | L83: 123.5997322 | M83: 123.5997322
A84: * DODATAK IZVJEŠTAJU O OSTALOJ SVEOBUHVATNOJ DOBITI (popunjava trgovačko društvo koje sastavlja konsolidirani godišnji financijski izvještaj)
A85: 6. | B85: SVEOBUHVATNA DOBIT ILI GUBITAK RAZDOBLJA | C85: =IF((C86+C87)=C83,C83,"Neodgovarajuća raspodjela") -> Neodgovarajuća raspodjela | D85: Neodgovarajuća raspodjela | E85: =IF((E86+E87)=E83,E83,"Neodgovarajuća raspodjela") -> Neodgovarajuća raspodjela | F85: =IF((F86+F87)=F83,F83,"Neodgovarajuća raspodjela") -> Neodgovarajuća raspodjela | G85: =IF((G86+G87)=G83,G83,"Neodgovarajuća raspodjela") -> Neodgovarajuća raspodjela | H85: =IFERROR(D85/C85*100,) -> 0 | I85: =IFERROR(F85/E85*100,) -> 0 | J85: =IFERROR(F85/D85*100,) -> 0 | K85: =IFERROR(E85/C85*100,) -> 0 | L85: =IFERROR(G85/E85*100,) -> 0 | M85: =IFERROR(G85/F85*100,) -> 0
A86: 6.1. | B86: Pripisana imateljima kapitala matice | H86: 0 | I86: 0 | J86: 0 | K86: 0 | L86: 0 | M86: 0
A87: 6.2. | B87: Pripisana manjinskom interesu | H87: 0 | I87: 0 | J87: 0 | K87: 0 | L87: 0 | M87: 0

Sheet _TM_Ključni poslovni pokazatelj (hidden)
A1: Left | B1: Top | C1: Right | D1: Bottom | E1: Ref
A2: 1 | B2: 1 | C2: 3 | D2: 14 | E2: $A$1:$C$14

Sheet NT dir.
A1: IZVJEŠTAJ O NOVČANOM TOKU - DIREKTNA METODA
A2: Obveznik: | B2: =IF(ISBLANK(Podloga!B2),"",Podloga!B2) -> LUKA-VUKOVAR d.o.o. | C2: =IF(C50>C49,"Povećanje novca i novčanih ekvivalenata u razdoblju",IF(C50=C49,"Stagnacija novca i novčanih ekvivalenata u razdoblju","Smanjenje novca i novčanih ekvivalenata u razdoblju")) -> Povećanje novca i novčanih ekvivalenata u razdoblju | D2: Povećanje novca i novčanih ekvivalenata u razdoblju | E2: Povećanje novca i novčanih ekvivalenata u razdoblju | F2: Povećanje novca i novčanih ekvivalenata u razdoblju | G2: Povećanje novca i novčanih ekvivalenata u razdoblju
C3: Za razdoblje od 1. siječnja do 31. prosinca
C4: I Z N O S (u 000 kn) | H4: ="Indeks "& RIGHT(LEFT(Podloga!C36,7),5) &" / "& RIGHT(LEFT(Podloga!B36,8),6) -> Indeks 19. o / 19. pl | I4: ="Indeks "& RIGHT(LEFT(Podloga!E36,8),6) &" / "& RIGHT(LEFT(Podloga!D36,8),6) -> Indeks 20. pr / 20. pl | J4: ="Indeks "& RIGHT(LEFT(Podloga!E36,8),6) &" / "& RIGHT(LEFT(Podloga!C36,7),5) -> Indeks 20. pr / 19. o | K4: ="Indeks "& RIGHT(LEFT(Podloga!D36,8),6) &" / "& RIGHT(LEFT(Podloga!B36,8),6) -> Indeks 20. pl / 19. pl | L4: ="Indeks "& RIGHT(LEFT(Podloga!F36,8),6) &" / "& RIGHT(LEFT(Podloga!D36,8),6) -> Indeks 21. pl / 20. pl | M4: ="Indeks "& RIGHT(LEFT(Podloga!F36,8),6) &" / "& RIGHT(LEFT(Podloga!E36,8),6) -> Indeks 21. pl / 20. pr
C5: =Podloga!B36 -> 2019. planirano | D5: =Podloga!C36 -> 2019. ostvareno | E5: =Podloga!D36 -> 2020. planirano | F5: =Podloga!E36 -> 2020. procijenjeno | G5: =Podloga!F36 -> 2021. planirano
A6: NOVČANI TOKOVI OD POSLOVNIH AKTIVNOSTI
A7: 1. | B7: Novčani primici od kupaca | C7: 12717612.98 | D7: 15195163 | E7: 12700000 | F7: 12700000 | G7: 12980000 | H7: =IFERROR(D7/C7*100,) -> 119.4812503 | I7: =IFERROR(F7/E7*100,) -> 100 | J7: =IFERROR(F7/D7*100,) -> 83.57922847 | K7: =IFERROR(E7/C7*100,) -> 99.86150719 | L7: =IFERROR(G7/E7*100,) -> 102.2047244 | M7: =IFERROR(G7/F7*100,) -> 102.2047244
A8: 2. | B8: Novčani primici od tantijema, naknada, provizija i slično | C8: 0 | H8: 0 | I8: =IFERROR(F8/E8*100,) -> 0 | J8: 0 | K8: 0 | L8: =IFERROR(G8/E8*100,) -> 0 | M8: =IFERROR(G8/F8*100,) -> 0
A9: 3. | B9: Novčani primici od osiguranja za naknadu šteta | D9: 31608 | H9: 0 | I9: 0 | J9: 0 | K9: 0 | L9: 0 | M9: 0
A10: 4. | B10: Novčani primici s osnove povrata poreza | C10: 0 | H10: 0 | I10: 0 | J10: 0 | K10: 0 | L10: 0 | M10: 0
A11: 5 | B11: Novčani izdaci dobavljačima | C11: -4585521.07 | D11: -5111433 | E11: -4235000 | F11: -4235000 | G11: -4500000 | H11: 111.4689677 | I11: 100 | J11: 82.85347768 | K11: 92.35591627 | L11: 106.257379 | M11: 106.257379
A12: 6 | B12: Novčani izdaci za zaposlene | C12: -4926028.8 | D12: -5154302 | E12: -5070000 | F12: -5070000 | G12: -5150000 | H12: 104.6340208 | I12: 100 | J12: 98.36443421 | K12: 102.9226626 | L12: 101.5779093 | M12: 101.5779093
A13: 7 | B13: Novčani izdaci za osiguranje za naknadu štete | D13: -4000 | H13: 0 | I13: 0 | J13: 0 | K13: 0 | L13: 0 | M13: 0
A14: 8 | B14: Ostali novčani primici i izdaci | C14: -1898492.978 | D14: -2339352 | E14: -1852145 | F14: =-1706286-145859 -> -1852145 | G14: =-2027955-140001 -> -2167956 | H14: 123.221525 | I14: 100 | J14: 79.17342067 | K14: 97.55869637 | L14: 117.0510948 | M14: 117.0510948
A15: I. | B15: Novac iz poslovanja | C15: =SUM(C7:C14) -> 1307570.132 | D15: =SUM(D7:D14) -> 2617684 | E15: =SUM(E7:E14) -> 1542855 | F15: 1542855 | G15: 1162044 | H15: =IFERROR(D15/C15*100,) -> 200.1945392 | I15: 100 | J15: =IFERROR(F15/D15*100,) -> 58.93969631 | K15: =IFERROR(E15/C15*100,) -> 117.9940534 | L15: 75.31777127 | M15: 75.31777127
A16: 9 | B16: Novčani izdaci za kamate | E16: -310 | F16: -310 | H16: 0 | I16: 100 | J16: 0 | K16: 0 | L16: 0 | M16: 0
A17: 10 | B17: Plaćeni porez na dobit | H17: 0 | I17: 0 | J17: 0 | K17: 0 | L17: 0 | M17: 0
A18: A. NETO NOVČANI TOKOVI OD POSLOVNIH AKTIVNOSTI | C18: =SUM(C15:C17) -> 1307570.132 | D18: =SUM(D15:D17) -> 2617684 | E18: 1542545 | F18: 1542545 | G18: 1162044 | H18: 200.1945392 | I18: 100 | J18: 58.92785378 | K18: 117.9703453 | L18: 75.33290763 | M18: 75.33290763
A19: NOVČANI TOKOVI OD INVESTICIJSKIH AKTIVNOSTI
A20: 1. | B20: Novčani primici od prodaje dugotrajne materijalne i nematerijalne imovine | H20: 0 | I20: 0 | J20: 0 | K20: 0 | L20: 0 | M20: 0
A21: 2. | B21: Novčani primici od prodaje financijskih instrumenata | D21: 50000 | H21: 0 | I21: 0 | J21: 0 | K21: 0 | L21: 0 | M21: 0
A22: 3. | B22: Novčani primici od kamata | D22: 2876 | E22: 1100 | F22: 1100 | H22: 0 | I22: 100 | J22: 38.24756606 | K22: 0 | L22: 0 | M22: 0
A23: 4. | B23: Novčani primici od dividendi | H23: 0 | I23: 0 | J23: 0 | K23: 0 | L23: 0 | M23: 0
A24: 5. | B24: Novčani primici s osnove povrata danih zajmova i štednih uloga | H24: 0 | I24: 0 | J24: 0 | K24: 0 | L24: 0 | M24: 0
A25: 6. | B25: Ostali novčani primici od investicijskih aktivnosti | H25: 0 | I25: 0 | J25: 0 | K25: 0 | L25: 0 | M25: 0
A26: II. | B26: Ukupno novčani primici od investicijskih aktivnosti | C26: =SUM(C20:C25) -> 0 | D26: =SUM(D20:D25) -> 52876 | E26: 1100 | F26: 1100 | G26: 0 | H26: 0 | I26: 100 | J26: 2.080338906 | K26: 0 | L26: 0 | M26: 0
A27: 1. | B27: Novčani izdaci za kupnju dugotrajne materijalne i nematerijalne imovine | C27: -41000 | D27: -1372976 | E27: -885000 | F27: -885000 | G27: -1100000 | H27: 3348.721951 | I27: 100 | J27: 64.4585193 | K27: 2158.536585 | L27: 124.2937853 | M27: 124.2937853
A28: 2. | B28: Novčani izdaci za stjecanje financijskih instrumenata | H28: 0 | I28: 0 | J28: 0 | K28: 0 | L28: 0 | M28: 0
A29: 3. | B29: Novčani izdaci s osnove danih zajmova i štednih uloga | H29: 0 | I29: 0 | J29: 0 | K29: 0 | L29: 0 | M29: 0
A30: 4. | B30: Stjecanje ovisnog društva, umanjeno za stečeni novac | H30: 0 | I30: 0 | J30: 0 | K30: 0 | L30: 0 | M30: 0
A31: 5. | B31: Ostali novčani izdaci od investicijskih aktivnosti | H31: 0 | I31: 0 | J31: 0 | K31: 0 | L31: 0 | M31: 0
A32: III. | B32: Ukupno novčani izdaci od investicijskih aktivnosti | C32: =SUM(C27:C31) -> -41000 | D32: =SUM(D27:D31) -> -1372976 | E32: -885000 | F32: -885000 | G32: -1100000 | H32: 3348.721951 | I32: 100 | J32: 64.4585193 | K32: 2158.536585 | L32: 124.2937853 | M32: 124.2937853
A33: B. NETO NOVČANI TOKOVI OD INVESTICIJSKIH AKTIVNOSTI | C33: =C26+C32 -> -41000 | D33: =D26+D32 -> -1320100 | E33: -883900 | F33: -883900 | G33: -1100000 | H33: 3219.756098 | I33: 100 | J33: 66.95704871 | K33: 2155.853659 | L33: 124.448467 | M33: 124.448467
A34: NOVČANI TOKOVI OD FINANCIJSKIH AKTIVNOSTI
A35: 1. | B35: Novčani primici od povećanja temeljnog (upisanog) kapitala | H35: 0 | I35: 0 | J35: 0 | K35: 0 | L35: 0 | M35: 0
A36: 2. | B36: Novčani primici od izdavanja vlasničkih i dužničkih financijskih instrumenata | H36: 0 | I36: 0 | J36: 0 | K36: 0 | L36: 0 | M36: 0
A37: 3. | B37: Novčani primici od glavnice kredita, pozajmica i drugih posudbi | H37: 0 | I37: 0 | J37: 0 | K37: 0 | L37: 0 | M37: 0
A38: 4. | B38: Ostali novčani primici od financijskih aktivnosti | H38: 0 | I38: 0 | J38: 0 | K38: 0 | L38: 0 | M38: 0
A39: IV. | B39: Ukupno novčani primici od financijskih aktivnosti | C39: =SUM(C35:C38) -> 0 | D39: =SUM(D35:D38) -> 0 | E39: 0 | F39: 0 | G39: 0 | H39: 0 | I39: 0 | J39: 0 | K39: 0 | L39: 0 | M39: 0
A40: 1. | B40: Novčani izdaci za otplatu glavnice kredita, pozajmica i drugih posudbi i dužničkih financijskih instrumenata | H40: 0 | I40: 0 | J40: 0 | K40: 0 | L40: 0 | M40: 0
A41: 2. | B41: Novčani izdaci za isplatu dividendi | H41: 0 | I41: 0 | J41: 0 | K41: 0 | L41: 0 | M41: 0
A42: 3. | B42: Novčani izdaci za financijski najam | H42: 0 | I42: 0 | J42: 0 | K42: 0 | L42: 0 | M42: 0
A43: 4. | B43: Novčani izdaci za otkup vlastitih dionica i smanjenje temeljnog (upisanog) kapitala | H43: 0 | I43: 0 | J43: 0 | K43: 0 | L43: 0 | M43: 0
A44: 5. | B44: Ostali novčani izdaci od financijskih aktivnosti | H44: 0 | I44: 0 | J44: 0 | K44: 0 | L44: 0 | M44: 0
A45: V. | B45: Ukupno novčani izdaci od financijskih aktivnosti | C45: =SUM(C40:C44) -> 0 | D45: =SUM(D40:D44) -> 0 | E45: 0 | F45: 0 | G45: 0 | H45: 0 | I45: 0 | J45: 0 | K45: 0 | L45: 0 | M45: 0
A46: C. NETO NOVČANI TOKOVI OD FINANCIJSKIH AKTIVNOSTI | C46: =C39+C45 -> 0 | D46: =D39+D45 -> 0 | E46: 0 | F46: 0 | G46: 0 | H46: 0 | I46: 0 | J46: 0 | K46: 0 | L46: 0 | M46: 0
A47: 1. | B47: Nerealizirane tečajne razlike po novcu i novčanim ekvivalentima | H47: =IFERROR(D47/C47*100,) -> 0 | I47: =IFERROR(F47/E47*100,) -> 0 | J47: =IFERROR(F47/D47*100,) -> 0 | K47: =IFERROR(E47/C47*100,) -> 0 | L47: =IFERROR(G47/E47*100,) -> 0 | M47: =IFERROR(G47/F47*100,) -> 0
A48: D. NETO POVEĆANJE ILI SMANJENE NOVČANIH TOKOVA | C48: =C18+C33+C46+C47 -> 1266570.132 | D48: =D18+D33+D46+D47 -> 1297584 | E48: 658645 | F48: 658645 | G48: 62044 | H48: 102.4486499 | I48: 100 | J48: 50.75933427 | K48: 52.00225265 | L48: 9.419945494 | M48: 9.419945494
A49: E. NOVAC I NOVČANI EKVIVALENTI NA POČETKU RAZDOBLJA | C49: 13814280 | D49: 13596566 | E49: 14894150 | F49: 14894150 | G49: =SUM(F50) -> 15552795 | H49: 98.42399314 | I49: 100 | J49: 109.5434685 | K49: 107.817056 | L49: 104.4221725 | M49: 104.4221725
A50: F. NOVAC I NOVČANI EKVIVALENTI NA KRAJU RAZDOBLJA | C50: =C49+C48 -> 15080850.13 | D50: =D49+D48 -> 14894150 | E50: 15552795 | F50: 15552795 | G50: 15614839 | H50: 98.76200526 | I50: 100 | J50: 104.4221725 | K50: 103.1294315 | L50: 100.3989251 | M50: 100.3989251

Sheet NT indir.
A1: IZVJEŠTAJ O NOVČANOM TOKU - INDIREKTNA METODA
A2: Obveznik: | B2: =IF(ISBLANK(Podloga!B2),"",Podloga!B2) -> LUKA-VUKOVAR d.o.o. | C2: =IF(C58>C57,"Povećanje novca i novčanih ekvivalenata u razdoblju",IF(C58=C57,"Stagnacija novca i novčanih ekvivalenata u razdoblju","Smanjenje novca i novčanih ekvivalenata u razdoblju")) -> Stagnacija novca i novčanih ekvivalenata u razdoblju | D2: Stagnacija novca i novčanih ekvivalenata u razdoblju | E2: Stagnacija novca i novčanih ekvivalenata u razdoblju | F2: Stagnacija novca i novčanih ekvivalenata u razdoblju | G2: Stagnacija novca i novčanih ekvivalenata u razdoblju
C3: Za razdoblje od 1. siječnja do 31. prosinca
C4: I Z N O S (u 000 kn) | H4: ="Indeks "& RIGHT(LEFT(Podloga!C36,7),5) &" / "& RIGHT(LEFT(Podloga!B36,8),6) -> Indeks 19. o / 19. pl | I4: ="Indeks "& RIGHT(LEFT(Podloga!E36,8),6) &" / "& RIGHT(LEFT(Podloga!D36,8),6) -> Indeks 20. pr / 20. pl | J4: ="Indeks "& RIGHT(LEFT(Podloga!E36,8),6) &" / "& RIGHT(LEFT(Podloga!C36,7),5) -> Indeks 20. pr / 19. o | K4: ="Indeks "& RIGHT(LEFT(Podloga!D36,8),6) &" / "& RIGHT(LEFT(Podloga!B36,8),6) -> Indeks 20. pl / 19. pl | L4: ="Indeks "& RIGHT(LEFT(Podloga!F36,8),6) &" / "& RIGHT(LEFT(Podloga!D36,8),6) -> Indeks 21. pl / 20. pl | M4: ="Indeks "& RIGHT(LEFT(Podloga!F36,8),6) &" / "& RIGHT(LEFT(Podloga!E36,8),6) -> Indeks 21. pl / 20. pr
C5: =Podloga!B36 -> 2019. planirano | D5: =Podloga!C36 -> 2019. ostvareno | E5: =Podloga!D36 -> 2020. planirano | F5: =Podloga!E36 -> 2020. procijenjeno | G5: =Podloga!F36 -> 2021. planirano
A6: NOVČANI TOKOVI OD POSLOVNIH AKTIVNOSTI
A7: 1. | B7: Dobit prije poreza | H7: =IFERROR(D7/C7*100,) -> 0 | I7: =IFERROR(F7/E7*100,) -> 0 | J7: =IFERROR(F7/D7*100,) -> 0 | K7: =IFERROR(E7/C7*100,) -> 0 | L7: =IFERROR(G7/E7*100,) -> 0 | M7: =IFERROR(G7/F7*100,) -> 0
A8: 2. | B8: Usklađenja | C8: =SUM(C9:C16) -> 0 | D8: =SUM(D9:D16) -> 0 | E8: 0 | F8: 0 | G8: 0 | H8: =IFERROR(D8/C8*100,) -> 0 | I8: =IFERROR(F8/E8*100,) -> 0 | J8: =IFERROR(F8/D8*100,) -> 0 | K8: =IFERROR(E8/C8*100,) -> 0 | L8: =IFERROR(G8/E8*100,) -> 0 | M8: =IFERROR(G8/F8*100,) -> 0
A9: a) | B9: Amortizacija | H9: 0 | I9: 0 | J9: 0 | K9: 0 | L9: 0 | M9: 0
A10: b) | B10: Dobici i gubici od prodaje i vrijednosna usklađenja dugotrajne materijalne i nematerijalne imovine | H10: =IFERROR(D10/C10*100,) -> 0 | I10: =IFERROR(F10/E10*100,) -> 0 | J10: =IFERROR(F10/D10*100,) -> 0 | K10: =IFERROR(E10/C10*100,) -> 0 | L10: =IFERROR(G10/E10*100,) -> 0 | M10: =IFERROR(G10/F10*100,) -> 0
A11: c) | B11: Dobici i gubici od prodaje i nerealizirani dobici i gubici i vrijednosno usklađenje financijske imovine | H11: 0 | I11: 0 | J11: 0 | K11: 0 | L11: 0 | M11: 0
A12: d) | B12: Prihodi od kamata i dividendi | H12: 0 | I12: 0 | J12: 0 | K12: 0 | L12: 0 | M12: 0
A13: e) | B13: Rashodi od kamata | H13: 0 | I13: 0 | J13: 0 | K13: 0 | L13: 0 | M13: 0
A14: f) | B14: Rezerviranja | H14: 0 | I14: 0 | J14: 0 | K14: 0 | L14: 0 | M14: 0
A15: g) | B15: Tečajne razlike (nerealizirane) | H15: 0 | I15: 0 | J15: 0 | K15: 0 | L15: 0 | M15: 0
A16: h) | B16: Ostala usklađenja za nenovčane transakcije i nerealizirane dobitke i gubitke | H16: 0 | I16: 0 | J16: 0 | K16: 0 | L16: 0 | M16: 0
A17: I. | B17: Povećanje ili smanjenje novčanih tokova prije promjena u radnom kapitalu | C17: =C7+C8 -> 0 | D17: =D7+D8 -> 0 | E17: 0 | F17: 0 | G17: 0 | H17: 0 | I17: 0 | J17: 0 | K17: 0 | L17: 0 | M17: 0
A18: 3. | B18: Promjene u radnom kapitalu | C18: =SUM(C19:C22) -> 0 | D18: =SUM(D19:D22) -> 0 | E18: 0 | F18: 0 | G18: 0 | H18: 0 | I18: 0 | J18: 0 | K18: 0 | L18: 0 | M18: 0
A19: a) | B19: Povećanje ili smanjenje kratkoročnih obveza | H19: =IFERROR(D19/C19*100,) -> 0 | I19: =IFERROR(F19/E19*100,) -> 0 | J19: =IFERROR(F19/D19*100,) -> 0 | K19: =IFERROR(E19/C19*100,) -> 0 | L19: =IFERROR(G19/E19*100,) -> 0 | M19: =IFERROR(G19/F19*100,) -> 0
A20: b) | B20: Povećanje ili smanjenje kratkotrajnih potraživanja | H20: =IFERROR(D20/C20*100,) -> 0 | I20: =IFERROR(F20/E20*100,) -> 0 | J20: =IFERROR(F20/D20*100,) -> 0 | K20: =IFERROR(E20/C20*100,) -> 0 | L20: =IFERROR(G20/E20*100,) -> 0 | M20: =IFERROR(G20/F20*100,) -> 0
A21: c) | B21: Povećanje ili smanjenje zaliha | H21: 0 | I21: 0 | J21: 0 | K21: 0 | L21: 0 | M21: 0
A22: d) | B22: Ostala povećanja ili smanjenja radnog kapitala | H22: 0 | I22: 0 | J22: 0 | K22: 0 | L22: 0 | M22: 0
A23: II. | B23: Novac iz poslovanja | C23: =SUM(C17+C18) -> 0 | D23: =SUM(D17+D18) -> 0 | E23: 0 | F23: 0 | G23: 0 | H23: =IFERROR(D23/C23*100,) -> 0 | I23: =IFERROR(F23/E23*100,) -> 0 | J23: =IFERROR(F23/D23*100,) -> 0 | K23: =IFERROR(E23/C23*100,) -> 0 | L23: =IFERROR(G23/E23*100,) -> 0 | M23: =IFERROR(G23/F23*100,) -> 0
A24: 4. | B24: Novčani izdaci za kamate | H24: =IFERROR(D24/C24*100,) -> 0 | I24: =IFERROR(F24/E24*100,) -> 0 | J24: =IFERROR(F24/D24*100,) -> 0 | K24: =IFERROR(E24/C24*100,) -> 0 | L24: =IFERROR(G24/E24*100,) -> 0 | M24: =IFERROR(G24/F24*100,) -> 0
A25: 5. | B25: Plaćeni porez na dobit | H25: 0 | I25: 0 | J25: 0 | K25: 0 | L25: 0 | M25: 0
A26: A. NETO NOVČANI TOKOVI OD POSLOVNIH AKTIVNOSTI | C26: =SUM(C23:C25) -> 0 | D26: =SUM(D23:D25) -> 0 | E26: 0 | F26: 0 | G26: 0 | H26: 0 | I26: 0 | J26: 0 | K26: 0 | L26: 0 | M26: 0
A27: NOVČANI TOKOVI OD INVESTICIJSKIH AKTIVNOSTI
A28: 1. | B28: Novčani primici od prodaje dugotrajne materijalne i nematerijalne imovine | H28: 0 | I28: 0 | J28: 0 | K28: 0 | L28: 0 | M28: 0
A29: 2. | B29: Novčani primici od prodaje financijskih instrumenata | H29: 0 | I29: 0 | J29: 0 | K29: 0 | L29: 0 | M29: 0
A30: 3. | B30: Novčani primici od kamata | H30: 0 | I30: 0 | J30: 0 | K30: 0 | L30: 0 | M30: 0
A31: 4. | B31: Novčani primici od dividendi | H31: 0 | I31: 0 | J31: 0 | K31: 0 | L31: 0 | M31: 0
A32: 5. | B32: Novčani primici s osnove povrata danih zajmova i štednih uloga | H32: 0 | I32: 0 | J32: 0 | K32: 0 | L32: 0 | M32: 0
A33: 6. | B33: Ostali novčani primici od investicijskih aktivnosti | H33: 0 | I33: 0 | J33: 0 | K33: 0 | L33: 0 | M33: 0
A34: II. | B34: Ukupno novčani primici od investicijskih aktivnosti | C34: =SUM(C28:C33) -> 0 | D34: =SUM(D28:D33) -> 0 | E34: 0 | F34: 0 | G34: 0 | H34: 0 | I34: 0 | J34: 0 | K34: 0 | L34: 0 | M34: 0
A35: 1. | B35: Novčani izdaci za kupnju dugotrajne materijalne i nematerijalne imovine | H35: 0 | I35: 0 | J35: 0 | K35: 0 | L35: 0 | M35: 0
A36: 2. | B36: Novčani izdaci za stjecanje financijskih instrumenata | H36: 0 | I36: 0 | J36: 0 | K36: 0 | L36: 0 | M36: 0
A37: 3. | B37: Novčani izdaci s osnove danih zajmova i štednih uloga | H37: 0 | I37: 0 | J37: 0 | K37: 0 | L37: 0 | M37: 0
A38: 4. | B38: Stjecanje ovisnog društva, umanjeno za stečeni novac | H38: 0 | I38: 0 | J38: 0 | K38: 0 | L38: 0 | M38: 0
A39: 5. | B39: Ostali novčani izdaci od investicijskih aktivnosti | H39: 0 | I39: 0 | J39: 0 | K39: 0 | L39: 0 | M39: 0
A40: III. | B40: Ukupno novčani izdaci od investicijskih aktivnosti | C40: =SUM(C35:C39) -> 0 | D40: =SUM(D35:D39) -> 0 | E40: 0 | F40: 0 | G40: 0 | H40: 0 | I40: 0 | J40: 0 | K40: 0 | L40: 0 | M40: 0
A41: B. NETO NOVČANI TOKOVI OD INVESTICIJSKIH AKTIVNOSTI | C41: =C34+C40 -> 0 | D41: =D34+D40 -> 0 | E41: 0 | F41: 0 | G41: 0 | H41: 0 | I41: 0 | J41: 0 | K41: 0 | L41: 0 | M41: 0
A42: NOVČANI TOKOVI OD FINANCIJSKIH AKTIVNOSTI
A43: 1. | B43: Novčani primici od povećanja temeljnog (upisanog) kapitala | H43: 0 | I43: 0 | J43: 0 | K43: 0 | L43: 0 | M43: 0
A44: 2. | B44: Novčani primici od izdavanja vlasničkih i dužničkih financijskih instrumenata | H44: 0 | I44: 0 | J44: 0 | K44: 0 | L44: 0 | M44: 0
A45: 3. | B45: Novčani primici od glavnice kredita, pozajmica i drugih posudbi | H45: 0 | I45: 0 | J45: 0 | K45: 0 | L45: 0 | M45: 0
A46: 4. | B46: Ostali novčani primici od financijskih aktivnosti | H46: 0 | I46: 0 | J46: 0 | K46: 0 | L46: 0 | M46: 0
A47: IV. | B47: Ukupno novčani primici od financijskih aktivnosti | C47: =SUM(C43:C46) -> 0 | D47: =SUM(D43:D46) -> 0 | E47: 0 | F47: 0 | G47: 0 | H47: 0 | I47: 0 | J47: 0 | K47: 0 | L47: 0 | M47: 0
A48: 1. | B48: Novčani izdaci za otplatu glavnice kredita, pozajmica i drugih posudbi i dužničkih financijskih instrumenata | H48: 0 | I48: 0 | J48: 0 | K48: 0 | L48: 0 | M48: 0
A49: 2. | B49: Novčani izdaci za isplatu dividendi | H49: 0 | I49: 0 | J49: 0 | K49: 0 | L49: 0 | M49: 0
A50: 3. | B50: Novčani izdaci za financijski najam | H50: 0 | I50: 0 | J50: 0 | K50: 0 | L50: 0 | M50: 0
A51: 4. | B51: Novčani izdaci za otkup vlastitih dionica i smanjenje temeljnog (upisanog) kapitala | H51: 0 | I51: 0 | J51: 0 | K51: 0 | L51: 0 | M51: 0
A52: 5. | B52: Ostali novčani izdaci od financijskih aktivnosti | H52: 0 | I52: 0 | J52: 0 | K52: 0 | L52: 0 | M52: 0
A53: V. | B53: Ukupno novčani izdaci od financijskih aktivnosti | C53: =SUM(C48:C52) -> 0 | D53: =SUM(D48:D52) -> 0 | E53: 0 | F53: 0 | G53: 0 | H53: 0 | I53: 0 | J53: 0 | K53: 0 | L53: 0 | M53: 0
A54: C. NETO NOVČANI TOKOVI OD FINANCIJSKIH AKTIVNOSTI | C54: =C47+C53 -> 0 | D54: =D47+D53 -> 0 | E54: 0 | F54: 0 | G54: 0 | H54: 0 | I54: 0 | J54: 0 | K54: 0 | L54: 0 | M54: 0
A55: 1. | B55: Nerealizirane tečajne razlike po novcu i novčanim ekvivalentima | H55: =IFERROR(D55/C55*100,) -> 0 | I55: =IFERROR(F55/E55*100,) -> 0 | J55: =IFERROR(F55/D55*100,) -> 0 | K55: =IFERROR(E55/C55*100,) -> 0 | L55: =IFERROR(G55/E55*100,) -> 0 | M55: =IFERROR(G55/F55*100,) -> 0
A56: D. NETO POVEĆANJE ILI SMANJENE NOVČANIH TOKOVA | C56: =C26+C41+C54+C55 -> 0 | D56: =D26+D41+D54+D55 -> 0 | E56: 0 | F56: 0 | G56: 0 | H56: 0 | I56: 0 | J56: 0 | K56: 0 | L56: 0 | M56: 0
A57: E. NOVAC I NOVČANI EKVIVALENTI NA POČETKU RAZDOBLJA | H57: 0 | I57: 0 | J57: 0 | K57: 0 | L57: 0 | M57: 0
A58: F. NOVAC I NOVČANI EKVIVALENTI NA KRAJU RAZDOBLJA | C58: =C57+C56 -> 0 | D58: =D57+D56 -> 0 | E58: 0 | F58: 0 | G58: 0 | H58: 0 | I58: 0 | J58: 0 | K58: 0 | L58: 0 | M58: 0

Sheet MFIN
B2: DODATNE STAVKE
B4: Obveznik: | C4: =IF(ISBLANK(Podloga!B2),"",Podloga!B2) -> LUKA-VUKOVAR d.o.o.
C7: =Podloga!B36 -> 2019. planirano | D7: =Podloga!C36 -> 2019. ostvareno | E7: =Podloga!D36 -> 2020. planirano | F7: =Podloga!E36 -> 2020. procijenjeno | G7: =Podloga!F36 -> 2021. planirano
A8: R.Br. | B8: RAČUN DOBITI I GUBITKA - dodatna razrada
A9: 1. | B9: Operativni prihodi (od 1.1. do 1.n.) - prihodi iz redovnog poslovanja | C9: =SUM(C10:C15) -> 12124990 | D9: =SUM(D10:D15) -> 13065714 | E9: 11749000 | F9: 11749000 | G9: 12448120
A10: 1.1. | B10: Prihodi od prodaje | C10: 12124990 | D10: 13053753 | E10: 11749000 | F10: 11749000 | G10: 12448120
A11: 1.2. | B11: Prihodi na temelju upotrebe vlastitih proizvoda, robe i usluga | D11: 11961
A12: 1.3.
A13: 1.4.
A14: 1.5.
A15: 1.n.
A16: 2. | B16: Neoperativni prihodi (od 2.1 do 2.n.) - jednokratni | C16: =SUM(C17:C22) -> 977035.76 | D16: =SUM(D17:D22) -> 975249 | E16: =SUM(E17:E22) -> 950000 | F16: =SUM(F17:F22) -> 950000 | G16: =SUM(G17:G22) -> 950000
A17: 2.1. | B17: Ostali poslovni prihodi | C17: 977035.76 | D17: 975249 | E17: 950000 | F17: 950000 | G17: 950000
A18: 2.2.
A19: 2.3.
A20: 2.4.
A21: 2.5.
A22: 2.n.
A23: 3. | B23: Državne potpore
A24: I. | B24: Ukupni poslovni prihodi (1.+2.+3.) | C24: =C9+C16+C23 -> 13102025.76 | D24: =D9+D16+D23 -> 14040963 | E24: 12699000 | F24: 12699000 | G24: 13398120
B25: PROVJERA | C25: =(C9+C16+C23)-RDG!C5 -> 0 | D25: =(D9+D16+D23)-RDG!D5 -> 0 | E25: =(E9+E16+E23)-RDG!E5 -> 0 | F25: =(F9+F16+F23)-RDG!F5 -> 0 | G25: =(G9+G16+G23)-RDG!G5 -> 0
A26: 1. | B26: Operativni poslovni rashodi (od 1.1. do 1.n.) | C26: =SUM(C27:C32) -> 3910250.11 | D26: =SUM(D27:D32) -> 4373759 | E26: =SUM(E27:E32) -> 3877000 | F26: =SUM(F27:F32) -> 3877000 | G26: =SUM(G27:G32) -> 3955000
A27: 1.1. | B27: Troškovi sirovina i materijala | C27: 1530005.792 | D27: 1747184 | E27: 1340000 | F27: 1340000 | G27: 1425000
A28: 1.2. | B28: Troškovi prodane robe | C28: 26587.39848 | D28: 895 | E28: 67000 | F28: 67000 | G28: 15000
A29: 1.3. | B29: Ostali vanjski troškovi | C29: 2353656.919 | D29: 2625680 | E29: 2470000 | F29: 2470000 | G29: 2515000
A30: 1.4.
A31: 1.5.
A32: 1.n.
A33: 2. | B33: Neoperativni poslovni rashodi (od 2.1 do 2.n.) | C33: =SUM(C34:C39) -> 1429417.5 | D33: =SUM(D34:D39) -> 1720590 | E33: =SUM(E34:E39) -> 1335000 | F33: =SUM(F34:F39) -> 1335000 | G33: =SUM(G34:G39) -> 1456500
A34: 2.1. | B34: Ostali troškovi | C34: 1415277.287 | D34: 1674874 | E34: 1320000 | F34: 1320000 | G34: 1450000
A35: 2.2. | B35: Ostali poslovni rashodi | C35: 14140.2135 | D35: 45716 | E35: 15000 | F35: 15000 | G35: 6500
A36: 2.3.
A37: 2.4.
A38: 2.5.
A39: 2.n.
A40: 3. | B40: Troškovi osoblja | C40: =RDG!C17 -> 6002555.317 | D40: =RDG!D17 -> 6089650 | E40: =RDG!E17 -> 6044000 | F40: =RDG!F17 -> 6044000 | G40: =RDG!G17 -> 6220000
A41: 4. | B41: Amortizacija | C41: =RDG!C21 -> 1475586.893 | D41: =RDG!D21 -> 1399338 | E41: =RDG!E21 -> 1315000 | F41: =RDG!F21 -> 1315000 | G41: =RDG!G21 -> 1380000
A42: 5. | B42: Promjena vrijednosti i rezerviranja | C42: =RDG!C12+RDG!C23+RDG!C26 -> 0 | D42: =RDG!D12+RDG!D23+RDG!D26 -> 0 | E42: =RDG!E12+RDG!E23+RDG!E26 -> 0 | F42: =RDG!F12+RDG!F23+RDG!F26 -> 0 | G42: =RDG!G12+RDG!G23+RDG!G26 -> 0
A43: II. | B43: Ukupni poslovni rashodi | C43: =C26+C33+C40+C41+C42 -> 12817809.82 | D43: =D26+D33+D40+D41+D42 -> 13583337 | E43: 12571000 | F43: 12571000 | G43: 13011500
B44: PROVJERA | C44: =(C26+C33+C40+C41+C42)-RDG!C11 -> 0 | D44: =(D26+D33+D40+D41+D42)-RDG!D11 -> 0 | E44: =(E26+E33+E40+E41+E42)-RDG!E11 -> 0 | F44: =(F26+F33+F40+F41+F42)-RDG!F11 -> 0 | G44: =(G26+G33+G40+G41+G42)-RDG!G11 -> 0
A45: III. | B45: UKUPNI FINANCIJSKI PRIHODI (od 1. do 4.) | C45: =C46+C51+C52+C53 -> 30000 | D45: =D46+D51+D52+D53 -> 109087 | E45: =E46+E51+E52+E53 -> 191200 | F45: =F46+F51+F52+F53 -> 191200 | G45: =G46+G51+G52+G53 -> 16100
A46: 1. | B46: Prihodi od kamata (po investiciji) (od 1.1. do 1. n.) | C46: =SUM(C47:C50) -> 0 | D46: =SUM(D47:D50) -> 2877 | E46: =SUM(E47:E50) -> 1200 | F46: =SUM(F47:F50) -> 1200 | G46: =SUM(G47:G50) -> 1100
A47: 1.1. | D47: 2877 | E47: 1200 | F47: 1200 | G47: 1100
A48: 1.2.
A49: 1.3.
A50: 1.n.
A51: 2. | B51: Pozitivne tečajne razlike | C51: 30000 | D51: 56210 | E51: 190000 | F51: 190000 | G51: 15000
A52: 3. | B52: Ostali financijski prihodi (core) - iz redovnog poslovanja
A53: 4. | B53: Ostali financijski prihodi (non-core) - jednokratni | D53: 50000
A54: IV. | B54: UKUPNI FINANCIJSKI RASHODI (od 1. do 4.) | C54: =C55+C60+C61+C62 -> 40000 | D54: =D55+D60+D61+D62 -> 304251 | E54: =E55+E60+E61+E62 -> 5510 | F54: =F55+F60+F61+F62 -> 5510 | G54: =G55+G60+G61+G62 -> 15000
A55: 1. | B55: Rashodi od kamata (po obvezi) (od 1.1. do 1. n.) | C55: =SUM(C56:C59) -> 0 | D55: =SUM(D56:D59) -> 22 | E55: =SUM(E56:E59) -> 310 | F55: =SUM(F56:F59) -> 310 | G55: =SUM(G56:G59) -> 0
A56: 1.1. | D56: 22 | E56: 310 | F56: 310
A57: 1.2.
A58: 1.3.
A59: 1.n.
A60: 2. | B60: Negativne tečajne razlike | C60: 40000 | D60: 4629 | E60: 5200 | F60: 5200 | G60: 15000
A61: 3. | B61: Ostali financijski rashodi (core) - iz redovnog poslovanja
A62: 4. | B62: Ostali financijski rashodi (non-core) - jednokratni | D62: 299600
A63: V. | B63: NETO FINANCIJSKI PRIHODI/RASHODI (III.-IV.) | C63: =C45-C54 -> -10000 | D63: =D45-D54 -> -195164 | E63: =E45-E54 -> 185690 | F63: =F45-F54 -> 185690 | G63: =G45-G54 -> 1100
B64: PROVJERA | C64: =(C45+C54)-(RDG!C34+RDG!C45) -> 0 | D64: =(D45+D54)-(RDG!D34+RDG!D45) -> 0 | E64: =(E45+E54)-(RDG!E34+RDG!E45) -> 0 | F64: =(F45+F54)-(RDG!F34+RDG!F45) -> 0 | G64: =(G45+G54)-(RDG!G34+RDG!G45) -> 0
B66: INVESTICIJSKA ULAGANJA
B67: Isplata za ukupna investicijska ulaganja (od 1.1. do 1.n) | C67: =SUM(C68:C72) -> 0 | D67: =SUM(D68:D72) -> 0 | E67: 0 | F67: 0 | G67: 0
A68: 1.1. | B68: Segment / naziv investicije
A69: 1.2. | B69: Segment / naziv investicije
A70: 1.3. | B70: Segment / naziv investicije
A71: 1.4. | B71: Segment / naziv investicije
A72: 1.n. | B72: Segment / naziv investicije
B73: Izvori financiranja investicija (od 1.1. do 1.6.) | C73: =SUM(C74:C79) -> 0 | D73: =SUM(D74:D79) -> 0 | E73: 0 | F73: 0 | G73: 0
A74: 1.1. | B74: Vlastita sredstva
A75: 1.2. | B75: Sredstva iz Državnog proračuna
A76: 1.3. | B76: Banke i ostale financijske institucije
A77: 1.4. | B77: Međunarodne financijske institucije
A78: 1.5. | B78: Nefinancijske institucije
A79: 1.6 | B79: EU fondovi
B81: OSTALE STAVKE
B82: Prosjek broja zaposlenih tijekom razdoblja | C82: =Podloga!B37 -> 68 | D82: =Podloga!C37 -> 69 | E82: =Podloga!D37 -> 69 | F82: =Podloga!E37 -> 65 | G82: =Podloga!F37 -> 65
B83: Broj zaposlenih prema satima rada | C83: 67 | D83: 69 | E83: 69 | F83: 65 | G83: 65
B84: Dugotrajna financijska imovina
B85: Od čega: Dani dugoročni depoziti
B86: Od čega: Likvidne dionice / ostalo
B87: Od čega: Ostalo
B88: Kratkotrajna financijska imovina
B89: Od čega: Dani kratkorični depoziti
B90: Od čega: Likvidne dionice / ostalo
B91: Od čega: Ostalo
B92: Dokapitalizacija
B93: Promjene temeljnog kapitala
B94: (+) Dokapitalizacija
B95: (-) Smanjenje / otpis
B96: Isplaćena dividenda
B99: * Ukoliko kod određenih kategorija postoji veći broj stavaka, moguće je ubacivati dodatne redove

Sheet _TM_NT- indirektna metoda (2) (hidden)
A1: Left | B1: Top | C1: Right | D1: Bottom | E1: Ref
A2: 11 | B2: 2 | C2: 11 | D2: 3 | E2: $K$2:$K$3

Sheet _TM_Dug (hidden)
A1: Left | B1: Top | C1: Right | D1: Bottom | E1: Ref
A2: 1 | B2: 41 | C2: 13 | D2: 41 | E2: $A$41:$M$41
A3: 15 | B3: 2 | C3: 17 | D3: 41 | E3: $O$2:$Q$41

Sheet _TM_Sponzorstva i donacije (hidden)
A1: Left | B1: Top | C1: Right | D1: Bottom | E1: Ref
A2: 2 | B2: 2 | C2: 5 | D2: 31 | E2: $B$2:$E$31

Sheet _TM_ULaganja (hidden)
A1: Left | B1: Top | C1: Right | D1: Bottom | E1: Ref
A2: 2 | B2: 2 | C2: 8 | D2: 44 | E2: $B$2:$H$44
A3: 2 | B3: 45 | C3: 8 | D3: 45 | E3: $B$45:$H$45

Sheet _TM_Građ. objekti i zemljišta (hidden)
A1: Left | B1: Top | C1: Right | D1: Bottom | E1: Ref
A2: 2 | B2: 2 | C2: 9 | D2: 70 | E2: $B$2:$I$70

Sheet Dashboard (hidden)
A1: Dashboard:
A2: Prikaz ključnih pokazatelja poslovanja | B2: =HYPERLINK("#'Ključni poslovni pokazatelji'!A1","Ključni poslovni pokazatelji") -> Ključni poslovni pokazatelji
A3: Analiza izvještaja o financijskom položaju | B3: =HYPERLINK("#'Financijski položaj'!A1","Financijski položaj") -> Financijski položaj
A4: Analiza računa dobiti i gubitka | B4: =HYPERLINK("#'RDG 1'!A1","RDG 1") -> RDG 1
B5: =HYPERLINK("#'RDG 2'!A1","RDG 2") -> RDG 2
A6: Analiza izvještaja o novčanom toku | B6: =HYPERLINK("#'Novčani tok'!A1","Izvještaj o novčanom toku ") -> Izvještaj o novčanom toku
A7: Analiza profitabilnosti | B7: =HYPERLINK("#Profitabilnost!A1","Profitabilnost") -> Profitabilnost
A8: Analiza likvidnosti | B8: =HYPERLINK("#Likvidnost!A1","Likvidnost") -> Likvidnost
A9: Analiza aktivnosti | B9: =HYPERLINK("#Aktivnost!A1","Aktivnost") -> Aktivnost
A10: Analiza zaduženosti | B10: =HYPERLINK("#Zaduženost!A1","Zaduženost") -> Zaduženost

Sheet _TM_Profit and loss (hidden)
A1: Left | B1: Top | C1: Right | D1: Bottom | E1: Ref
A2: 2 | B2: 17 | C2: 13 | D2: 17 | E2: $B$17:$M$17
A3: 2 | B3: 17 | C3: 13 | D3: 17 | E3: $B$17:$M$17

Sheet Ključni poslovni pokazatelji (hidden)
B1: =Naslovna!B3&" - "&Naslovna!I2 -> Ministarstvo državne imovine - Godišnji financijski plan poslovanja
B2: SAŽETI PRIKAZ KLJUČNIH FINANCIJSKIH POKAZATELJA
B3: Društvo: | C3: =Podloga!B2 -> LUKA-VUKOVAR d.o.o.
B4: Tip dokumenta: | C4: =Naslovna!B8 -> Godišnji financijski plan poslovanja
B5: Jedinstveni ključni pokazatelji poslovanja
D6: =LEFT(Podloga!C36,10)&"." -> 2019. ostv. | E6: =LEFT(Podloga!E36,10)&"." -> 2020. proc. | G6: =LEFT(Podloga!B36,10)&"." -> 2019. plan. | H6: =LEFT(Podloga!D36,10)&"." -> 2020. plan. | I6: =LEFT(Podloga!F36,10)&"." -> 2021. plan.
B7: Glavni financijski pokazatelji (u tisućama kuna) | C7: OSTVARENO | F7: PLANIRANO
B8: Prihodi | D8: =IFERROR(RDG!D57,) -> 14150050 | E8: =IFERROR(RDG!F57,) -> 12890200 | G8: =IFERROR(RDG!C57,) -> 13132025.76 | H8: =IFERROR(RDG!E57,) -> 12890200 | I8: =IFERROR(RDG!G57,) -> 13414220
B9: Imovina | D9: =IFERROR(Bilanca!D68,) -> 34204789 | E9: =IFERROR(Bilanca!F68,) -> 34160026.4 | G9: =IFERROR(Bilanca!C68,) -> 33934797.14 | H9: =IFERROR(Bilanca!E68,) -> 34160026.4 | I9: =IFERROR(Bilanca!G68,) -> 34245368
B10: EBITDA | D10: =IFERROR((RDG!D59+RDG!D46+RDG!D48+RDG!D21),) -> 1661822 | E10: =IFERROR((RDG!F59+RDG!F46+RDG!F48+RDG!F21),) -> 1629000 | G10: =IFERROR((RDG!C59+RDG!C46+RDG!C48+RDG!C21),) -> 1749802.832 | H10: =IFERROR((RDG!E59+RDG!E46+RDG!E48+RDG!E21),) -> 1629000 | I10: =IFERROR((RDG!G59+RDG!G46+RDG!G48+RDG!G21),) -> 1767720
B11: Dobit | D11: =IFERROR(RDG!D59,) -> 262462 | E11: =IFERROR(RDG!F59,) -> 313690 | G11: =IFERROR(RDG!C59,) -> 274215.9399 | H11: =IFERROR(RDG!E59,) -> 313690 | I11: =IFERROR(RDG!G59,) -> 387720
B12: Prihod od osnovne djelatnosti po zaposlenom | D12: =IFERROR(RDG!D5/Podloga!C37,) -> 203492.2174 | E12: =IFERROR(RDG!F5/Podloga!E37,) -> 195369.2308 | G12: =IFERROR(RDG!C5/Podloga!B37,) -> 192676.8494 | H12: =IFERROR(RDG!E5/Podloga!D37,) -> 184043.4783 | I12: =IFERROR(RDG!G5/Podloga!F37,) -> 206124.9231
B13: Pokazatelji profitabilnosti | C13: OSTVARENO | F13: PLANIRANO
B14: ROA | D14: =IFERROR(RDG!D63/Bilanca!D68,) -> 0.007673253006 | E14: =IFERROR(RDG!F63/Bilanca!F68,) -> 0.009182955432 | G14: =IFERROR(RDG!C63/Bilanca!C68,) -> 0.008080671259 | H14: =IFERROR(RDG!E63/Bilanca!E68,) -> 0.009182955432 | I14: =IFERROR(RDG!G63/Bilanca!G68,) -> 0.01132182314
B15: ROE | D15: =IFERROR((RDG!D83/Bilanca!D$75),) -> 0.00849284422 | E15: =IFERROR((RDG!F83/Bilanca!F$75),) -> 0.01004850202 | G15: =IFERROR((RDG!C83/Bilanca!C$75),) -> 0.008898000853 | H15: =IFERROR((RDG!E83/Bilanca!E$75),) -> 0.01004850202 | I15: =IFERROR((RDG!G83/Bilanca!G$75),) -> 0.01226755961
B16: EBITDA Marža | D16: =IFERROR((RDG!D59+RDG!D46+RDG!D48+RDG!D21)/RDG!D57,) -> 0.1174428359 | E16: =IFERROR((RDG!F59+RDG!F46+RDG!F48+RDG!F21)/RDG!F57,) -> 0.1263750756 | G16: =IFERROR((RDG!C59+RDG!C46+RDG!C48+RDG!C21)/RDG!C57,) -> 0.1332469845 | H16: =IFERROR((RDG!E59+RDG!E46+RDG!E48+RDG!E21)/RDG!E57,) -> 0.1263750756 | I16: =IFERROR((RDG!G59+RDG!G46+RDG!G48+RDG!G21)/RDG!G57,) -> 0.1317795593
B17: EBIT Marža | D17: =IFERROR((RDG!D59+RDG!D46+RDG!D48)/RDG!D57,) -> 0.01855004046 | E17: =IFERROR((RDG!F59+RDG!F46+RDG!F48)/RDG!F57,) -> 0.02435959101 | G17: =IFERROR((RDG!C59+RDG!C46+RDG!C48)/RDG!C57,) -> 0.02088146528 | H17: =IFERROR((RDG!E59+RDG!E46+RDG!E48)/RDG!E57,) -> 0.02435959101 | I17: =IFERROR((RDG!G59+RDG!G46+RDG!G48)/RDG!G57,) -> 0.02890365597
B18: Neto profitna marža | D18: =IFERROR(RDG!D63/RDG!D57,) -> 0.01854848569 | E18: =IFERROR(RDG!F63/RDG!F57,) -> 0.02433554173 | G18: =IFERROR(RDG!C63/RDG!C57,) -> 0.02088146528 | H18: =IFERROR(RDG!E63/RDG!E57,) -> 0.02433554173 | I18: =IFERROR(RDG!G63/RDG!G57,) -> 0.02890365597
B19: Pokazatelji likvidnosti | C19: OSTVARENO | F19: PLANIRANO
B20: Tekuća likvidnost | D20: =IFERROR(Bilanca!D40/Bilanca!D115,) -> 18.63847658 | E20: =IFERROR(Bilanca!F40/Bilanca!F115,) -> 20.17170577 | G20: =IFERROR(Bilanca!C40/Bilanca!C115,) -> 23.33625989 | H20: =IFERROR(Bilanca!E40/Bilanca!E115,) -> 20.17170577 | I20: =IFERROR(Bilanca!G40/Bilanca!G115,) -> 20.07712755
B21: Trenutna likvidnost | D21: =IFERROR(Bilanca!D66/Bilanca!D115,) -> 15.91974792 | E21: =IFERROR(Bilanca!F66/Bilanca!F115,) -> 17.42610129 | G21: =IFERROR(Bilanca!C66/Bilanca!C115,) -> 19.84856061 | H21: =IFERROR(Bilanca!E66/Bilanca!E115,) -> 17.42610129 | I21: =IFERROR(Bilanca!G66/Bilanca!G115,) -> 17.24443843
B22: Financijska stabilnost | D22: =IFERROR(Bilanca!D5/(Bilanca!D75+Bilanca!D103),) -> 0.5381798912 | E22: =IFERROR(Bilanca!F5/(Bilanca!F75+Bilanca!F103),) -> 0.513005002 | G22: =IFERROR(Bilanca!C5/(Bilanca!C75+Bilanca!C103),) -> 0.5205108067 | H22: =IFERROR(Bilanca!E5/(Bilanca!E75+Bilanca!E103),) -> 0.513005002 | I22: =IFERROR(Bilanca!G5/(Bilanca!G75+Bilanca!G103),) -> 0.5040459976
B23: Pokazatelji aktivnosti | C23: OSTVARENO | F23: PLANIRANO
B24: Obrtaj imovine | D24: =IFERROR(RDG!D57/Bilanca!D68,) -> 0.4136862239 | E24: =IFERROR(RDG!F57/Bilanca!F68,) -> 0.3773474835 | G24: =IFERROR(RDG!C57/Bilanca!C68,) -> 0.3869781719 | H24: =IFERROR(RDG!E57/Bilanca!E68,) -> 0.3773474835 | I24: =IFERROR(RDG!G57/Bilanca!G68,) -> 0.3917090335
B25: Obrtaj potraživanja | D25: =IFERROR(((RDG!D6+RDG!D7)/(Bilanca!D52)),) -> 8.318694092 | E25: =IFERROR(((RDG!F6+RDG!F7)/(Bilanca!F52)),) -> 7.832666667 | G25: =IFERROR(((RDG!C6+RDG!C7)/(Bilanca!C52)),) -> 8.083326667 | H25: =IFERROR(((RDG!E6+RDG!E7)/(Bilanca!E52)),) -> 7.832666667 | I25: =IFERROR(((RDG!G6+RDG!G7)/(Bilanca!G52)),) -> 7.544315152
B26: Dani potraživanja | D26: =IFERROR(365/D25,) -> 43.87707926 | E26: =IFERROR(365/E25,) -> 46.59971061 | G26: =IFERROR(365/G25,) -> 45.15467642 | H26: =IFERROR(365/H25,) -> 46.59971061 | I26: =IFERROR(365/I25,) -> 48.38079967
B27: Pokazatelji zaduženosti | C27: OSTVARENO | F27: PLANIRANO
B28: Koeficijent zaduženosti | D28: =IFERROR(((Bilanca!D96+Bilanca!D103+Bilanca!D115+Bilanca!D130)/Bilanca!D68),) -> 0.09650373812 | E28: =IFERROR(((Bilanca!F96+Bilanca!F103+Bilanca!F115+Bilanca!F130)/Bilanca!F68),) -> 0.08613687722 | G28: =IFERROR(((Bilanca!C96+Bilanca!C103+Bilanca!C115+Bilanca!C130)/Bilanca!C68),) -> 0.09185541871 | H28: =IFERROR(((Bilanca!E96+Bilanca!E103+Bilanca!E115+Bilanca!E130)/Bilanca!E68),) -> 0.08613687722 | I28: =IFERROR(((Bilanca!G96+Bilanca!G103+Bilanca!G115+Bilanca!G130)/Bilanca!G68),) -> 0.07709246985
B29: Koeficijent vlastitog financiranja | D29: =IFERROR((Bilanca!D75/Bilanca!D68),) -> 0.9034962619 | E29: =IFERROR((Bilanca!F75/Bilanca!F68),) -> 0.9138631228 | G29: =IFERROR((Bilanca!C75/Bilanca!C68),) -> 0.9081445813 | H29: =IFERROR((Bilanca!E75/Bilanca!E68),) -> 0.9138631228 | I29: =IFERROR((Bilanca!G75/Bilanca!G68),) -> 0.9229075302
B30: Koeficijent financiranja | D30: =IFERROR(((Bilanca!D96+Bilanca!D103+Bilanca!D115+Bilanca!D130)/Bilanca!D75),) -> 0.1068114415 | E30: =IFERROR(((Bilanca!F96+Bilanca!F103+Bilanca!F115+Bilanca!F130)/Bilanca!F75),) -> 0.09425577538 | G30: =IFERROR(((Bilanca!C96+Bilanca!C103+Bilanca!C115+Bilanca!C130)/Bilanca!C75),) -> 0.1011462498 | H30: =IFERROR(((Bilanca!E96+Bilanca!E103+Bilanca!E115+Bilanca!E130)/Bilanca!E75),) -> 0.09425577538 | I30: =IFERROR(((Bilanca!G96+Bilanca!G103+Bilanca!G115+Bilanca!G130)/Bilanca!G75),) -> 0.08353217124
B31: Odnos ukupne imovine i kapitala | D31: =IFERROR(Bilanca!D68/Bilanca!D75,) -> 1.106811441 | E31: =IFERROR(Bilanca!F68/Bilanca!F75,) -> 1.094255775 | G31: =IFERROR(Bilanca!C68/Bilanca!C75,) -> 1.10114625 | H31: =IFERROR(Bilanca!E68/Bilanca!E75,) -> 1.094255775 | I31: =IFERROR(Bilanca!G68/Bilanca!G75,) -> 1.083532171
B32: * Plavo osjenčana pozadina označava planirane vrijednosti
B66: =HYPERLINK("#Sadržaj!A1","Povratak na sadržaj") -> Povratak na sadržaj

Sheet Financijski položaj (hidden)
B1: =Naslovna!B3&" - "&Naslovna!I2 -> Ministarstvo državne imovine - Godišnji financijski plan poslovanja
B2: SAŽETI PRIKAZ IZVJEŠTAJA O FINANCIJSKOM POLOŽAJU
B4: Društvo: | D4: =Podloga!B2 -> LUKA-VUKOVAR d.o.o.
B5: Tip dokumenta: | D5: =Naslovna!B8 -> Godišnji financijski plan poslovanja
B6: Sastavlja se za godinu: | D6: =Podloga!B8 -> 2021
B8: Bilanca (u 000 kn)
C9: =Podloga!B36 -> 2019. planirano | D9: =Podloga!C36 -> 2019. ostvareno | F9: =Podloga!D36 -> 2020. planirano | G9: =Podloga!E36 -> 2020. procijenjeno | I9: =Podloga!F36 -> 2021. planirano
B10: Dugotrajna imovina | C10: =Bilanca!C5 -> 16040947 | D10: =Bilanca!D5 -> 16631857 | E10: =D10-C10 -> 590910 | F10: =Bilanca!E5 -> 16014779 | G10: =Bilanca!F5 -> 16014779 | H10: =G10-F10 -> 0 | I10: =Bilanca!G5 -> 15930529 | J10: =I10-G10 -> -84250
B11: Kratkotrajna imovina | C11: =Bilanca!C40 -> 17543850.14 | D11: =Bilanca!D40 -> 17437730 | E11: =D11-C11 -> -106120.14 | F11: =Bilanca!E40 -> 18003247.4 | G11: =Bilanca!F40 -> 18003247.4 | H11: =G11-F11 -> 0 | I11: =Bilanca!G40 -> 18179839 | J11: =I11-G11 -> 176591.6
B12: Ostalo | C12: =Bilanca!C67+Bilanca!C4 -> 350000 | D12: =Bilanca!D67+Bilanca!D4 -> 135202 | E12: -214798 | F12: =Bilanca!E67+Bilanca!E4 -> 142000 | G12: =Bilanca!F67+Bilanca!F4 -> 142000 | H12: 0 | I12: =Bilanca!G67+Bilanca!G4 -> 135000 | J12: -7000
B13: Ukupno aktiva | C13: =SUM(C10:C12) -> 33934797.14 | D13: =SUM(D10:D12) -> 34204789 | E13: 269991.86 | F13: =SUM(F10:F12) -> 34160026.4 | G13: =SUM(G10:G12) -> 34160026.4 | H13: 0 | I13: =SUM(I10:I12) -> 34245368 | J13: 85341.6
B15: Kapital i rezerve | C15: =Bilanca!C75 -> 30817702.14 | D15: =Bilanca!D75 -> 30903899 | E15: 86196.86 | F15: =Bilanca!E75 -> 31217588.4 | G15: =Bilanca!F75 -> 31217588.4 | H15: 0 | I15: =Bilanca!G75 -> 31605308 | J15: 387719.6
B16: Rezerviranja | C16: =Bilanca!C96 -> 0 | D16: =Bilanca!D96 -> 0 | E16: 0 | F16: =Bilanca!E96 -> 0 | G16: =Bilanca!F96 -> 0 | H16: 0 | I16: =Bilanca!G96 -> 0 | J16: 0
B17: Dugoročne obveze | C17: =Bilanca!C103 -> 0 | D17: =Bilanca!D103 -> 0 | E17: 0 | F17: =Bilanca!E103 -> 0 | G17: =Bilanca!F103 -> 0 | H17: 0 | I17: =Bilanca!G103 -> 0 | J17: 0
B18: Kratkoročne obveze | C18: =Bilanca!C115 -> 751785 | D18: =Bilanca!D115 -> 935577 | E18: 183792 | F18: =Bilanca!E115 -> 892500 | G18: =Bilanca!F115 -> 892500 | H18: 0 | I18: =Bilanca!G115 -> 905500 | J18: 13000
B19: Ostalo | C19: =Bilanca!C130 -> 2365310 | D19: =Bilanca!D130 -> 2365313 | E19: 3 | F19: =Bilanca!E130 -> 2049938 | G19: =Bilanca!F130 -> 2049938 | H19: 0 | I19: =Bilanca!G130 -> 1734560 | J19: -315378
B20: Ukupna pasiva | C20: =SUM(C15:C19) -> 33934797.14 | D20: =SUM(D15:D19) -> 34204789 | E20: 269991.86 | F20: =SUM(F15:F19) -> 34160026.4 | G20: =SUM(G15:G19) -> 34160026.4 | H20: 0 | I20: =SUM(I15:I19) -> 34245368 | J20: 85341.6
B22: * Ostvareni rezultati se uspoređuju s planom, osim plana za slijedeću godinu koji se uspoređuje s procijenjenim rezultatom tekuće godine
B23: ** Plavo osjenčana pozadina označava planirane vrijednosti
B57: Dodatni komentari i pojašnjenja na rezultate
B68: =HYPERLINK("#Sadržaj!A1","Povratak na sadržaj") -> Povratak na sadržaj

Sheet RDG 1 (hidden)
B1: =Naslovna!B3&" - "&Naslovna!I2 -> Ministarstvo državne imovine - Godišnji financijski plan poslovanja
B2: SAŽETI PRIKAZ RAČUNA DOBITI I GUBITKA (1/2)
B4: Društvo: | C4: =Podloga!B2 -> LUKA-VUKOVAR d.o.o.
B5: Tip dokumenta: | C5: =Naslovna!B8 -> Godišnji financijski plan poslovanja
B6: Sastavlja se za godinu: | C6: =Podloga!B8 -> 2021
B8: Račun dobiti i gubitka (u 000 kn)
C9: =Podloga!B36 -> 2019. planirano | D9: =Podloga!C36 -> 2019. ostvareno | F9: =Podloga!D36 -> 2020. planirano | G9: =Podloga!E36 -> 2020. procijenjeno | I9: =Podloga!F36 -> 2021. planirano
B10: Poslovni prihodi | C10: =RDG!C5 -> 13102025.76 | D10: =RDG!D5 -> 14040963 | E10: =D10-C10 -> 938937.24 | F10: =RDG!E5 -> 12699000 | G10: =RDG!F5 -> 12699000 | H10: =G10-F10 -> 0 | I10: =RDG!G5 -> 13398120 | J10: =I10-G10 -> 699120
B11: Poslovni rashodi | C11: =RDG!C11 -> 12817809.82 | D11: =RDG!D11 -> 13583337 | E11: =D11-C11 -> 765527.1799 | F11: =RDG!E11 -> 12571000 | G11: =RDG!F11 -> 12571000 | H11: =G11-F11 -> 0 | I11: =RDG!G11 -> 13011500 | J11: =I11-G11 -> 440500
B12: Financijski i investicijski prihodi | C12: =RDG!C34+RDG!C53+RDG!C54 -> 30000 | D12: =RDG!D34+RDG!D53+RDG!D54 -> 109087 | E12: 79087 | F12: =RDG!E34+RDG!E53+RDG!E54 -> 191200 | G12: =RDG!F34+RDG!F53+RDG!F54 -> 191200 | H12: 0 | I12: =RDG!G34+RDG!G53+RDG!G54 -> 16100 | J12: -175100
B13: Financijski i investicijski rashodi | C13: =RDG!C45+RDG!C55+RDG!C56 -> 40000 | D13: =RDG!D45+RDG!D55+RDG!D56 -> 304251 | E13: 264251 | F13: =RDG!E45+RDG!E55+RDG!E56 -> 5510 | G13: =RDG!F45+RDG!F55+RDG!F56 -> 5510 | H13: 0 | I13: =RDG!G45+RDG!G55+RDG!G56 -> 15000 | J13: 9490
B14: Dobit/Gubitak prije oporezivanja | C14: =RDG!C59 -> 274215.9399 | D14: =RDG!D59 -> 262462 | E14: -11753.93992 | F14: =RDG!E59 -> 313690 | G14: =RDG!F59 -> 313690 | H14: 0 | I14: =RDG!G59 -> 387720 | J14: 74030
B15: Porez na dobit | C15: =RDG!C62 -> 0 | D15: =RDG!D62 -> 0 | E15: 0 | F15: =RDG!E62 -> 0 | G15: =RDG!F62 -> 0 | H15: 0 | I15: =RDG!G62 -> 0 | J15: 0
B16: Neto dobit | C16: =C10-C11+C12-C13-C15 -> 274215.9399 | D16: =D10-D11+D12-D13-D15 -> 262462 | E16: -11753.93992 | F16: =F10-F11+F12-F13-F15 -> 313690 | G16: =G10-G11+G12-G13-G15 -> 313690 | H16: 0 | I16: =I10-I11+I12-I13-I15 -> 387720 | J16: 74030
B18: * Ostvareni rezultati se uspoređuju s planom, osim plana za slijedeću godinu koji se uspoređuje s procijenjenim rezultatom tekuće godine
B19: ** Plavo osjenčana pozadina označava planirane vrijednosti
B63: Dodatni komentari i pojašnjenja na rezultate
B74: =HYPERLINK("#Sadržaj!A1","Povratak na sadržaj") -> Povratak na sadržaj

Sheet RDG 2 (hidden)
B1: =Naslovna!B3&" - "&Naslovna!I2 -> Ministarstvo državne imovine - Godišnji financijski plan poslovanja
B2: SAŽETI PRIKAZ RAČUNA DOBITI I GUBITKA (2/2)
B4: Društvo: | C4: =Podloga!B2 -> LUKA-VUKOVAR d.o.o.
B5: Tip dokumenta: | C5: =Naslovna!B8 -> Godišnji financijski plan poslovanja
B6: Sastavlja se za godinu: | C6: =Podloga!B8 -> 2021
B63: Dodatni komentari i pojašnjenja na rezultate
B75: =HYPERLINK("#Sadržaj!A1","Povratak na sadržaj") -> Povratak na sadržaj

Sheet Novčani tok (hidden)
A1: =Naslovna!B3&" - "&Naslovna!I2 -> Ministarstvo državne imovine - Godišnji financijski plan poslovanja
B2: ="SAŽETI PRIKAZ NOVČANOG TOKA PO "&(IF(Podloga!B19="Direktna","DIREKTNOJ","INDIREKTNOJ"))&" METODI" -> SAŽETI PRIKAZ NOVČANOG TOKA PO DIREKTNOJ METODI
B4: Društvo: | C4: =Podloga!B2 -> LUKA-VUKOVAR d.o.o.
B5: Tip dokumenta: | C5: =Naslovna!B8 -> Godišnji financijski plan poslovanja
B6: Sastavlja se za godinu: | C6: =Podloga!B8 -> 2021
B8: Izvještaj o novčanom toku (u 000 kn)
C9: =Podloga!B36 -> 2019. planirano | D9: =Podloga!C36 -> 2019. ostvareno | F9: =Podloga!D36 -> 2020. planirano | G9: =Podloga!E36 -> 2020. procijenjeno | I9: =Podloga!F36 -> 2021. planirano
B10: Novac i novčani ekvivalenti na početku razdoblja | C10: =IF(Podloga!$B$19="Direktna",'NT dir.'!C49,'NT indir.'!C57) -> 13814280 | D10: =IF(Podloga!$B$19="Direktna",'NT dir.'!D49,'NT indir.'!D57) -> 13596566 | E10: =D10-C10 -> -217714 | F10: =IF(Podloga!$B$19="Direktna",'NT dir.'!E49,'NT indir.'!E57) -> 14894150 | G10: =IF(Podloga!$B$19="Direktna",'NT dir.'!F49,'NT indir.'!F57) -> 14894150 | H10: =G10-F10 -> 0 | I10: =IF(Podloga!$B$19="Direktna",'NT dir.'!G49,'NT indir.'!G57) -> 15552795 | J10: =I10-G10 -> 658645
B11: Neto novčani tok od poslovnih aktivnosti | C11: =IF(Podloga!$B$19="Direktna",'NT dir.'!C18,'NT indir.'!C26) -> 1307570.132 | D11: =IF(Podloga!$B$19="Direktna",'NT dir.'!D18,'NT indir.'!D26) -> 2617684 | E11: 1310113.868 | F11: =IF(Podloga!$B$19="Direktna",'NT dir.'!E18,'NT indir.'!E26) -> 1542545 | G11: =IF(Podloga!$B$19="Direktna",'NT dir.'!F18,'NT indir.'!F26) -> 1542545 | H11: =G11-F11 -> 0 | I11: =IF(Podloga!$B$19="Direktna",'NT dir.'!G18,'NT indir.'!G26) -> 1162044 | J11: =I11-G11 -> -380501
B12: Neto novčani tok od investicijskih aktivnosti | C12: =IF(Podloga!$B$19="Direktna",'NT dir.'!C33,'NT indir.'!C41) -> -41000 | D12: =IF(Podloga!$B$19="Direktna",'NT dir.'!D33,'NT indir.'!D41) -> -1320100 | E12: -1279100 | F12: =IF(Podloga!$B$19="Direktna",'NT dir.'!E33,'NT indir.'!E41) -> -883900 | G12: =IF(Podloga!$B$19="Direktna",'NT dir.'!F33,'NT indir.'!F41) -> -883900 | H12: 0 | I12: =IF(Podloga!$B$19="Direktna",'NT dir.'!G33,'NT indir.'!G41) -> -1100000 | J12: -216100
B13: Neto novčani tok od financijskih aktivnosti | C13: =IF(Podloga!$B$19="Direktna",'NT dir.'!C46+'NT dir.'!C47,'NT indir.'!C54+'NT indir.'!C55) -> 0 | D13: =IF(Podloga!$B$19="Direktna",'NT dir.'!D46+'NT dir.'!D47,'NT indir.'!D54+'NT indir.'!D55) -> 0 | E13: 0 | F13: =IF(Podloga!$B$19="Direktna",'NT dir.'!E46+'NT dir.'!E47,'NT indir.'!E54+'NT indir.'!E55) -> 0 | G13: =IF(Podloga!$B$19="Direktna",'NT dir.'!F46+'NT dir.'!F47,'NT indir.'!F54+'NT indir.'!F55) -> 0 | H13: 0 | I13: =IF(Podloga!$B$19="Direktna",'NT dir.'!G46+'NT dir.'!G47,'NT indir.'!G54+'NT indir.'!G55) -> 0 | J13: 0
B14: Novac i novčani ekvivalenti na kraju razdoblja | C14: =IF(Podloga!$B$19="Direktna",'NT dir.'!C50,'NT indir.'!C58) -> 15080850.13 | D14: =IF(Podloga!$B$19="Direktna",'NT dir.'!D50,'NT indir.'!D58) -> 14894150 | E14: -186700.132 | F14: =IF(Podloga!$B$19="Direktna",'NT dir.'!E50,'NT indir.'!E58) -> 15552795 | G14: =IF(Podloga!$B$19="Direktna",'NT dir.'!F50,'NT indir.'!F58) -> 15552795 | H14: 0 | I14: =IF(Podloga!$B$19="Direktna",'NT dir.'!G50,'NT indir.'!G58) -> 15614839 | J14: 62044
B15: * Ostvareni rezultati se uspoređuju s planom, osim plana za slijedeću godinu koji se uspoređuje s procijenjenim rezultatom tekuće godine
B16: ** Plavo osjenčana pozadina označava planirane vrijednosti
C38: =IF(Podloga!B19="Direktna"," "," Nije primjenjivo kod indirektne metode") -> 
C47: =IF(Podloga!B19="Direktna"," "," Nije primjenjivo kod indirektne metode") -> 
B57: Dodatni komentari i pojašnjenja na rezultate
B67: =HYPERLINK("#Sadržaj!A1","Povratak na sadržaj") -> Povratak na sadržaj

Sheet Profitabilnost (hidden)
B1: =Naslovna!B3&" - "&Naslovna!I2 -> Ministarstvo državne imovine - Godišnji financijski plan poslovanja
B2: SAŽETI PRIKAZ POKAZATELJA PROFITABILNOSTI
B4: Društvo: | C4: =Podloga!B2 -> LUKA-VUKOVAR d.o.o.
B5: Tip dokumenta: | C5: =Naslovna!B8 -> Godišnji financijski plan poslovanja
B6: Sastavlja se za godinu: | C6: =Podloga!B8 -> 2021
B8: Pokazatelji profitabilnosti
C9: =Podloga!B36 -> 2019. planirano | D9: =Podloga!C36 -> 2019. ostvareno | F9: =Podloga!D36 -> 2020. planirano | G9: =Podloga!E36 -> 2020. procijenjeno | I9: =Podloga!F36 -> 2021. planirano
B10: ROA | C10: =IFERROR(RDG!C63/Bilanca!C68,) -> 0.008080671259 | D10: =IFERROR(RDG!D63/Bilanca!D68,) -> 0.007673253006 | E10: =D10-C10 -> -0.0004074182533 | F10: =IFERROR(RDG!E63/Bilanca!E68,) -> 0.009182955432 | G10: =IFERROR(RDG!F63/Bilanca!F68,) -> 0.009182955432 | H10: =G10-F10 -> 0 | I10: =IFERROR(RDG!G63/Bilanca!G68,) -> 0.01132182314 | J10: =I10-G10 -> 0.002138867712
B11: ROE | C11: =IFERROR((RDG!C83/Bilanca!C$75),) -> 0.008898000853 | D11: =IFERROR((RDG!D83/Bilanca!D$75),) -> 0.00849284422 | E11: =D11-C11 -> -0.0004051566328 | F11: =IFERROR((RDG!E83/Bilanca!E$75),) -> 0.01004850202 | G11: =IFERROR((RDG!F83/Bilanca!F$75),) -> 0.01004850202 | H11: =G11-F11 -> 0 | I11: =IFERROR((RDG!G83/Bilanca!G$75),) -> 0.01226755961 | J11: =I11-G11 -> 0.002219057597
B12: EBITDA Marža | C12: =IFERROR((RDG!C59+RDG!C46+RDG!C48+RDG!C21)/RDG!C57,) -> 0.1332469845 | D12: =IFERROR((RDG!D59+RDG!D46+RDG!D48+RDG!D21)/RDG!D57,) -> 0.1174428359 | E12: =D12-C12 -> -0.01580414857 | F12: =IFERROR((RDG!E59+RDG!E46+RDG!E48+RDG!E21)/RDG!E57,) -> 0.1263750756 | G12: =IFERROR((RDG!F59+RDG!F46+RDG!F48+RDG!F21)/RDG!F57,) -> 0.1263750756 | H12: =G12-F12 -> 0 | I12: =IFERROR((RDG!G59+RDG!G46+RDG!G48+RDG!G21)/RDG!G57,) -> 0.1317795593 | J12: =I12-G12 -> 0.005404483665
B13: EBIT Marža | C13: =IFERROR((RDG!C59+RDG!C46+RDG!C48)/RDG!C57,) -> 0.02088146528 | D13: =IFERROR((RDG!D59+RDG!D46+RDG!D48)/RDG!D57,) -> 0.01855004046 | E13: -0.002331424818 | F13: =IFERROR((RDG!E59+RDG!E46+RDG!E48)/RDG!E57,) -> 0.02435959101 | G13: =IFERROR((RDG!F59+RDG!F46+RDG!F48)/RDG!F57,) -> 0.02435959101 | H13: =G13-F13 -> 0 | I13: =IFERROR((RDG!G59+RDG!G46+RDG!G48)/RDG!G57,) -> 0.02890365597 | J13: 0.004544064964
B14: Neto profitna marža (neto dobit / ukupni prihod) | C14: =IFERROR(RDG!C63/RDG!C57,) -> 0.02088146528 | D14: =IFERROR(RDG!D63/RDG!D57,) -> 0.01854848569 | E14: =D14-C14 -> -0.002332979583 | F14: =IFERROR(RDG!E63/RDG!E57,) -> 0.02433554173 | G14: =IFERROR(RDG!F63/RDG!F57,) -> 0.02433554173 | H14: =G14-F14 -> 0 | I14: =IFERROR(RDG!G63/RDG!G57,) -> 0.02890365597 | J14: =I14-G14 -> 0.004568114242
B16: * Ostvareni rezultati se uspoređuju s planom, osim plana za slijedeću godinu koji se uspoređuje s procijenjenim rezultatom tekuće godine
B17: ** Plavo osjenčana pozadina označava planirane vrijednosti
B58: Dodatni komentari i pojašnjenja na rezultate
B69: =HYPERLINK("#Sadržaj!A1","Povratak na sadržaj") -> Povratak na sadržaj

Sheet Likvidnost (hidden)
B1: =Naslovna!B3&" - "&Naslovna!I2 -> Ministarstvo državne imovine - Godišnji financijski plan poslovanja
B2: SAŽETI PRIKAZ POKAZATELJA LIKVIDNOSTI
B4: Društvo: | C4: =Podloga!B2 -> LUKA-VUKOVAR d.o.o.
B5: Tip dokumenta: | C5: =Naslovna!B8 -> Godišnji financijski plan poslovanja
B6: Sastavlja se za godinu: | C6: =Podloga!B8 -> 2021
B8: Pokazatelji likvidnosti
C9: =Podloga!B36 -> 2019. planirano | D9: =Podloga!C36 -> 2019. ostvareno | F9: =Podloga!D36 -> 2020. planirano | G9: =Podloga!E36 -> 2020. procijenjeno | I9: =Podloga!F36 -> 2021. planirano
B10: Neto radni kapital (u 000 kn) | C10: =Bilanca!C40-Bilanca!C115 -> 16792065.14 | D10: =Bilanca!D40-Bilanca!D115 -> 16502153 | E10: =D10-C10 -> -289912.14 | F10: =Bilanca!E40-Bilanca!E115 -> 17110747.4 | G10: =Bilanca!F40-Bilanca!F115 -> 17110747.4 | H10: =G10-F10 -> 0 | I10: =Bilanca!G40-Bilanca!G115 -> 17274339 | J10: =I10-G10 -> 163591.6
B11: Koeficijent tekuće likvidnosti | C11: =IFERROR(Bilanca!C40/Bilanca!C115,) -> 23.33625989 | D11: =IFERROR(Bilanca!D40/Bilanca!D115,) -> 18.63847658 | E11: =D11-C11 -> -4.697783312 | F11: =IFERROR(Bilanca!E40/Bilanca!E115,) -> 20.17170577 | G11: =IFERROR(Bilanca!F40/Bilanca!F115,) -> 20.17170577 | H11: =G11-F11 -> 0 | I11: =IFERROR(Bilanca!G40/Bilanca!G115,) -> 20.07712755 | J11: =I11-G11 -> -0.09457821647
B12: Koeficijent trenutne likvidnosti | C12: =IFERROR(Bilanca!C66/Bilanca!C115,) -> 19.84856061 | D12: =IFERROR(Bilanca!D66/Bilanca!D115,) -> 15.91974792 | E12: -3.928812692 | F12: =IFERROR(Bilanca!E66/Bilanca!E115,) -> 17.42610129 | G12: =IFERROR(Bilanca!F66/Bilanca!F115,) -> 17.42610129 | H12: 0 | I12: =IFERROR(Bilanca!G66/Bilanca!G115,) -> 17.24443843 | J12: -0.1816628567
B13: Koeficijent financijske stabilnosti | C13: =IFERROR(Bilanca!C5/(Bilanca!C75+Bilanca!C103),) -> 0.5205108067 | D13: =IFERROR(Bilanca!D5/(Bilanca!D75+Bilanca!D103),) -> 0.5381798912 | E13: 0.0176690845 | F13: =IFERROR(Bilanca!E5/(Bilanca!E75+Bilanca!E103),) -> 0.513005002 | G13: =IFERROR(Bilanca!F5/(Bilanca!F75+Bilanca!F103),) -> 0.513005002 | H13: 0 | I13: =IFERROR(Bilanca!G5/(Bilanca!G75+Bilanca!G103),) -> 0.5040459976 | J13: -0.008959004424
B15: * Ostvareni rezultati se uspoređuju s planom, osim plana za slijedeću godinu koji se uspoređuje s procijenjenim rezultatom tekuće godine
B16: ** Plavo osjenčana pozadina označava planirane vrijednosti
B57: Dodatni komentari i pojašnjenja na rezultate
B68: =HYPERLINK("#Sadržaj!A1","Povratak na sadržaj") -> Povratak na sadržaj

Sheet _TM_Aktivnost (hidden)
A1: Left | B1: Top | C1: Right | D1: Bottom | E1: Ref
A2: 7 | B2: 13 | C2: 7 | D2: 16 | E2: $G$13:$G$16
A3: 4 | B3: 13 | C3: 4 | D3: 16 | E3: $D$13:$D$16

Sheet Aktivnost (hidden)
B1: =Naslovna!B3&" - "&Naslovna!I2 -> Ministarstvo državne imovine - Godišnji financijski plan poslovanja
B2: SAŽETI PRIKAZ POKAZATELJA AKTIVNOSTI
B4: Društvo: | C4: =Podloga!B2 -> LUKA-VUKOVAR d.o.o.
B5: Tip dokumenta: | C5: =Naslovna!B8 -> Godišnji financijski plan poslovanja
B6: Sastavlja se za godinu: | C6: =Podloga!B8 -> 2021
B8: Pokazatelji aktivnosti
C9: =Podloga!B36 -> 2019. planirano | D9: =Podloga!C36 -> 2019. ostvareno | F9: =Podloga!D36 -> 2020. planirano | G9: =Podloga!E36 -> 2020. procijenjeno | I9: =Podloga!F36 -> 2021. planirano
B10: Koeficijent obrtaja imovine | C10: =IFERROR(RDG!C57/Bilanca!C68,) -> 0.3869781719 | D10: =IFERROR(RDG!D57/Bilanca!D68,) -> 0.4136862239 | E10: =D10-C10 -> 0.02670805201 | F10: =IFERROR(RDG!E57/Bilanca!E68,) -> 0.3773474835 | G10: =IFERROR(RDG!F57/Bilanca!F68,) -> 0.3773474835 | H10: =G10-F10 -> 0 | I10: =IFERROR(RDG!G57/Bilanca!G68,) -> 0.3917090335 | J10: =I10-G10 -> 0.01436154992
B11: Koeficijent obrtaja potraživanja | C11: =IFERROR(((RDG!C6+RDG!C7)/(Bilanca!C52)),) -> 8.083326667 | D11: =IFERROR(((RDG!D6+RDG!D7)/(Bilanca!D52)),) -> 8.318694092 | E11: 0.2353674253 | F11: =IFERROR(((RDG!E6+RDG!E7)/(Bilanca!E52)),) -> 7.832666667 | G11: =IFERROR(((RDG!F6+RDG!F7)/(Bilanca!F52)),) -> 7.832666667 | H11: =G11-F11 -> 0 | I11: =IFERROR(((RDG!G6+RDG!G7)/(Bilanca!G52)),) -> 7.544315152 | J11: -0.2883515152
B12: Koeficijent obrtaja neto radnog kapitala | C12: =IFERROR(RDG!C57/(Bilanca!C40-Bilanca!C115),) -> 0.7820375666 | D12: =IFERROR(RDG!D57/(Bilanca!D40-Bilanca!D115),) -> 0.8574669014 | E12: 0.07542933486 | F12: =IFERROR(RDG!E57/(Bilanca!E40-Bilanca!E115),) -> 0.7533393895 | G12: =IFERROR(RDG!F57/(Bilanca!F40-Bilanca!F115),) -> 0.7533393895 | H12: 0 | I12: =IFERROR(RDG!G57/(Bilanca!G40-Bilanca!G115),) -> 0.7765402775 | J12: 0.02320088797
B13: Dani naplate potraživanja | C13: =IFERROR(365/C11,) -> 45.15467642 | D13: 43.87707926 | E13: -1.277597158 | F13: =IFERROR(365/F11,) -> 46.59971061 | G13: =IFERROR(365/G11,) -> 46.59971061 | H13: 0 | I13: =IFERROR(365/I11,) -> 48.38079967 | J13: 1.781089057
B14: Dani vezivanja zaliha | C14: =IFERROR(365/((RDG!C6+RDG!C7)/Bilanca!C41),) -> 27.15301208 | D14: =IFERROR(365/((RDG!D6+RDG!D7)/Bilanca!D41),) -> 23.38093765 | E14: -3.772074434 | F14: =IFERROR(365/((RDG!E6+RDG!E7)/Bilanca!E41),) -> 26.10987999 | G14: =IFERROR(365/((RDG!F6+RDG!F7)/Bilanca!F41),) -> 26.10987999 | H14: 0 | I14: =IFERROR(365/((RDG!G6+RDG!G7)/Bilanca!G41),) -> 24.19039984 | J14: -1.919480154
B15: Dani plaćanja dobavljačima | C15: =IFERROR(365/(RDG!C13/(Bilanca!C123)),) -> 11.20132952 | D15: =IFERROR(365/(RDG!D13/(Bilanca!D123)),) -> 23.31380284 | E15: 12.11247332 | F15: =IFERROR(365/(RDG!E13/(Bilanca!E123)),) -> 24.19525406 | G15: =IFERROR(365/(RDG!F13/(Bilanca!F123)),) -> 24.19525406 | H15: 0 | I15: =IFERROR(365/(RDG!G13/(Bilanca!G123)),) -> 23.5335019 | J15: -0.6617521661
B16: Ekonomičnost ukupnog poslovanja | C16: =IFERROR(RDG!C57/RDG!C58,) -> 1.0213268 | D16: =IFERROR(RDG!D57/RDG!D58,) -> 1.018899034 | E16: -0.002427765954 | F16: =IFERROR(RDG!E57/RDG!E58,) -> 1.024942532 | G16: =IFERROR(RDG!F57/RDG!F58,) -> 1.024942532 | H16: 0 | I16: =IFERROR(RDG!G57/RDG!G58,) -> 1.029763943 | J16: 0.00482141098
B18: * Ostvareni rezultati se uspoređuju s planom, osim plana za slijedeću godinu koji se uspoređuje s procijenjenim rezultatom tekuće godine
B19: ** Plavo osjenčana pozadina označava planirane vrijednosti
B58: Dodatni komentari i pojašnjenja na rezultate
B69: =HYPERLINK("#Sadržaj!A1","Povratak na sadržaj") -> Povratak na sadržaj

Sheet Zaduženost (hidden)
B1: =Naslovna!B3&" - "&Naslovna!I2 -> Ministarstvo državne imovine - Godišnji financijski plan poslovanja
B2: SAŽETI PRIKAZ POKAZATELJA ZADUŽENOSTI
B4: Društvo: | C4: =Podloga!B2 -> LUKA-VUKOVAR d.o.o.
B5: Tip dokumenta: | C5: =Naslovna!B8 -> Godišnji financijski plan poslovanja
B6: Sastavlja se za godinu: | C6: =Podloga!B8 -> 2021
B8: Pokazatelji zaduženosti
C9: =Podloga!B36 -> 2019. planirano | D9: =Podloga!C36 -> 2019. ostvareno | F9: =Podloga!D36 -> 2020. planirano | G9: =Podloga!E36 -> 2020. procijenjeno | I9: =Podloga!F36 -> 2021. planirano
B10: Koeficijent zaduženosti | C10: =IFERROR(((Bilanca!C96+Bilanca!C103+Bilanca!C115+Bilanca!C130)/Bilanca!C68),) -> 0.09185541871 | D10: =IFERROR(((Bilanca!D96+Bilanca!D103+Bilanca!D115+Bilanca!D130)/Bilanca!D68),) -> 0.09650373812 | E10: =D10-C10 -> 0.004648319411 | F10: =IFERROR(((Bilanca!E96+Bilanca!E103+Bilanca!E115+Bilanca!E130)/Bilanca!E68),) -> 0.08613687722 | G10: =IFERROR(((Bilanca!F96+Bilanca!F103+Bilanca!F115+Bilanca!F130)/Bilanca!F68),) -> 0.08613687722 | H10: =G10-F10 -> 0 | I10: =IFERROR(((Bilanca!G96+Bilanca!G103+Bilanca!G115+Bilanca!G130)/Bilanca!G68),) -> 0.07709246985 | J10: =I10-G10 -> -0.009044407376
B11: Koeficijent vlastitog financiranja (kapital/ukupna imovina) | C11: =IFERROR((Bilanca!C75/Bilanca!C68),) -> 0.9081445813 | D11: =IFERROR((Bilanca!D75/Bilanca!D68),) -> 0.9034962619 | E11: =D11-C11 -> -0.004648319411 | F11: =IFERROR((Bilanca!E75/Bilanca!E68),) -> 0.9138631228 | G11: =IFERROR((Bilanca!F75/Bilanca!F68),) -> 0.9138631228 | H11: =G11-F11 -> 0 | I11: =IFERROR((Bilanca!G75/Bilanca!G68),) -> 0.9229075302 | J11: =I11-G11 -> 0.009044407376
B12: Koeficijent financiranja (ukupne obveze/kapital) | C12: =IFERROR(((Bilanca!C96+Bilanca!C103+Bilanca!C115+Bilanca!C130)/Bilanca!C75),) -> 0.1011462498 | D12: =IFERROR(((Bilanca!D96+Bilanca!D103+Bilanca!D115+Bilanca!D130)/Bilanca!D75),) -> 0.1068114415 | E12: =D12-C12 -> 0.00566519166 | F12: =IFERROR(((Bilanca!E96+Bilanca!E103+Bilanca!E115+Bilanca!E130)/Bilanca!E75),) -> 0.09425577538 | G12: =IFERROR(((Bilanca!F96+Bilanca!F103+Bilanca!F115+Bilanca!F130)/Bilanca!F75),) -> 0.09425577538 | H12: 0 | I12: =IFERROR(((Bilanca!G96+Bilanca!G103+Bilanca!G115+Bilanca!G130)/Bilanca!G75),) -> 0.08353217124 | J12: =I12-G12 -> -0.01072360413
B13: Odnos ukupne imovine i kapitala | C13: =IFERROR(Bilanca!C68/Bilanca!C75,) -> 1.10114625 | D13: =IFERROR(Bilanca!D68/Bilanca!D75,) -> 1.106811441 | E13: =D13-C13 -> 0.00566519166 | F13: =IFERROR(Bilanca!E68/Bilanca!E75,) -> 1.094255775 | G13: =IFERROR(Bilanca!F68/Bilanca!F75,) -> 1.094255775 | H13: 0 | I13: =IFERROR(Bilanca!G68/Bilanca!G75,) -> 1.083532171 | J13: =I13-G13 -> -0.01072360413
B15: * Ostvareni rezultati se uspoređuju s planom, osim plana za slijedeću godinu koji se uspoređuje s procijenjenim rezultatom tekuće godine
B16: ** Plavo osjenčana pozadina označava planirane vrijednosti
B57: Dodatni komentari i pojašnjenja na rezultate
B68: =HYPERLINK("#Sadržaj!A1","Povratak na sadržaj") -> Povratak na sadržaj

Sheet DuPont (hidden)
B1: =Naslovna!B3&" - "&Naslovna!I2 -> Ministarstvo državne imovine - Godišnji financijski plan poslovanja
B2: DuPont analiza | R2: ROE
T3: Index
B4: Društvo: | G4: =Podloga!B2 -> LUKA-VUKOVAR d.o.o. | R4: =LEFT(Podloga!B36,8) -> 2019. pl | S4: =O14*W14 -> 0.008898000853
B5: Tip dokumenta: | G5: =Naslovna!B8 -> Godišnji financijski plan poslovanja | R5: =LEFT(Podloga!C36,7) -> 2019. o | S5: 0.00849284422 | T5: =IFERROR((S5/S4)*100,) -> 95.4466555
B6: Sastavlja se za godinu: | G6: =Podloga!B8 -> 2021 | R6: =LEFT(Podloga!D36,8) -> 2020. pl | S6: 0.01004850202 | T6: 118.317277
R7: =LEFT(Podloga!E36,8) -> 2020. pr | S7: 0.01004850202 | T7: =IFERROR((S7/S5)*100,) -> 118.317277
R8: =LEFT(Podloga!F36,8) -> 2021. pl | S8: 0.01226755961 | T8: 122.0834667
N12: ROA | V12: Odnos imovine i kapitala
P13: Index | X13: Index
N14: =LEFT(Podloga!B36,8) -> 2019. pl | O14: =S17*K17 -> 0.008080671259 | V14: =LEFT(Podloga!B36,8) -> 2019. pl | W14: =IFERROR(Bilanca!C68/Bilanca!C75,) -> 1.10114625
J15: Neto profitna marža | N15: =LEFT(Podloga!C36,7) -> 2019. o | O15: =S18*K18 -> 0.007673253006 | P15: =IFERROR((O15/O14)*100,) -> 94.95811375 | R15: Koeficijent obrtaja imovine | V15: =LEFT(Podloga!C36,7) -> 2019. o | W15: =IFERROR(Bilanca!D68/Bilanca!D75,) -> 1.106811441 | X15: =IFERROR((W15/W14)*100,) -> 100.5144813
L16: Index | N16: =LEFT(Podloga!D36,8) -> 2020. pl | O16: =S19*K19 -> 0.009182955432 | P16: 119.6748683 | T16: Index | V16: =LEFT(Podloga!D36,8) -> 2020. pl | W16: =IFERROR(Bilanca!E68/Bilanca!E75,) -> 1.094255775 | X16: 98.86560026
J17: =LEFT(Podloga!B36,8) -> 2019. pl | K17: =IFERROR(G26/C36,) -> 0.02088146528 | N17: =LEFT(Podloga!E36,8) -> 2020. pr | O17: =S20*K20 -> 0.009182955432 | P17: =IFERROR((O17/O15)*100,) -> 119.6748683 | R17: =LEFT(Podloga!B36,8) -> 2019. pl | S17: =IFERROR(O26/W26,) -> 0.3869781719 | V17: =LEFT(Podloga!E36,8) -> 2020. pr | W17: =IFERROR(Bilanca!F68/Bilanca!F75,) -> 1.094255775 | X17: =IFERROR((W17/W15)*100,) -> 98.86560026
J18: =LEFT(Podloga!C36,8) -> 2019. os | K18: =IFERROR(G27/C37,) -> 0.01854848569 | L18: =IFERROR(K18/K17*100,) -> 88.82751018 | N18: =LEFT(Podloga!F36,8) -> 2021. pl | O18: =S21*K21 -> 0.01132182314 | P18: 123.291714 | R18: =LEFT(Podloga!C36,7) -> 2019. o | S18: =IFERROR(O27/W27,) -> 0.4136862239 | T18: =IFERROR((S18/S17)*100,) -> 106.9016947 | V18: =LEFT(Podloga!F36,8) -> 2021. pl | W18: =IFERROR(Bilanca!G68/Bilanca!G75,) -> 1.083532171 | X18: 99.02000936
J19: =LEFT(Podloga!D36,8) -> 2020. pl | K19: =IFERROR(G28/C38,) -> 0.02433554173 | L19: =IFERROR(K19/K18*100,) -> 131.1996145 | R19: =LEFT(Podloga!D36,8) -> 2020. pl | S19: =IFERROR(O28/W28,) -> 0.3773474835 | T19: =IFERROR((S19/S18)*100,) -> 91.21586888
J20: =LEFT(Podloga!E36,8) -> 2020. pr | K20: =IFERROR(G29/C39,) -> 0.02433554173 | L20: =IFERROR(K20/K18*100,) -> 131.1996145 | R20: =LEFT(Podloga!E36,8) -> 2020. pr | S20: =IFERROR(O29/W29,) -> 0.3773474835 | T20: =IFERROR((S20/S18)*100,) -> 91.21586888
J21: =LEFT(Podloga!F36,8) -> 2021. pl | K21: =IFERROR(G30/C40,) -> 0.02890365597 | L21: =IFERROR(K21/K20*100,) -> 118.7713686 | R21: =LEFT(Podloga!F36,8) -> 2021. pl | S21: =IFERROR(O30/W30,) -> 0.3917090335 | T21: =IFERROR((S21/S20)*100,) -> 103.8059217
F24: Neto dobit ili gubitak razdoblja (u mil. HRK) | N24: Ukupni prihodi (u mil. HRK) | V24: Ukupna imovina (u mil. HRK)
H25: Index | P25: Index | X25: Index
F26: =LEFT(Podloga!B36,8) -> 2019. pl | G26: =RDG!C63 -> 274215.9399 | N26: =LEFT(Podloga!B36,8) -> 2019. pl | O26: =RDG!C57 -> 13132025.76 | V26: =LEFT(Podloga!B36,8) -> 2019. pl | W26: =Bilanca!C68 -> 33934797.14
F27: =LEFT(Podloga!C36,7) -> 2019. o | G27: =RDG!D63 -> 262462 | H27: =IFERROR(G27/G26*100,) -> 95.71361901 | N27: =LEFT(Podloga!C36,7) -> 2019. o | O27: =RDG!D57 -> 14150050 | P27: =IFERROR(O27/O26*100,) -> 107.7522254 | V27: =LEFT(Podloga!C36,7) -> 2019. o | W27: =Bilanca!D68 -> 34204789 | X27: =IFERROR(W27/W26*100,) -> 100.7956195
F28: =LEFT(Podloga!D36,8) -> 2020. pl | G28: =RDG!E63 -> 313690 | H28: =IFERROR(G28/G27*100,) -> 119.5182541 | N28: =LEFT(Podloga!D36,8) -> 2020. pl | O28: =RDG!E57 -> 12890200 | P28: =IFERROR(O28/O27*100,) -> 91.09649789 | V28: =LEFT(Podloga!D36,8) -> 2020. pl | W28: =Bilanca!E68 -> 34160026.4 | X28: =IFERROR(W28/W27*100,) -> 99.86913353
F29: =LEFT(Podloga!E36,8) -> 2020. pr | G29: =RDG!F63 -> 313690 | H29: =IFERROR(G29/G27*100,) -> 119.5182541 | N29: =LEFT(Podloga!E36,8) -> 2020. pr | O29: =RDG!F57 -> 12890200 | P29: =IFERROR(O29/O27*100,) -> 91.09649789 | V29: =LEFT(Podloga!E36,8) -> 2020. pr | W29: =Bilanca!F68 -> 34160026.4 | X29: =IFERROR(W29/W27*100,) -> 99.86913353
F30: =LEFT(Podloga!F36,8) -> 2021. pl | G30: =RDG!G63 -> 387720 | H30: =IFERROR(G30/G29*100,) -> 123.5997322 | N30: =LEFT(Podloga!F36,8) -> 2021. pl | O30: =RDG!G57 -> 13414220 | P30: =IFERROR(O30/O29*100,) -> 104.0652589 | V30: =LEFT(Podloga!F36,8) -> 2021. pl | W30: =Bilanca!G68 -> 34245368 | X30: =IFERROR(W30/W29*100,) -> 100.2498288
B34: Ukupni prihodi (u mil. HRK) | J34: Ukupni rashodi + porez na dobit (u mil. HRK) | R34: Kratkotrajna imovina (u mil. HRK) | Z34: Dugotrajna imovina (u mil. HRK)
D35: Index | L35: Index | T35: Index | AB35: Index
B36: =LEFT(Podloga!B36,8) -> 2019. pl | C36: =RDG!C57 -> 13132025.76 | J36: =LEFT(Podloga!B36,8) -> 2019. pl | K36: =RDG!C58+RDG!C62 -> 12857809.82 | R36: =LEFT(Podloga!B36,8) -> 2019. pl | S36: =Bilanca!C40+Bilanca!C67 -> 17893850.14 | Z36: =LEFT(Podloga!B36,8) -> 2019. pl | AA36: =Bilanca!C5 -> 16040947
B37: =LEFT(Podloga!C36,7) -> 2019. o | C37: =RDG!D57 -> 14150050 | D37: =IFERROR(C37/C36*100,) -> 107.7522254 | J37: =LEFT(Podloga!C36,7) -> 2019. o | K37: =RDG!D58+RDG!D62 -> 13887588 | L37: =IFERROR(K37/K36*100,) -> 108.0089704 | R37: =LEFT(Podloga!C36,7) -> 2019. o | S37: =Bilanca!D40+Bilanca!D67 -> 17572932 | T37: =IFERROR(S37/S36*100,) -> 98.20654506 | Z37: =LEFT(Podloga!C36,7) -> 2019. o | AA37: =Bilanca!D5 -> 16631857 | AB37: =IFERROR(AA37/AA36*100,) -> 103.6837601
B38: =LEFT(Podloga!D36,8) -> 2020. pl | C38: =RDG!E57 -> 12890200 | D38: =IFERROR(C38/C37*100,) -> 91.09649789 | J38: =LEFT(Podloga!D36,8) -> 2020. pl | K38: =RDG!E58+RDG!E62 -> 12576510 | L38: =IFERROR(K38/K37*100,) -> 90.55935415 | R38: =LEFT(Podloga!D36,8) -> 2020. pl | S38: =Bilanca!E40+Bilanca!E67 -> 18145247.4 | T38: =IFERROR(S38/S37*100,) -> 103.2568009 | Z38: =LEFT(Podloga!D36,8) -> 2020. pl | AA38: =Bilanca!E5 -> 16014779 | AB38: =IFERROR(AA38/AA37*100,) -> 96.28978291
B39: =LEFT(Podloga!E36,8) -> 2020. pr | C39: =RDG!F57 -> 12890200 | D39: =IFERROR(C39/C37*100,) -> 91.09649789 | J39: =LEFT(Podloga!E36,8) -> 2020. pr | K39: =RDG!F58+RDG!F62 -> 12576510 | L39: =IFERROR(K39/K37*100,) -> 90.55935415 | R39: =LEFT(Podloga!E36,8) -> 2020. pr | S39: =Bilanca!F40+Bilanca!F67 -> 18145247.4 | T39: =IFERROR(S39/S37*100,) -> 103.2568009 | Z39: =LEFT(Podloga!E36,8) -> 2020. pr | AA39: =Bilanca!F5 -> 16014779 | AB39: =IFERROR(AA39/AA37*100,) -> 96.28978291
B40: =LEFT(Podloga!F36,8) -> 2021. pl | C40: =RDG!G57 -> 13414220 | D40: =IFERROR(C40/C39*100,) -> 104.0652589 | J40: =LEFT(Podloga!F36,8) -> 2021. pl | K40: =RDG!G58+RDG!G62 -> 13026500 | L40: =IFERROR(K40/K39*100,) -> 103.5780197 | R40: =LEFT(Podloga!F36,8) -> 2021. pl | S40: =Bilanca!G40+Bilanca!G67 -> 18314839 | T40: =IFERROR(S40/S39*100,) -> 100.9346337 | Z40: =LEFT(Podloga!F36,8) -> 2021. pl | AA40: =Bilanca!G5 -> 15930529 | AB40: =IFERROR(AA40/AA39*100,) -> 99.47392343
A44: * Procijenjeni i planirani rezultat za tekuću godinu se uspoređuju s ostvarenim rezultatom poslovanja u prethodnoj godini
B50: =HYPERLINK("#Sadržaj!A1","Povratak na sadržaj") -> Povratak na sadržaj

Sheet _TM_Altman Integral (Basic) (hidden)
A1: Left | B1: Top | C1: Right | D1: Bottom | E1: Ref
A2: 2 | B2: 1 | C2: 10 | D2: 1 | E2: $B$1:$J$1

Sheet Altman Integral (Basic) (hidden)
B1: =Naslovna!B3&" - "&Naslovna!I2 -> Ministarstvo državne imovine - Godišnji financijski plan poslovanja
A2: Altman Integral (Basic)
B4: Društvo: | C4: =Podloga!B2 -> LUKA-VUKOVAR d.o.o.
B5: Tip dokumenta: | C5: =Naslovna!B8 -> Godišnji financijski plan poslovanja
B6: Sastavlja se za godinu: | C6: =Podloga!B8 -> 2021
B8: Basic model se koristi za proizvodna trgovačka društva koja kotiraju na burzi
C30: =LEFT(Podloga!B36,8) -> 2019. pl | D30: =LEFT(Podloga!C36,7) -> 2019. o | E30: =LEFT(Podloga!D36,8) -> 2020. pl | F30: =LEFT(Podloga!E36,8) -> 2020. pr | G30: =LEFT(Podloga!F36,8) -> 2021. pl
B31: Z-score | C31: =IFERROR('Dashboard (data)'!$BT$2*'Dashboard (data)'!BM2+'Dashboard (data)'!$BT$3*'Dashboard (data)'!BM3+'Dashboard (data)'!$BT$4*'Dashboard (data)'!BM4+'Dashboard (data)'!$BT$5*'Dashboard (data)'!BM5+'Dashboard (data)'!$BT$6*'Dashboard (data)'!BM6,) -> 0.8206254805 | D31: =IFERROR('Dashboard (data)'!$BT$2*'Dashboard (data)'!BN2+'Dashboard (data)'!$BT$3*'Dashboard (data)'!BN3+'Dashboard (data)'!$BT$4*'Dashboard (data)'!BN4+'Dashboard (data)'!$BT$5*'Dashboard (data)'!BN5+'Dashboard (data)'!$BT$6*'Dashboard (data)'!BN6,) -> 0.843064841 | E31: =IFERROR('Dashboard (data)'!$BT$2*'Dashboard (data)'!BO2+'Dashboard (data)'!$BT$3*'Dashboard (data)'!BO3+'Dashboard (data)'!$BT$4*'Dashboard (data)'!BO4+'Dashboard (data)'!$BT$5*'Dashboard (data)'!BO5+'Dashboard (data)'!$BT$6*'Dashboard (data)'!BO6,) -> 0.8428879505 | F31: =IFERROR('Dashboard (data)'!$BT$2*'Dashboard (data)'!BP2+'Dashboard (data)'!$BT$3*'Dashboard (data)'!BP3+'Dashboard (data)'!$BT$4*'Dashboard (data)'!BP4+'Dashboard (data)'!$BT$5*'Dashboard (data)'!BP5+'Dashboard (data)'!$BT$6*'Dashboard (data)'!BP6,) -> 0.8428879505 | G31: =IFERROR('Dashboard (data)'!$BT$2*'Dashboard (data)'!BQ2+'Dashboard (data)'!$BT$3*'Dashboard (data)'!BQ3+'Dashboard (data)'!$BT$4*'Dashboard (data)'!BQ4+'Dashboard (data)'!$BT$5*'Dashboard (data)'!BQ5+'Dashboard (data)'!$BT$6*'Dashboard (data)'!BQ6,) -> 0.8822053248
B34: Objašnjenje | C34: Raspon vrijednosti vezan uz rizik bankrota (od -4,00 do +8,00)
C35: Vrlo niski rizik | D35: Zona nesigurnosti | F35: Visoki rizik
B36: Z-score model (Basic) | C36: ≥ 3,00 | D36: 2,99 – 1,81 | F36: ≤ 1,80
C39: =LEFT(Podloga!B36,8) -> 2019. pl | D39: =LEFT(Podloga!C36,7) -> 2019. o | E39: =LEFT(Podloga!D36,8) -> 2020. pl | F39: =LEFT(Podloga!E36,8) -> 2020. pr | G39: =LEFT(Podloga!F36,8) -> 2021. pl
B40: Kratkotrajna imovina | C40: =Bilanca!C40 -> 17543850.14 | D40: =Bilanca!D40 -> 17437730 | E40: =Bilanca!E40 -> 18003247.4 | F40: =Bilanca!F40 -> 18003247.4 | G40: =Bilanca!G40 -> 18179839
B41: Ukupna imovina | C41: =Bilanca!C68 -> 33934797.14 | D41: =Bilanca!D68 -> 34204789 | E41: =Bilanca!E68 -> 34160026.4 | F41: =Bilanca!F68 -> 34160026.4 | G41: =Bilanca!G68 -> 34245368
B42: Zadržana dobit | C42: =Bilanca!C89 -> -5172713.8 | D42: =Bilanca!D89 -> -5074763 | E42: =Bilanca!E89 -> -4812301.6 | F42: =Bilanca!F89 -> -4812301.6 | G42: =Bilanca!G89 -> -4498612
B43: Operativna dobit (EBIT) | C43: =RDG!C59+RDG!C46+RDG!C48 -> 274215.9399 | D43: =RDG!D59+RDG!D46+RDG!D48 -> 262484 | E43: =RDG!E59+RDG!E46+RDG!E48 -> 314000 | F43: =RDG!F59+RDG!F46+RDG!F48 -> 314000 | G43: =RDG!G59+RDG!G46+RDG!G48 -> 387720
B44: Knjigovodstvena vrijednost ukupnih obveza | C44: =Bilanca!C103+Bilanca!C115 -> 751785 | D44: =Bilanca!D103+Bilanca!D115 -> 935577 | E44: =Bilanca!E103+Bilanca!E115 -> 892500 | F44: =Bilanca!F103+Bilanca!F115 -> 892500 | G44: =Bilanca!G103+Bilanca!G115 -> 905500
B45: Ukupni prihodi | C45: =RDG!C57 -> 13132025.76 | D45: =RDG!D57 -> 14150050 | E45: =RDG!E57 -> 12890200 | F45: =RDG!F57 -> 12890200 | G45: =RDG!G57 -> 13414220
B46: Tržišna vrijednost vlasničkog kapitala** | C46: =Podloga!B32*Podloga!B33 -> 0 | D46: =Podloga!B32*Podloga!B33 -> 0 | E46: =Podloga!C32*Podloga!C33 -> 0 | F46: =Podloga!C32*Podloga!C33 -> 0 | G46: =Podloga!C32*Podloga!C33 -> 0
B47: * Plavo osjenčana pozadina označava planirane vrijednosti
B48: ** Umjesto tržišne vrijednosti vlasničkog kapitala za buduće razdoblje uzima se zadnje važeća vrijednost
B50: Dodatni komentari i pojašnjenja na rezultate
B61: =HYPERLINK("#Sadržaj!A1","Povratak na sadržaj") -> Povratak na sadržaj

Sheet _TM_Altman Integral (A) (hidden)
A1: Left | B1: Top | C1: Right | D1: Bottom | E1: Ref
A2: 2 | B2: 1 | C2: 2 | D2: 1 | E2: $B$1

Sheet Altman Integral (A) (hidden)
B1: =Naslovna!B3&" - "&Naslovna!I2 -> Ministarstvo državne imovine - Godišnji financijski plan poslovanja
A2: Altman Integral (A)
B4: Društvo: | C4: =Podloga!B2 -> LUKA-VUKOVAR d.o.o.
B5: Tip dokumenta: | C5: =Naslovna!B8 -> Godišnji financijski plan poslovanja
B6: Sastavlja se za godinu: | C6: =Podloga!B8 -> 2021
B9: A model se koristi za trgovačka društva koja ne kotiraju na burzi
C26: =LEFT(Podloga!B36,8) -> 2019. pl | D26: =LEFT(Podloga!C36,7) -> 2019. o | E26: =LEFT(Podloga!D36,8) -> 2020. pl | F26: =LEFT(Podloga!E36,8) -> 2020. pr | G26: =LEFT(Podloga!F36,8) -> 2021. pl
B27: Z-score | C27: =IFERROR('Dashboard (data)'!$BT$13*'Dashboard (data)'!BM13+'Dashboard (data)'!$BT$14*'Dashboard (data)'!BM14+'Dashboard (data)'!$BT$15*'Dashboard (data)'!BM15+'Dashboard (data)'!$BT$16*'Dashboard (data)'!BM16+'Dashboard (data)'!$BT$17*'Dashboard (data)'!BM17,) -> 20.60646401 | D27: =IFERROR('Dashboard (data)'!$BT$13*'Dashboard (data)'!BN13+'Dashboard (data)'!$BT$14*'Dashboard (data)'!BN14+'Dashboard (data)'!$BT$15*'Dashboard (data)'!BN15+'Dashboard (data)'!$BT$16*'Dashboard (data)'!BN16+'Dashboard (data)'!$BT$17*'Dashboard (data)'!BN17,) -> 16.71031256 | E27: =IFERROR('Dashboard (data)'!$BT$13*'Dashboard (data)'!BO13+'Dashboard (data)'!$BT$14*'Dashboard (data)'!BO14+'Dashboard (data)'!$BT$15*'Dashboard (data)'!BO15+'Dashboard (data)'!$BT$16*'Dashboard (data)'!BO16+'Dashboard (data)'!$BT$17*'Dashboard (data)'!BO17,) -> 17.47133281 | F27: =IFERROR('Dashboard (data)'!$BT$13*'Dashboard (data)'!BP13+'Dashboard (data)'!$BT$14*'Dashboard (data)'!BP14+'Dashboard (data)'!$BT$15*'Dashboard (data)'!BP15+'Dashboard (data)'!$BT$16*'Dashboard (data)'!BP16+'Dashboard (data)'!$BT$17*'Dashboard (data)'!BP17,) -> 17.47133281 | G27: =IFERROR('Dashboard (data)'!$BT$13*'Dashboard (data)'!BQ13+'Dashboard (data)'!$BT$14*'Dashboard (data)'!BQ14+'Dashboard (data)'!$BT$15*'Dashboard (data)'!BQ15+'Dashboard (data)'!$BT$16*'Dashboard (data)'!BQ16+'Dashboard (data)'!$BT$17*'Dashboard (data)'!BQ17,) -> 17.2617923
B30: Objašnjenje | C30: Raspon vrijednosti vezan uz rizik bankrota (od -4,00 do +8,00)
C31: Vrlo niski rizik | D31: Zona nesigurnosti | F31: Visoki rizik
B32: Z-score model (A model) | C32: ≥ 2,90 | D32: 2,89 – 1,24 | F32: ≤ 1,23
C34: =LEFT(Podloga!B36,8) -> 2019. pl | D34: =LEFT(Podloga!C36,7) -> 2019. o | E34: =LEFT(Podloga!D36,8) -> 2020. pl | F34: =LEFT(Podloga!E36,8) -> 2020. pr | G34: =LEFT(Podloga!F36,8) -> 2021. pl
B35: Kratkotrajna imovina | C35: =Bilanca!C40 -> 17543850.14 | D35: =Bilanca!D40 -> 17437730 | E35: =Bilanca!E40 -> 18003247.4 | F35: =Bilanca!F40 -> 18003247.4 | G35: =Bilanca!G40 -> 18179839
B36: Ukupna imovina | C36: =Bilanca!C68 -> 33934797.14 | D36: =Bilanca!D68 -> 34204789 | E36: =Bilanca!E68 -> 34160026.4 | F36: =Bilanca!F68 -> 34160026.4 | G36: =Bilanca!G68 -> 34245368
B37: Zadržana dobit | C37: =Bilanca!C89 -> -5172713.8 | D37: =Bilanca!D89 -> -5074763 | E37: =Bilanca!E89 -> -4812301.6 | F37: =Bilanca!F89 -> -4812301.6 | G37: =Bilanca!G89 -> -4498612
B38: Operativna dobit (EBIT) | C38: =RDG!C59+RDG!C46+RDG!C48 -> 274215.9399 | D38: =RDG!D59+RDG!D46+RDG!D48 -> 262484 | E38: =RDG!E59+RDG!E46+RDG!E48 -> 314000 | F38: =RDG!F59+RDG!F46+RDG!F48 -> 314000 | G38: =RDG!G59+RDG!G46+RDG!G48 -> 387720
B39: Knjigovodstvena vrijednost ukupnih obveza | C39: =Bilanca!C103+Bilanca!C115 -> 751785 | D39: =Bilanca!D103+Bilanca!D115 -> 935577 | E39: =Bilanca!E103+Bilanca!E115 -> 892500 | F39: =Bilanca!F103+Bilanca!F115 -> 892500 | G39: =Bilanca!G103+Bilanca!G115 -> 905500
B40: Ukupni prihodi | C40: =RDG!C57 -> 13132025.76 | D40: =RDG!D57 -> 14150050 | E40: =RDG!E57 -> 12890200 | F40: =RDG!F57 -> 12890200 | G40: =RDG!G57 -> 13414220
B41: Knjigovodstvena vrijednost vlasn. kapitala | C41: =Bilanca!C76+Bilanca!C77 -> 35716200 | D41: =Bilanca!D76+Bilanca!D77 -> 35716200 | E41: =Bilanca!E76+Bilanca!E77 -> 35716200 | F41: =Bilanca!F76+Bilanca!F77 -> 35716200 | G41: =Bilanca!G76+Bilanca!G77 -> 35716200
B43: * Plavo osjenčana pozadina označava planirane vrijednosti
B46: Dodatni komentari i pojašnjenja na rezultate
B57: =HYPERLINK("#Sadržaj!A1","Povratak na sadržaj") -> Povratak na sadržaj

Sheet _TM_Altman Integral (B) (hidden)
A1: Left | B1: Top | C1: Right | D1: Bottom | E1: Ref
A2: 2 | B2: 1 | C2: 7 | D2: 1 | E2: $B$1:$G$1

Sheet Altman Integral (B) (hidden)
B1: =Naslovna!B3&" - "&Naslovna!I2 -> Ministarstvo državne imovine - Godišnji financijski plan poslovanja
A2: Altman Integral (B)
B4: Društvo: | C4: =Podloga!B2 -> LUKA-VUKOVAR d.o.o.
B5: Tip dokumenta: | C5: =Naslovna!B8 -> Godišnji financijski plan poslovanja
B6: Sastavlja se za godinu: | C6: =Podloga!B8 -> 2021
B9: B model se koristi za neproizvodna trgovačka društva koja kotiraju na burzi
C26: =LEFT(Podloga!B36,8) -> 2019. pl | D26: =LEFT(Podloga!C36,7) -> 2019. o | E26: =LEFT(Podloga!D36,8) -> 2020. pl | F26: =LEFT(Podloga!E36,8) -> 2020. pr | G26: =LEFT(Podloga!F36,8) -> 2021. pl
B27: Z-score | C27: =IFERROR('Dashboard (data)'!$BT$23*'Dashboard (data)'!BM23+'Dashboard (data)'!$BT$24*'Dashboard (data)'!BM24+'Dashboard (data)'!$BT$25*'Dashboard (data)'!BM25+'Dashboard (data)'!$BT$26*'Dashboard (data)'!BM26,) -> 2.948812119 | D27: =IFERROR('Dashboard (data)'!$BT$23*'Dashboard (data)'!BN23+'Dashboard (data)'!$BT$24*'Dashboard (data)'!BN24+'Dashboard (data)'!$BT$25*'Dashboard (data)'!BN25+'Dashboard (data)'!$BT$26*'Dashboard (data)'!BN26,) -> 2.912214249 | E27: =IFERROR('Dashboard (data)'!$BT$23*'Dashboard (data)'!BO23+'Dashboard (data)'!$BT$24*'Dashboard (data)'!BO24+'Dashboard (data)'!$BT$25*'Dashboard (data)'!BO25+'Dashboard (data)'!$BT$26*'Dashboard (data)'!BO26,) -> 3.059812616 | F27: =IFERROR('Dashboard (data)'!$BT$23*'Dashboard (data)'!BP23+'Dashboard (data)'!$BT$24*'Dashboard (data)'!BP24+'Dashboard (data)'!$BT$25*'Dashboard (data)'!BP25+'Dashboard (data)'!$BT$26*'Dashboard (data)'!BP26,) -> 3.059812616 | G27: =IFERROR('Dashboard (data)'!$BT$23*'Dashboard (data)'!BQ23+'Dashboard (data)'!$BT$24*'Dashboard (data)'!BQ24+'Dashboard (data)'!$BT$25*'Dashboard (data)'!BQ25+'Dashboard (data)'!$BT$26*'Dashboard (data)'!BQ26,) -> 3.130342974
B30: Objašnjenje | C30: Raspon vrijednosti vezan uz rizik bankrota (od -4,00 do +8,00)
C31: Vrlo niski rizik | D31: Zona nesigurnosti | F31: Visoki rizik
B32: Z-score model (B model) | C32: ≥ 2,60 | D32: 2,59 – 1,11 | F32: ≤ 1,1
C34: =LEFT(Podloga!B36,8) -> 2019. pl | D34: =LEFT(Podloga!C36,7) -> 2019. o | E34: =LEFT(Podloga!D36,8) -> 2020. pl | F34: =LEFT(Podloga!E36,8) -> 2020. pr | G34: =LEFT(Podloga!F36,8) -> 2021. pl
B35: Kratkotrajna imovina | C35: =Bilanca!C40 -> 17543850.14 | D35: =Bilanca!D40 -> 17437730 | E35: =Bilanca!E40 -> 18003247.4 | F35: =Bilanca!F40 -> 18003247.4 | G35: =Bilanca!G40 -> 18179839
B36: Ukupna imovina | C36: =Bilanca!C68 -> 33934797.14 | D36: =Bilanca!D68 -> 34204789 | E36: =Bilanca!E68 -> 34160026.4 | F36: =Bilanca!F68 -> 34160026.4 | G36: =Bilanca!G68 -> 34245368
B37: Zadržana dobit | C37: =Bilanca!C89 -> -5172713.8 | D37: =Bilanca!D89 -> -5074763 | E37: =Bilanca!E89 -> -4812301.6 | F37: =Bilanca!F89 -> -4812301.6 | G37: =Bilanca!G89 -> -4498612
B38: Operativna dobit (EBIT) | C38: =RDG!C59+RDG!C46+RDG!C48 -> 274215.9399 | D38: =RDG!D59+RDG!D46+RDG!D48 -> 262484 | E38: =RDG!E59+RDG!E46+RDG!E48 -> 314000 | F38: =RDG!F59+RDG!F46+RDG!F48 -> 314000 | G38: =RDG!G59+RDG!G46+RDG!G48 -> 387720
B39: Knjigovodstvena vrijednost ukupnih obveza | C39: =Bilanca!C103+Bilanca!C115 -> 751785 | D39: =Bilanca!D103+Bilanca!D115 -> 935577 | E39: =Bilanca!E103+Bilanca!E115 -> 892500 | F39: =Bilanca!F103+Bilanca!F115 -> 892500 | G39: =Bilanca!G103+Bilanca!G115 -> 905500
B40: Ukupni prihodi | C40: =RDG!C57 -> 13132025.76 | D40: =RDG!D57 -> 14150050 | E40: =RDG!E57 -> 12890200 | F40: =RDG!F57 -> 12890200 | G40: =RDG!G57 -> 13414220
B41: Tržišna vrijednost vlasničkog kapitala** | C41: =Podloga!B32*Podloga!B33 -> 0 | D41: =Podloga!B32*Podloga!B33 -> 0 | E41: =Podloga!C32*Podloga!C33 -> 0 | F41: =Podloga!C32*Podloga!C33 -> 0 | G41: =Podloga!C32*Podloga!C33 -> 0
B43: * Plavo osjenčana pozadina označava planirane vrijednosti
B44: ** Umjesto tržišne vrijednosti vlasničkog kapitala za buduće razdoblje uzima se zadnje važeća vrijednost
B46: Dodatni komentari i pojašnjenja na rezultate
B57: =HYPERLINK("#Sadržaj!A1","Povratak na sadržaj") -> Povratak na sadržaj

Sheet _TM_Dashboard (hidden)
A1: Left | B1: Top | C1: Right | D1: Bottom | E1: Ref
A2: 1 | B2: 33 | C2: 7 | D2: 33 | E2: $A$33:$G$33
A3: 1 | B3: 6 | C3: 16 | D3: 6 | E3: $A$6:$P$6
A4: 2 | B4: 23 | C4: 8 | D4: 27 | E4: $B$23:$H$27
A5: 1 | B5: 28 | C5: 16 | D5: 28 | E5: $A$28:$P$28
A6: 1 | B6: 30 | C6: 16 | D6: 30 | E6: $A$30:$P$30
A7: 1 | B7: 34 | C7: 7 | D7: 34 | E7: $A$34:$G$34

Sheet _TM_Dashboard (data) (hidden)
A1: Left | B1: Top | C1: Right | D1: Bottom | E1: Ref
A2: 53 | B2: 59 | C2: 60 | D2: 65 | E2: $BA$59:$BH$65
A3: 53 | B3: 1 | C3: 60 | D3: 5 | E3: $BA$1:$BH$5
A4: 53 | B4: 6 | C4: 60 | D4: 9 | E4: $BA$6:$BH$9
A5: 53 | B5: 11 | C5: 60 | D5: 13 | E5: $BA$11:$BH$13
A6: 53 | B6: 14 | C6: 60 | D6: 16 | E6: $BA$14:$BH$16
A7: 53 | B7: 17 | C7: 60 | D7: 26 | E7: $BA$17:$BH$26
A8: 53 | B8: 27 | C8: 60 | D8: 30 | E8: $BA$27:$BH$30
A9: 53 | B9: 31 | C9: 60 | D9: 34 | E9: $BA$31:$BH$34
A10: 53 | B10: 35 | C10: 60 | D10: 37 | E10: $BA$35:$BH$37
A11: 53 | B11: 39 | C11: 60 | D11: 41 | E11: $BA$39:$BH$41
A12: 53 | B12: 52 | C12: 59 | D12: 56 | E12: $BA$52:$BG$56
A13: 53 | B13: 68 | C13: 60 | D13: 75 | E13: $BA$68:$BH$75
A14: 53 | B14: 79 | C14: 60 | D14: 94 | E14: $BA$79:$BH$94
A15: 53 | B15: 95 | C15: 55 | D15: 107 | E15: $BA$95:$BC$107
A16: 64 | B16: 1 | C16: 72 | D16: 8 | E16: $BL$1:$BT$8
A17: 64 | B17: 12 | C17: 72 | D17: 19 | E17: $BL$12:$BT$19
A18: 64 | B18: 22 | C18: 72 | D18: 28 | E18: $BL$22:$BT$28
A19: 66 | B19: 120 | C19: 72 | D19: 127 | E19: $BN$120:$BT$127
A20: 86 | B20: 1 | C20: 90 | D20: 35 | E20: $CH$1:$CL$35
A21: 84 | B21: 1 | C21: 84 | D21: 35 | E21: $CF$1:$CF$35
A22: 85 | B22: 1 | C22: 85 | D22: 18 | E22: $CG$1:$CG$18
A23: 85 | B23: 19 | C23: 85 | D23: 35 | E23: $CG$19:$CG$35
A24: 94 | B24: 1 | C24: 98 | D24: 29 | E24: $CP$1:$CT$29
A25: 92 | B25: 1 | C25: 92 | D25: 29 | E25: $CN$1:$CN$29
A26: 93 | B26: 1 | C26: 93 | D26: 15 | E26: $CO$1:$CO$15
A27: 93 | B27: 16 | C27: 93 | D27: 29 | E27: $CO$16:$CO$29
A28: 100 | B28: 17 | C28: 110 | D28: 29 | E28: $CV$17:$DF$29
A29: 101 | B29: 1 | C29: 108 | D29: 8 | E29: $CW$1:$DD$8
A30: 110 | B30: 1 | C30: 116 | D30: 4 | E30: $DF$1:$DL$4
A31: 110 | B31: 7 | C31: 116 | D31: 12 | E31: $DF$7:$DL$12
A32: 118 | B32: 1 | C32: 125 | D32: 4 | E32: $DN$1:$DU$4
A33: 118 | B33: 6 | C33: 125 | D33: 12 | E33: $DN$6:$DU$12
A34: 118 | B34: 14 | C34: 125 | D34: 19 | E34: $DN$14:$DU$19
A35: 112 | B35: 15 | C35: 115 | D35: 18 | E35: $DH$15:$DK$18
A36: 112 | B36: 20 | C36: 115 | D36: 23 | E36: $DH$20:$DK$23
A37: 53 | B37: 43 | C37: 58 | D37: 46 | E37: $BA$43:$BF$46
A38: 76 | B38: 2 | C38: 76 | D38: 3 | E38: $BX$2:$BX$3

Sheet Dashboard (data) (hidden)
AO1: Računovodstveni standard | AP1: Pravni oblik | AR1: Funkcija revizorski | AS1: FUNKCIJA NO | AT1: PREDSTAVNIK | AU1: SPOL | AV1: Funkcija Uprava | AZ1: Veličina društva | BB1: =Podloga!B36 -> 2019. planirano | BC1: =Podloga!C36 -> 2019. ostvareno | BD1: =Podloga!D36 -> 2020. planirano | BE1: =Podloga!E36 -> 2020. procijenjeno | BF1: =Podloga!F36 -> 2021. planirano | BL1: Altman basic | CF1: Analiza bruto dobiti | CG1: U tisućama kuna | CH1: Bruto dobit prethodne godine | CI1: =RDG!D59 -> 262462 | CJ1: =CI1 -> 262462 | CN1: =CH1 -> Bruto dobit prethodne godine | CO1: =CJ1 -> 262462 | CP1: =CK1 -> 0 | CQ1: =IF(CI1>=0,CL1,0) -> 0 | CR1: =IF(CI1<0,CL1,0) -> 0 | CS1: =IF(CI1>=0,CM1,0) -> 0 | CT1: =IF(CI1<0,CM1,0) -> 0 | CU1: 0 | CV1: Analiza EBITDA (plan 2015 / ostvareno 2015) | CW1: U tisućama kuna | CX1: Planirana EBITDA tekuće godine | CY1: =BD3 -> 1629000 | CZ1: =CY1 -> 1629000 | DD1: =CX1 -> Planirana EBITDA tekuće godine | DE1: =CZ1 -> 1629000 | DF1: =DA1 -> 0 | DG1: =IF(CY1>=0,DB1,0) -> 0 | DH1: =IF(CY1<0,DB1,0) -> 0 | DI1: =IF(CY1>=0,DC1,0) -> 0 | DJ1: =IF(CY1<0,DC1,0) -> 0 | DK1: 0 | DN1: =Podloga!B36 -> 2019. planirano | DO1: =Podloga!C36 -> 2019. ostvareno | DP1: =Podloga!D36 -> 2020. planirano | DQ1: =Podloga!E36 -> 2020. procijenjeno | DR1: =Podloga!F36 -> 2021. planirano | DW1: =Podloga!B36 -> 2019. planirano | DX1: =Podloga!C36 -> 2019. ostvareno | DY1: =Podloga!D36 -> 2020. planirano | DZ1: =Podloga!E36 -> 2020. procijenjeno | EA1: =Podloga!F36 -> 2021. planirano | EF1: =Podloga!B36 -> 2019. planirano | EG1: =Podloga!C36 -> 2019. ostvareno | EH1: =Podloga!D36 -> 2020. planirano | EI1: =Podloga!E36 -> 2020. procijenjeno | EJ1: =Podloga!F36 -> 2021. planirano | EM1: =Podloga!C36 -> 2019. ostvareno | EN1: =Podloga!E36 -> 2020. procijenjeno | EO1: =Podloga!B36 -> 2019. planirano | EP1: =Podloga!D36 -> 2020. planirano | EQ1: =Podloga!F36 -> 2021. planirano
AO2: HSFI | AP2: d.o.o. | AR2: Predsjednik | AS2: Predsjednik | AT2: RH | AU2: M | AV2: Predsjednik | AX2: DA | AY2: Donacija | AZ2: Mikro | BA2: Ukupni prihod | BB2: =RDG!C57 -> 13132025.76 | BC2: =RDG!D57 -> 14150050 | BD2: =RDG!E57 -> 12890200 | BE2: =RDG!F57 -> 12890200 | BF2: =RDG!G57 -> 13414220 | BL2: X1 | BM2: =IFERROR('Altman Integral (Basic)'!C40/'Altman Integral (Basic)'!C41,) -> 0.5169870345 | BN2: =IFERROR('Altman Integral (Basic)'!D40/'Altman Integral (Basic)'!D41,) -> 0.5098037588 | BO2: =IFERROR('Altman Integral (Basic)'!E40/'Altman Integral (Basic)'!E41,) -> 0.5270267414 | BP2: =IFERROR('Altman Integral (Basic)'!F40/'Altman Integral (Basic)'!F41,) -> 0.5270267414 | BQ2: =IFERROR('Altman Integral (Basic)'!G40/'Altman Integral (Basic)'!G41,) -> 0.5308700143 | BR2: Koeficijent: | BS2: X1 | BT2: 1.2 | BX2: Direktna | CH2: Poslovni prihodi Δ | CI2: =RDG!F5-RDG!D5 -> -1341963 | CK2: =IF(SUM(CI1)>=0,(IF(CI2>=0,SUM(CI1),(IF(ABS(SUM(CI1))>ABS(CI2),SUM(CI1:CI2),0)))),(IF(CI2<0,SUM(CI1),(IF(ABS(SUM(CI1))>ABS(CI2),SUM(CI1:CI2),0))))) -> 0 | CL2: =IF(SUM(CI1)>=0,(IF(CI2<0,(IF(ABS(CI2)>ABS(SUM(CI1)),SUM(CI1),ABS(CI2))),CI2)),(IF(CI2>0,(IF(ABS(CI2)>ABS(SUM(CI1)),SUM(CI1:CI2),0)),0))) -> 262462 | CM2: =IF(SUM(CI1)<0,(IF(CI2<0,CI2,(IF(ABS(CI2)>ABS(SUM(CI1)),SUM(CI1),0-CI2)))),(IF(CI2<0,(IF(ABS(CI2)>ABS(SUM(CI1)),SUM(CI1:CI2),0)),0))) -> -1079501 | CN2: Poslovni prihodi Δ | CP2: =CK2 -> 0 | CQ2: =IF(CI2>=0,CL2,0) -> 0 | CR2: =IF(CI2<0,CL2,0) -> 262462 | CS2: =IF(CI2>=0,CM2,0) -> 0 | CT2: =IF(CI2<0,CM2,0) -> -1079501 | CU2: 0 | CX2: Prihodi od prodaje Δ | CY2: =(RDG!F6+RDG!F7)-(RDG!E6+RDG!E7) -> 0 | DA2: =IF(SUM(CY1)>=0,(IF(CY2>=0,SUM(CY1),(IF(ABS(SUM(CY1))>ABS(CY2),SUM(CY1:CY2),0)))),(IF(CY2<0,SUM(CY1),(IF(ABS(SUM(CY1))>ABS(CY2),SUM(CY1:CY2),0))))) -> 1629000 | DB2: =IF(SUM(CY1)>=0,(IF(CY2<0,(IF(ABS(CY2)>ABS(SUM(CY1)),SUM(CY1),ABS(CY2))),CY2)),(IF(CY2>0,(IF(ABS(CY2)>ABS(SUM(CY1)),SUM(CY1:CY2),0)),0))) -> 0 | DC2: =IF(SUM(CY1)<0,(IF(CY2<0,CY2,(IF(ABS(CY2)>ABS(SUM(CY1)),SUM(CY1),0-CY2)))),(IF(CY2<0,(IF(ABS(CY2)>ABS(SUM(CY1)),SUM(CY1:CY2),0)),0))) -> 0 | DD2: =CX2 -> Prihodi od prodaje Δ | DE2: =CZ2 -> 0 | DF2: =DA2 -> 1629000 | DG2: =IF(CY2>=0,DB2,0) -> 0 | DH2: =IF(CY2<0,DB2,0) -> 0 | DI2: =IF(CY2>=0,DC2,0) -> 0 | DJ2: =IF(CY2<0,DC2,0) -> 0 | DK2: 0 | DM2: Kapital i rezerve | DN2: =Bilanca!C75 -> 30817702.14 | DO2: =Bilanca!D75 -> 30903899 | DP2: =Bilanca!E75 -> 31217588.4 | DQ2: =Bilanca!F75 -> 31217588.4 | DR2: =Bilanca!G75 -> 31605308 | DV2: Priljev od poslovnih aktivnosti | DW2: =IFERROR(IF(Podloga!$B$19="Direktna",'NT dir.'!C7+'NT dir.'!C8+'NT dir.'!C9+'NT dir.'!C10+'NT dir.'!#REF!,'NT indir.'!C17),) -> 0 | DX2: =IFERROR(IF(Podloga!$B$19="Direktna",'NT dir.'!D7+'NT dir.'!D8+'NT dir.'!D9+'NT dir.'!D10+'NT dir.'!#REF!,'NT indir.'!D17),) -> 0 | DY2: =IFERROR(IF(Podloga!$B$19="Direktna",'NT dir.'!E7+'NT dir.'!E8+'NT dir.'!E9+'NT dir.'!E10+'NT dir.'!#REF!,'NT indir.'!E17),) -> 0 | DZ2: =IFERROR(IF(Podloga!$B$19="Direktna",'NT dir.'!F7+'NT dir.'!F8+'NT dir.'!F9+'NT dir.'!F10+'NT dir.'!#REF!,'NT indir.'!F17),) -> 0 | EA2: =IFERROR(IF(Podloga!$B$19="Direktna",'NT dir.'!G7+'NT dir.'!G8+'NT dir.'!G9+'NT dir.'!G10+'NT dir.'!#REF!,'NT indir.'!G17),) -> 0 | EE2: Ukupni prihodi | EF2: =RDG!C57 -> 13132025.76 | EG2: =RDG!D57 -> 14150050 | EH2: =RDG!E57 -> 12890200 | EI2: =RDG!F57 -> 12890200 | EJ2: =RDG!G57 -> 13414220 | EL2: Prihodi | EM2: =RDG!D57 -> 14150050 | EN2: =RDG!F57 -> 12890200 | EO2: =RDG!C57 -> 13132025.76 | EP2: =RDG!E57 -> 12890200 | EQ2: =RDG!G57 -> 13414220
AO3: MSFI | AP3: d.d. | AR3: Član | AS3: Član | AT3: CERP | AU3: Ž | AV3: Član | AX3: NE | AY3: Sponzorstvo | AZ3: Mali | BA3: EBITDA | BB3: =RDG!C59+RDG!C46+RDG!C48+RDG!C21 -> 1749802.832 | BC3: =RDG!D59+RDG!D46+RDG!D48+RDG!D21 -> 1661822 | BD3: =RDG!E59+RDG!E46+RDG!E48+RDG!E21 -> 1629000 | BE3: =RDG!F59+RDG!F46+RDG!F48+RDG!F21 -> 1629000 | BF3: =RDG!G59+RDG!G46+RDG!G48+RDG!G21 -> 1767720 | BL3: X2 | BM3: =IFERROR('Altman Integral (Basic)'!C42/'Altman Integral (Basic)'!C41,) -> -0.1524309628 | BN3: =IFERROR('Altman Integral (Basic)'!D42/'Altman Integral (Basic)'!D41,) -> -0.1483641077 | BO3: =IFERROR('Altman Integral (Basic)'!E42/'Altman Integral (Basic)'!E41,) -> -0.1408752307 | BP3: =IFERROR('Altman Integral (Basic)'!F42/'Altman Integral (Basic)'!F41,) -> -0.1408752307 | BQ3: =IFERROR('Altman Integral (Basic)'!G42/'Altman Integral (Basic)'!G41,) -> -0.1313641016 | BS3: X2 | BT3: 1.4 | BX3: Indirektna | CH3: Materijalni troškovi Δ | CI3: =RDG!D13-RDG!F13 -> 496759 | CK3: =IF(SUM(CI1:CI2)>=0,(IF(CI3>=0,SUM(CI1:CI2),(IF(ABS(SUM(CI1:CI2))>ABS(CI3),SUM(CI1:CI3),0)))),(IF(CI3<0,SUM(CI1:CI2),(IF(ABS(SUM(CI1:CI2))>ABS(CI3),SUM(CI1:CI3),0))))) -> -582742 | CL3: =IF(SUM(CI1:CI2)>=0,(IF(CI3<0,(IF(ABS(CI3)>ABS(SUM(CI1:CI2)),SUM(CI1:CI2),ABS(CI3))),CI3)),(IF(CI3>0,(IF(ABS(CI3)>ABS(SUM(CI1:CI2)),SUM(CI1:CI3),0)),0))) -> 0 | CM3: =IF(SUM(CI1:CI2)<0,(IF(CI3<0,CI3,(IF(ABS(CI3)>ABS(SUM(CI1:CI2)),SUM(CI1:CI2),0-CI3)))),(IF(CI3<0,(IF(ABS(CI3)>ABS(SUM(CI1:CI2)),SUM(CI1:CI3),0)),0))) -> -496759 | CN3: Materijalni troškovi Δ | CP3: -582742 | CQ3: 0 | CR3: 0 | CS3: -496759 | CT3: 0 | CU3: 0 | CX3: Ostali prihodi Δ | CY3: =(RDG!F57-RDG!F6-RDG!F7)-(RDG!E57-RDG!E6-RDG!E7) -> 0 | DA3: =IF(SUM(CY1:CY2)>=0,(IF(CY3>=0,SUM(CY1:CY2),(IF(ABS(SUM(CY1:CY2))>ABS(CY3),SUM(CY1:CY3),0)))),(IF(CY3<0,SUM(CY1:CY2),(IF(ABS(SUM(CY1:CY2))>ABS(CY3),SUM(CY1:CY3),0))))) -> 1629000 | DB3: =IF(SUM(CY1:CY2)>=0,(IF(CY3<0,(IF(ABS(CY3)>ABS(SUM(CY1:CY2)),SUM(CY1:CY2),ABS(CY3))),CY3)),(IF(CY3>0,(IF(ABS(CY3)>ABS(SUM(CY1:CY2)),SUM(CY1:CY3),0)),0))) -> 0 | DC3: =IF(SUM(CY1:CY2)<0,(IF(CY3<0,CY3,(IF(ABS(CY3)>ABS(SUM(CY1:CY2)),SUM(CY1:CY2),0-CY3)))),(IF(CY3<0,(IF(ABS(CY3)>ABS(SUM(CY1:CY2)),SUM(CY1:CY3),0)),0))) -> 0 | DD3: Ostali prihodi Δ | DE3: 0 | DF3: 1629000 | DG3: 0 | DH3: 0 | DI3: 0 | DJ3: 0 | DK3: 0 | DM3: Rezerviranja | DN3: =Bilanca!C96 -> 0 | DO3: =Bilanca!D96 -> 0 | DP3: =Bilanca!E96 -> 0 | DQ3: =Bilanca!F96 -> 0 | DR3: =Bilanca!G96 -> 0 | DV3: Poslovni prihodi | DW3: =IFERROR(RDG!C5,) -> 13102025.76 | DX3: =IFERROR(RDG!D5,) -> 14040963 | DY3: =IFERROR(RDG!E5,) -> 12699000 | DZ3: =IFERROR(RDG!F5,) -> 12699000 | EA3: =IFERROR(RDG!G5,) -> 13398120 | EE3: Ukupna imovina | EF3: =Bilanca!C68 -> 33934797.14 | EG3: =Bilanca!D68 -> 34204789 | EH3: =Bilanca!E68 -> 34160026.4 | EI3: =Bilanca!F68 -> 34160026.4 | EJ3: =Bilanca!G68 -> 34245368 | EL3: EBITDA | EM3: =BC3 -> 1661822 | EN3: =BE3 -> 1629000 | EO3: =BB3 -> 1749802.832 | EP3: =BD3 -> 1629000 | EQ3: =BF3 -> 1767720
AP4: Ustanova | AR4: Zamjenik predsj. | AS4: Zamjenik predsj. | AT4: MIDIM (RH) funkcija | AV4: Zamjenik predsj. | AZ4: Srednji | BA4: EBITDA marža | BB4: =IFERROR((RDG!C59+RDG!C46+RDG!C48+RDG!C21)/RDG!C57,) -> 0.1332469845 | BC4: =IFERROR((RDG!D59+RDG!D46+RDG!D48+RDG!D21)/RDG!D57,) -> 0.1174428359 | BD4: =IFERROR((RDG!E59+RDG!E46+RDG!E48+RDG!E21)/RDG!E57,) -> 0.1263750756 | BE4: =IFERROR((RDG!F59+RDG!F46+RDG!F48+RDG!F21)/RDG!F57,) -> 0.1263750756 | BF4: =IFERROR((RDG!G59+RDG!G46+RDG!G48+RDG!G21)/RDG!G57,) -> 0.1317795593 | BL4: X3 | BM4: =IFERROR('Altman Integral (Basic)'!C43/'Altman Integral (Basic)'!C41,) -> 0.008080671259 | BN4: =IFERROR('Altman Integral (Basic)'!D43/'Altman Integral (Basic)'!D41,) -> 0.00767389619 | BO4: =IFERROR('Altman Integral (Basic)'!E43/'Altman Integral (Basic)'!E41,) -> 0.009192030367 | BP4: =IFERROR('Altman Integral (Basic)'!F43/'Altman Integral (Basic)'!F41,) -> 0.009192030367 | BQ4: =IFERROR('Altman Integral (Basic)'!G43/'Altman Integral (Basic)'!G41,) -> 0.01132182314 | BS4: X3 | BT4: 3.3 | CH4: Troškovi osoblja Δ | CI4: =RDG!D17-RDG!F17 -> 45650 | CK4: =IF(SUM(CI1:CI3)>=0,(IF(CI4>=0,SUM(CI1:CI3),(IF(ABS(SUM(CI1:CI3))>ABS(CI4),SUM(CI1:CI4),0)))),(IF(CI4<0,SUM(CI1:CI3),(IF(ABS(SUM(CI1:CI3))>ABS(CI4),SUM(CI1:CI4),0))))) -> -537092 | CL4: =IF(SUM(CI1:CI3)>=0,(IF(CI4<0,(IF(ABS(CI4)>ABS(SUM(CI1:CI3)),SUM(CI1:CI3),ABS(CI4))),CI4)),(IF(CI4>0,(IF(ABS(CI4)>ABS(SUM(CI1:CI3)),SUM(CI1:CI4),0)),0))) -> 0 | CM4: =IF(SUM(CI1:CI3)<0,(IF(CI4<0,CI4,(IF(ABS(CI4)>ABS(SUM(CI1:CI3)),SUM(CI1:CI3),0-CI4)))),(IF(CI4<0,(IF(ABS(CI4)>ABS(SUM(CI1:CI3)),SUM(CI1:CI4),0)),0))) -> -45650 | CN4: Troškovi osoblja Δ | CP4: -537092 | CQ4: 0 | CR4: 0 | CS4: -45650 | CT4: 0 | CU4: 0 | CX4: Promjena vrijednosti zaliha Δ | CY4: =RDG!E12-RDG!F12 -> 0 | DA4: =IF(SUM(CY1:CY3)>=0,(IF(CY4>=0,SUM(CY1:CY3),(IF(ABS(SUM(CY1:CY3))>ABS(CY4),SUM(CY1:CY4),0)))),(IF(CY4<0,SUM(CY1:CY3),(IF(ABS(SUM(CY1:CY3))>ABS(CY4),SUM(CY1:CY4),0))))) -> 1629000 | DB4: =IF(SUM(CY1:CY3)>=0,(IF(CY4<0,(IF(ABS(CY4)>ABS(SUM(CY1:CY3)),SUM(CY1:CY3),ABS(CY4))),CY4)),(IF(CY4>0,(IF(ABS(CY4)>ABS(SUM(CY2:CY3)),SUM(CY1:CY4),0)),0))) -> 0 | DC4: =IF(SUM(CY1:CY3)<0,(IF(CY4<0,CY4,(IF(ABS(CY4)>ABS(SUM(CY1:CY3)),SUM(CY1:CY3),0-CY4)))),(IF(CY4<0,(IF(ABS(CY4)>ABS(SUM(CY1:CY3)),SUM(CY1:CY4),0)),0))) -> 0 | DD4: Promjena vrijednosti zaliha Δ | DE4: 0 | DF4: 1629000 | DG4: 0 | DH4: 0 | DI4: 0 | DJ4: 0 | DK4: 0 | DM4: Dugoročne obveze | DN4: =Bilanca!C103 -> 0 | DO4: =Bilanca!D103 -> 0 | DP4: =Bilanca!E103 -> 0 | DQ4: =Bilanca!F103 -> 0 | DR4: =Bilanca!G103 -> 0 | DV4: Omjer primitaka od poslovnih aktivnosti i poslovnih prihoda | DW4: =DW2/DW3 -> 0 | DX4: =DX2/DX3 -> 0 | DY4: =DY2/DY3 -> 0 | DZ4: 0 | EA4: 0 | EE4: Koeficijent obrtaja imovine | EF4: =EF2/EF3 -> 0.3869781719 | EG4: =EG2/EG3 -> 0.4136862239 | EH4: 0.3773474835 | EI4: 0.3773474835 | EJ4: 0.3917090335 | EL4: EBITDA marža | EM4: =BC4 -> 0.1174428359 | EN4: =BE4 -> 0.1263750756 | EO4: =BB4 -> 0.1332469845 | EP4: =BD4 -> 0.1263750756 | EQ4: =BF4 -> 0.1317795593
AP5: Druga osoba za koje je upis propisan zakonom | AS5: Predstavnik radnika | AT5: RH - funkcija | AV5: Direktor | AZ5: Veliki | BL5: X4 | BM5: =IFERROR('Altman Integral (Basic)'!C46/'Altman Integral (Basic)'!C44,) -> 0 | BN5: =IFERROR('Altman Integral (Basic)'!D46/'Altman Integral (Basic)'!D44,) -> 0 | BO5: =IFERROR('Altman Integral (Basic)'!E46/'Altman Integral (Basic)'!E44,) -> 0 | BP5: =IFERROR('Altman Integral (Basic)'!F46/'Altman Integral (Basic)'!F44,) -> 0 | BQ5: =IFERROR('Altman Integral (Basic)'!G46/'Altman Integral (Basic)'!G44,) -> 0 | BS5: X4 | BT5: 0.6 | CH5: Ostali poslovni rashodi Δ | CI5: =(RDG!D11-RDG!D13-RDG!D17)-(RDG!F11-RDG!F13-RDG!F17) -> 469928 | CK5: =IF(SUM(CI1:CI4)>=0,(IF(CI5>=0,SUM(CI1:CI4),(IF(ABS(SUM(CI1:CI4))>ABS(CI5),SUM(CI1:CI5),0)))),(IF(CI5<0,SUM(CI1:CI4),(IF(ABS(SUM(CI1:CI4))>ABS(CI5),SUM(CI1:CI5),0))))) -> -67164 | CL5: =IF(SUM(CI1:CI4)>=0,(IF(CI5<0,(IF(ABS(CI5)>ABS(SUM(CI1:CI4)),SUM(CI1:CI4),ABS(CI5))),CI5)),(IF(CI5>0,(IF(ABS(CI5)>ABS(SUM(CI1:CI4)),SUM(CI1:CI5),0)),0))) -> 0 | CM5: =IF(SUM(CI1:CI4)<0,(IF(CI5<0,CI5,(IF(ABS(CI5)>ABS(SUM(CI1:CI4)),SUM(CI1:CI4),0-CI5)))),(IF(CI5<0,(IF(ABS(CI5)>ABS(SUM(CI1:CI4)),SUM(CI1:CI5),0)),0))) -> -469928 | CN5: Ostali poslovni rashodi Δ | CP5: -67164 | CQ5: 0 | CR5: 0 | CS5: -469928 | CT5: 0 | CU5: 0 | CX5: Materijalni troškovi Δ | CY5: =RDG!E13-RDG!F13 -> 0 | DA5: =IF(SUM(CY1:CY4)>=0,(IF(CY5>=0,SUM(CY1:CY4),(IF(ABS(SUM(CY1:CY4))>ABS(CY5),SUM(CY1:CY5),0)))),(IF(CY5<0,SUM(CY1:CY4),(IF(ABS(SUM(CY1:CY4))>ABS(CY5),SUM(CY1:CY5),0))))) -> 1629000 | DB5: =IF(SUM(CY1:CY4)>=0,(IF(CY5<0,(IF(ABS(CY5)>ABS(SUM(CY1:CY4)),SUM(CY1:CY4),ABS(CY5))),CY5)),(IF(CY5>0,(IF(ABS(CY5)>ABS(SUM(CY1:CY4)),SUM(CY1:CY5),0)),0))) -> 0 | DC5: =IF(SUM(CY1:CY4)<0,(IF(CY5<0,CY5,(IF(ABS(CY5)>ABS(SUM(CY1:CY4)),SUM(CY1:CY4),0-CY5)))),(IF(CY5<0,(IF(ABS(CY5)>ABS(SUM(CY1:CY4)),SUM(CY1:CY5),0)),0))) -> 0 | DD5: Materijalni troškovi Δ | DE5: 0 | DF5: 1629000 | DG5: 0 | DH5: 0 | DI5: 0 | DJ5: 0 | DK5: 0 | DM5: Kratkoročne obveze | DN5: =Bilanca!C115 -> 751785 | DO5: =Bilanca!D115 -> 935577 | DP5: =Bilanca!E115 -> 892500 | DQ5: =Bilanca!F115 -> 892500 | DR5: =Bilanca!G115 -> 905500 | EL5: Neto profitna marža | EM5: =BC8 -> 0.01854848569 | EN5: =BE8 -> 0.02433554173 | EO5: =BB8 -> 0.02088146528 | EP5: =BD8 -> 0.02433554173 | EQ5: =BF8 -> 0.02890365597
AT6: predst. radnika | BB6: =Podloga!B36 -> 2019. planirano | BC6: =Podloga!C36 -> 2019. ostvareno | BD6: =Podloga!D36 -> 2020. planirano | BE6: =Podloga!E36 -> 2020. procijenjeno | BF6: =Podloga!F36 -> 2021. planirano | BL6: X5 | BM6: =IFERROR('Altman Integral (Basic)'!C45/'Altman Integral (Basic)'!C41,) -> 0.3869781719 | BN6: =IFERROR('Altman Integral (Basic)'!D45/'Altman Integral (Basic)'!D41,) -> 0.4136862239 | BO6: =IFERROR('Altman Integral (Basic)'!E45/'Altman Integral (Basic)'!E41,) -> 0.3773474835 | BP6: =IFERROR('Altman Integral (Basic)'!F45/'Altman Integral (Basic)'!F41,) -> 0.3773474835 | BQ6: =IFERROR('Altman Integral (Basic)'!G45/'Altman Integral (Basic)'!G41,) -> 0.3917090335 | BS6: X5 | BT6: 1 | CH6: Financijski i investicijski prihodi Δ | CI6: =(RDG!F34+RDG!F53+RDG!F54)-(RDG!D34+RDG!D53+RDG!D54) -> 82113 | CK6: =IF(SUM(CI1:CI5)>=0,(IF(CI6>=0,SUM(CI1:CI5),(IF(ABS(SUM(CI1:CI5))>ABS(CI6),SUM(CI1:CI6),0)))),(IF(CI6<0,SUM(CI1:CI5),(IF(ABS(SUM(CI1:CI5))>ABS(CI6),SUM(CI1:CI6),0))))) -> 0 | CL6: =IF(SUM(CI1:CI5)>=0,(IF(CI6<0,(IF(ABS(CI6)>ABS(SUM(CI1:CI5)),SUM(CI1:CI5),ABS(CI6))),CI6)),(IF(CI6>0,(IF(ABS(CI6)>ABS(SUM(CI1:CI5)),SUM(CI1:CI6),0)),0))) -> 14949 | CM6: =IF(SUM(CI1:CI5)<0,(IF(CI6<0,CI6,(IF(ABS(CI6)>ABS(SUM(CI1:CI5)),SUM(CI1:CI5),0-CI6)))),(IF(CI6<0,(IF(ABS(CI6)>ABS(SUM(CI1:CI5)),SUM(CI1:CI6),0)),0))) -> -67164 | CN6: Financijski i investicijski prihodi Δ | CP6: 0 | CQ6: 14949 | CR6: 0 | CS6: -67164 | CT6: 0 | CU6: 0 | CX6: Troškovi osoblja Δ | CY6: =RDG!E17-RDG!F17 -> 0 | DA6: =IF(SUM(CY1:CY5)>=0,(IF(CY6>=0,SUM(CY1:CY5),(IF(ABS(SUM(CY1:CY5))>ABS(CY6),SUM(CY1:CY6),0)))),(IF(CY6<0,SUM(CY1:CY5),(IF(ABS(SUM(CY1:CY5))>ABS(CY6),SUM(CY1:CY6),0))))) -> 1629000 | DB6: =IF(SUM(CY1:CY5)>=0,(IF(CY6<0,(IF(ABS(CY6)>ABS(SUM(CY1:CY5)),SUM(CY1:CY5),ABS(CY6))),CY6)),(IF(CY6>0,(IF(ABS(CY6)>ABS(SUM(CY1:CY5)),SUM(CY1:CY6),0)),0))) -> 0 | DC6: =IF(SUM(CY1:CY5)<0,(IF(CY6<0,CY6,(IF(ABS(CY6)>ABS(SUM(CY1:CY5)),SUM(CY1:CY5),0-CY6)))),(IF(CY6<0,(IF(ABS(CY6)>ABS(SUM(CY1:CY5)),SUM(CY1:CY6),0)),0))) -> 0 | DD6: Troškovi osoblja Δ | DE6: 0 | DF6: 1629000 | DG6: 0 | DH6: 0 | DI6: 0 | DJ6: 0 | DK6: 0 | DM6: Ostalo | DN6: =Bilanca!C130 -> 2365310 | DO6: =Bilanca!D130 -> 2365313 | DP6: =Bilanca!E130 -> 2049938 | DQ6: =Bilanca!F130 -> 2049938 | DR6: =Bilanca!G130 -> 1734560 | EF6: =Podloga!B36 -> 2019. planirano | EG6: =Podloga!C36 -> 2019. ostvareno | EH6: =Podloga!D36 -> 2020. planirano | EI6: =Podloga!E36 -> 2020. procijenjeno | EJ6: =Podloga!F36 -> 2021. planirano | EL6: Poslovne akt. | EM6: =IF(Podloga!$B$19="Direktna",'NT dir.'!D18,'NT indir.'!D26) -> 2617684 | EN6: =IF(Podloga!$B$19="Direktna",'NT dir.'!F18,'NT indir.'!F26) -> 1542545 | EO6: =IF(Podloga!$B$19="Direktna",'NT dir.'!C18,'NT indir.'!C26) -> 1307570.132 | EP6: =IF(Podloga!$B$19="Direktna",'NT dir.'!E18,'NT indir.'!E26) -> 1542545 | EQ6: =IF(Podloga!$B$19="Direktna",'NT dir.'!G18,'NT indir.'!G26) -> 1162044
AT7: predst. poslodavaca (bez prava glasa) | BA7: Dobit razdoblja | BB7: =RDG!C63 -> 274215.9399 | BC7: =RDG!D63 -> 262462 | BD7: =RDG!E63 -> 313690 | BE7: =RDG!F63 -> 313690 | BF7: =RDG!G63 -> 387720 | BL7: Gornja granica | BM7: 3 | BN7: 3 | BO7: 3 | BP7: 3 | BQ7: 3 | CH7: Financijski i investicijski rashodi Δ | CI7: =(RDG!D45+RDG!D55+RDG!D56)-(RDG!F45+RDG!F55+RDG!F56) -> 298741 | CK7: =IF(SUM(CI1:CI6)>=0,(IF(CI7>=0,SUM(CI1:CI6),(IF(ABS(SUM(CI1:CI6))>ABS(CI7),SUM(CI1:CI7),0)))),(IF(CI7<0,SUM(CI1:CI6),(IF(ABS(SUM(CI1:CI6))>ABS(CI7),SUM(CI1:CI7),0))))) -> 14949 | CL7: =IF(SUM(CI1:CI6)>=0,(IF(CI7<0,(IF(ABS(CI7)>ABS(SUM(CI1:CI6)),SUM(CI1:CI6),ABS(CI7))),CI7)),(IF(CI7>0,(IF(ABS(CI7)>ABS(SUM(CI1:CI6)),SUM(CI1:CI7),0)),0))) -> 298741 | CM7: =IF(SUM(CI1:CI6)<0,(IF(CI7<0,CI7,(IF(ABS(CI7)>ABS(SUM(CI1:CI6)),SUM(CI1:CI6),0-CI7)))),(IF(CI7<0,(IF(ABS(CI7)>ABS(SUM(CI1:CI6)),SUM(CI1:CI7),0)),0))) -> 0 | CN7: Financijski i investicijski rashodi Δ | CP7: 14949 | CQ7: 298741 | CR7: 0 | CS7: 0 | CT7: 0 | CU7: 0 | CX7: Vrijednosna usklađenja Δ | CY7: =RDG!E23-RDG!F23 -> 0 | DA7: =IF(SUM(CY1:CY6)>=0,(IF(CY7>=0,SUM(CY1:CY6),(IF(ABS(SUM(CY1:CY6))>ABS(CY7),SUM(CY1:CY7),0)))),(IF(CY7<0,SUM(CY1:CY6),(IF(ABS(SUM(CY1:CY6))>ABS(CY7),SUM(CY1:CY7),0))))) -> 1629000 | DB7: =IF(SUM(CY1:CY6)>=0,(IF(CY7<0,(IF(ABS(CY7)>ABS(SUM(CY1:CY6)),SUM(CY1:CY6),ABS(CY7))),CY7)),(IF(CY7>0,(IF(ABS(CY7)>ABS(SUM(CY1:CY6)),SUM(CY1:CY7),0)),0))) -> 0 | DC7: =IF(SUM(CY1:CY6)<0,(IF(CY7<0,CY7,(IF(ABS(CY7)>ABS(SUM(CY1:CY6)),SUM(CY1:CY6),0-CY7)))),(IF(CY7<0,(IF(ABS(CY7)>ABS(SUM(CY1:CY6)),SUM(CY1:CY7),0)),0))) -> 0 | DD7: Vrijednosna usklađenja Δ | DE7: 0 | DF7: 1629000 | DG7: 0 | DH7: 0 | DI7: 0 | DJ7: 0 | DK7: 0 | DM7: Ukupno pasiva | DN7: =SUM(DN2:DN6) -> 33934797.14 | DO7: =SUM(DO2:DO6) -> 34204789 | DP7: 34160026.4 | DQ7: 34160026.4 | DR7: 34245368 | DW7: =Podloga!B36 -> 2019. planirano | DX7: =Podloga!C36 -> 2019. ostvareno | DY7: =Podloga!D36 -> 2020. planirano | DZ7: =Podloga!E36 -> 2020. procijenjeno | EA7: =Podloga!F36 -> 2021. planirano | EE7: Ukupni prihodi | EF7: =RDG!C57 -> 13132025.76 | EG7: =RDG!D57 -> 14150050 | EH7: =RDG!E57 -> 12890200 | EI7: =RDG!F57 -> 12890200 | EJ7: =RDG!G57 -> 13414220 | EL7: Investicijske akt. | EM7: =IF(Podloga!$B$19="Direktna",'NT dir.'!D33,'NT indir.'!D41) -> -1320100 | EN7: =IF(Podloga!$B$19="Direktna",'NT dir.'!F33,'NT indir.'!F41) -> -883900 | EO7: =IF(Podloga!$B$19="Direktna",'NT dir.'!C33,'NT indir.'!C41) -> -41000 | EP7: =IF(Podloga!$B$19="Direktna",'NT dir.'!E33,'NT indir.'!E41) -> -883900 | EQ7: =IF(Podloga!$B$19="Direktna",'NT dir.'!G33,'NT indir.'!G41) -> -1100000
AT8: Grad Crikvenica | BA8: Neto profitna marža | BB8: =IFERROR(RDG!C63/RDG!C57,) -> 0.02088146528 | BC8: =IFERROR(RDG!D63/RDG!D57,) -> 0.01854848569 | BD8: =IFERROR(RDG!E63/RDG!E57,) -> 0.02433554173 | BE8: =IFERROR(RDG!F63/RDG!F57,) -> 0.02433554173 | BF8: =IFERROR(RDG!G63/RDG!G57,) -> 0.02890365597 | BL8: Donja granica | BM8: 1.8 | BN8: 1.8 | BO8: 1.8 | BP8: 1.8 | BQ8: 1.8 | CH8: Procijenjena bruto dobit tekuće godine | CI8: =RDG!F59 -> 313690 | CJ8: =CI8 -> 313690 | CN8: Procijenjena bruto dobit tekuće godine | CO8: =CJ8 -> 313690 | CP8: 0 | CQ8: 0 | CR8: 0 | CS8: 0 | CT8: 0 | CU8: 0 | CX8: Rezerviranja Δ | CY8: =RDG!E26-RDG!F26 -> 0 | DA8: =IF(SUM(CY1:CY7)>=0,(IF(CY8>=0,SUM(CY1:CY7),(IF(ABS(SUM(CY1:CY7))>ABS(CY8),SUM(CY1:CY8),0)))),(IF(CY8<0,SUM(CY1:CY7),(IF(ABS(SUM(CY1:CY7))>ABS(CY8),SUM(CY1:CY8),0))))) -> 1629000 | DB8: =IF(SUM(CY1:CY7)>=0,(IF(CY8<0,(IF(ABS(CY8)>ABS(SUM(CY1:CY7)),SUM(CY1:CY7),ABS(CY8))),CY8)),(IF(CY8>0,(IF(ABS(CY8)>ABS(SUM(CY1:CY7)),SUM(CY1:CY8),0)),0))) -> 0 | DC8: =IF(SUM(CY1:CY7)<0,(IF(CY8<0,CY8,(IF(ABS(CY8)>ABS(SUM(CY1:CY7)),SUM(CY1:CY7),0-CY8)))),(IF(CY8<0,(IF(ABS(CY8)>ABS(SUM(CY1:CY7)),SUM(CY1:CY8),0)),0))) -> 0 | DD8: Rezerviranja Δ | DE8: 0 | DF8: 1629000 | DG8: 0 | DH8: 0 | DI8: 0 | DJ8: 0 | DK8: 0 | DM8: Udio kapitala u pasivi | DN8: =Bilanca!C75/Bilanca!C131 -> 0.9081445813 | DO8: =Bilanca!D75/Bilanca!D131 -> 0.9034962619 | DP8: =Bilanca!E75/Bilanca!E131 -> 0.9138631228 | DQ8: =Bilanca!F75/Bilanca!F131 -> 0.9138631228 | DR8: =Bilanca!G75/Bilanca!G131 -> 0.9229075302 | DV8: Novčani primici od kupaca | DW8: =IFERROR(IF(Podloga!$B$19="Direktna",'NT dir.'!C7,),) -> 12717612.98 | DX8: =IFERROR(IF(Podloga!$B$19="Direktna",'NT dir.'!D7,),) -> 15195163 | DY8: =IFERROR(IF(Podloga!$B$19="Direktna",'NT dir.'!E7,),) -> 12700000 | DZ8: =IFERROR(IF(Podloga!$B$19="Direktna",'NT dir.'!F7,),) -> 12700000 | EA8: =IFERROR(IF(Podloga!$B$19="Direktna",'NT dir.'!G7,),) -> 12980000 | EE8: Ukupni rashodi | EF8: =RDG!C58 -> 12857809.82 | EG8: =RDG!D58 -> 13887588 | EH8: =RDG!E58 -> 12576510 | EI8: =RDG!F58 -> 12576510 | EJ8: =RDG!G58 -> 13026500 | EL8: Financijske akt. | EM8: =IF(Podloga!$B$19="Direktna",'NT dir.'!D46,'NT indir.'!D54) -> 0 | EN8: =IF(Podloga!$B$19="Direktna",'NT dir.'!F46,'NT indir.'!F54) -> 0 | EO8: =IF(Podloga!$B$19="Direktna",'NT dir.'!C46,'NT indir.'!C54) -> 0 | EP8: =IF(Podloga!$B$19="Direktna",'NT dir.'!E46,'NT indir.'!E54) -> 0 | EQ8: =IF(Podloga!$B$19="Direktna",'NT dir.'!G46,'NT indir.'!G54) -> 0
AT9: Grad Dubrovnik | BA9: Operativna profitna marža | BB9: =(RDG!C5-RDG!C11)/(RDG!C6+RDG!C7) -> 0.02344050922 | BC9: =(RDG!D5-RDG!D11)/(RDG!D6+RDG!D7) -> 0.03505704451 | BD9: =(RDG!E5-RDG!E11)/(RDG!E6+RDG!E7) -> 0.01089454422 | BE9: =(RDG!F5-RDG!F11)/(RDG!F6+RDG!F7) -> 0.01089454422 | BF9: =(RDG!G5-RDG!G11)/(RDG!G6+RDG!G7) -> 0.03105850522 | CX9: Ostali poslovni rashodi Δ | CY9: =(RDG!E22+RDG!E33+RDG!E55+RDG!E56)-(RDG!F22+RDG!F33+RDG!F55+RDG!F56) -> 0 | DA9: =IF(SUM(CY1:CY8)>=0,(IF(CY9>=0,SUM(CY1:CY8),(IF(ABS(SUM(CY1:CY8))>ABS(CY9),SUM(CY1:CY9),0)))),(IF(CY9<0,SUM(CY1:CY8),(IF(ABS(SUM(CY1:CY8))>ABS(CY9),SUM(CY1:CY9),0))))) -> 1629000 | DB9: =IF(SUM(CY1:CY8)>=0,(IF(CY9<0,(IF(ABS(CY9)>ABS(SUM(CY1:CY8)),SUM(CY1:CY8),ABS(CY9))),CY9)),(IF(CY9>0,(IF(ABS(CY9)>ABS(SUM(CY1:CY8)),SUM(CY1:CY9),0)),0))) -> 0 | DC9: =IF(SUM(CY1:CY8)<0,(IF(CY9<0,CY9,(IF(ABS(CY9)>ABS(SUM(CY1:CY8)),SUM(CY1:CY8),0-CY9)))),(IF(CY9<0,(IF(ABS(CY9)>ABS(SUM(CY1:CY8)),SUM(CY1:CY9),0)),0))) -> 0 | DD9: Ostali poslovni rashodi Δ | DE9: 0 | DF9: 1629000 | DG9: 0 | DH9: 0 | DI9: 0 | DJ9: 0 | DK9: 0 | DV9: Novčani primici od tantijema, naknada, provizija i slično | DW9: =IFERROR(IF(Podloga!$B$19="Direktna",'NT dir.'!C8,),) -> 0 | DX9: =IFERROR(IF(Podloga!$B$19="Direktna",'NT dir.'!D8,),) -> 0 | DY9: =IFERROR(IF(Podloga!$B$19="Direktna",'NT dir.'!E8,),) -> 0 | DZ9: =IFERROR(IF(Podloga!$B$19="Direktna",'NT dir.'!F8,),) -> 0 | EA9: =IFERROR(IF(Podloga!$B$19="Direktna",'NT dir.'!G8,),) -> 0 | EE9: Prihodi od poslovnih aktivnosti | EF9: =RDG!C5 -> 13102025.76 | EG9: =RDG!D5 -> 14040963 | EH9: =RDG!E5 -> 12699000 | EI9: =RDG!F5 -> 12699000 | EJ9: =RDG!G5 -> 13398120 | EL9: Ukupno novč. tokovi | EM9: =IF(Podloga!$B$19="Direktna",'NT dir.'!D48,'NT indir.'!D56) -> 1297584 | EN9: =IF(Podloga!$B$19="Direktna",'NT dir.'!F48,'NT indir.'!F56) -> 658645 | EO9: =IF(Podloga!$B$19="Direktna",'NT dir.'!C48,'NT indir.'!C56) -> 1266570.132 | EP9: =IF(Podloga!$B$19="Direktna",'NT dir.'!E48,'NT indir.'!E56) -> 658645 | EQ9: =IF(Podloga!$B$19="Direktna",'NT dir.'!G48,'NT indir.'!G56) -> 62044
AT10: Grad Kaštela | CH10: Planirana bruto dobit tekuće godine | CI10: =RDG!E59 -> 313690 | CJ10: =CI10 -> 313690 | CN10: =CH10 -> Planirana bruto dobit tekuće godine | CO10: =CJ10 -> 313690 | CP10: =CK10 -> 0 | CQ10: 0 | CR10: 0 | CS10: 0 | CT10: 0 | CU10: 0 | CX10: Financijski rashodi (bez kamata) Δ | CY10: =(RDG!E45-RDG!E46-RDG!E48)-(RDG!F45-RDG!F46-RDG!F48) -> 0 | DA10: =IF(SUM(CY1:CY9)>=0,(IF(CY10>=0,SUM(CY1:CY9),(IF(ABS(SUM(CY1:CY9))>ABS(CY10),SUM(CY1:CY10),0)))),(IF(CY10<0,SUM(CY1:CY9),(IF(ABS(SUM(CY1:CY9))>ABS(CY10),SUM(CY1:CY10),0))))) -> 1629000 | DB10: =IF(SUM(CY1:CY9)>=0,(IF(CY10<0,(IF(ABS(CY10)>ABS(SUM(CY1:CY9)),SUM(CY1:CY9),ABS(CY10))),CY10)),(IF(CY10>0,(IF(ABS(CY10)>ABS(SUM(CY1:CY9)),SUM(CY1:CY10),0)),0))) -> 0 | DC10: =IF(SUM(CY1:CY9)<0,(IF(CY10<0,CY10,(IF(ABS(CY10)>ABS(SUM(CY1:CY9)),SUM(CY1:CY9),0-CY10)))),(IF(CY10<0,(IF(ABS(CY10)>ABS(SUM(CY1:CY9)),SUM(CY1:CY10),0)),0))) -> 0 | DD10: Financijski rashodi (bez kamata) Δ | DE10: 0 | DF10: 1629000 | DG10: 0 | DH10: 0 | DI10: 0 | DJ10: 0 | DK10: 0 | DV10: Novčani primici od osiguranja za naknadu šteta | DW10: =IFERROR(IF(Podloga!$B$19="Direktna",'NT dir.'!C9,),) -> 0 | DX10: =IFERROR(IF(Podloga!$B$19="Direktna",'NT dir.'!D9,),) -> 31608 | DY10: =IFERROR(IF(Podloga!$B$19="Direktna",'NT dir.'!E9,),) -> 0 | DZ10: =IFERROR(IF(Podloga!$B$19="Direktna",'NT dir.'!F9,),) -> 0 | EA10: =IFERROR(IF(Podloga!$B$19="Direktna",'NT dir.'!G9,),) -> 0 | EE10: Rashodi od poslovnih aktivnosti | EF10: =RDG!C11 -> 12817809.82 | EG10: =RDG!D11 -> 13583337 | EH10: =RDG!E11 -> 12571000 | EI10: =RDG!F11 -> 12571000 | EJ10: =RDG!G11 -> 13011500
AT11: Grad Krk i općina Omišalj | BB11: =Podloga!B36 -> 2019. planirano | BC11: =Podloga!C36 -> 2019. ostvareno | BD11: =Podloga!D36 -> 2020. planirano | BE11: =Podloga!E36 -> 2020. procijenjeno | BF11: =Podloga!F36 -> 2021. planirano | CH11: Poslovni prihodi Δ | CI11: =RDG!F5-RDG!E5 -> 0 | CK11: =IF(SUM(CI10)>=0,(IF(CI11>=0,SUM(CI10),(IF(ABS(SUM(CI10))>ABS(CI11),SUM(CI10:CI11),0)))),(IF(CI11<0,SUM(CI10),(IF(ABS(SUM(CI10))>ABS(CI11),SUM(CI10:CI11),0))))) -> 313690 | CL11: =IF(SUM(CI10)>=0,(IF(CI11<0,(IF(ABS(CI11)>ABS(SUM(CI10)),SUM(CI10),ABS(CI11))),CI11)),(IF(CI11>0,(IF(ABS(CI11)>ABS(SUM(CI10)),SUM(CI10:CI11),0)),0))) -> 0 | CM11: =IF(SUM(CI10)<0,(IF(CI11<0,CI11,(IF(ABS(CI11)>ABS(SUM(CI10)),SUM(CI10),0-CI11)))),(IF(CI11<0,(IF(ABS(CI11)>ABS(SUM(CI10)),SUM(CI10:CI11),0)),0))) -> 0 | CN11: Poslovni prihodi Δ | CP11: =CK11 -> 313690 | CQ11: 0 | CR11: 0 | CS11: 0 | CT11: 0 | CU11: 0 | CX11: Procijenjena EBITDA tekuće godine | CY11: =BE3 -> 1629000 | CZ11: =CY11 -> 1629000 | DD11: Procijenjena EBITDA tekuće godine | DE11: 1629000 | DF11: 0 | DG11: 0 | DH11: 0 | DI11: 0 | DJ11: 0 | DK11: 0 | DV11: Novčani primici s osnove povrata poreza | DW11: =IFERROR(IF(Podloga!$B$19="Direktna",'NT dir.'!C10,),) -> 0 | DX11: =IFERROR(IF(Podloga!$B$19="Direktna",'NT dir.'!D10,),) -> 0 | DY11: =IFERROR(IF(Podloga!$B$19="Direktna",'NT dir.'!E10,),) -> 0 | DZ11: =IFERROR(IF(Podloga!$B$19="Direktna",'NT dir.'!F10,),) -> 0 | EA11: =IFERROR(IF(Podloga!$B$19="Direktna",'NT dir.'!G10,),) -> 0 | EE11: Ekonomičnost ukupnog poslovanja | EF11: =EF7/EF8 -> 1.0213268 | EG11: =EG7/EG8 -> 1.018899034 | EH11: 1.024942532 | EI11: 1.024942532 | EJ11: 1.029763943
AT12: Grad Opatija | BA12: ROE | BB12: =IFERROR((RDG!C83/Bilanca!C$75),) -> 0.008898000853 | BC12: =IFERROR((RDG!D83/Bilanca!D$75),) -> 0.00849284422 | BD12: =IFERROR((RDG!E83/Bilanca!E$75),) -> 0.01004850202 | BE12: =IFERROR((RDG!F83/Bilanca!F$75),) -> 0.01004850202 | BF12: =IFERROR((RDG!G83/Bilanca!G$75),) -> 0.01226755961 | BL12: Altman a | CH12: Materijalni troškovi Δ | CI12: =RDG!E13-RDG!F13 -> 0 | CK12: =IF(SUM(CI10:CI11)>=0,(IF(CI12>=0,SUM(CI10:CI11),(IF(ABS(SUM(CI10:CI11))>ABS(CI12),SUM(CI10:CI12),0)))),(IF(CI12<0,SUM(CI10:CI11),(IF(ABS(SUM(CI10:CI11))>ABS(CI12),SUM(CI10:CI12),0))))) -> 313690 | CL12: =IF(SUM(CI10:CI11)>=0,(IF(CI12<0,(IF(ABS(CI12)>ABS(SUM(CI10:CI11)),SUM(CI10:CI11),ABS(CI12))),CI12)),(IF(CI12>0,(IF(ABS(CI12)>ABS(SUM(CI10:CI11)),SUM(CI10:CI12),0)),0))) -> 0 | CM12: =IF(SUM(CI10:CI11)<0,(IF(CI12<0,CI12,(IF(ABS(CI12)>ABS(SUM(CI10:CI11)),SUM(CI10:CI11),0-CI12)))),(IF(CI12<0,(IF(ABS(CI12)>ABS(SUM(CI10:CI11)),SUM(CI10:CI12),0)),0))) -> 0 | CN12: Materijalni troškovi Δ | CP12: 313690 | CQ12: 0 | CR12: 0 | CS12: 0 | CT12: 0 | CU12: 0 | DV12: Ostali novčani primici iz poslovanja | DW12: =IFERROR(IF(Podloga!$B$19="Direktna",'NT dir.'!#REF!,),) -> 0 | DX12: =IFERROR(IF(Podloga!$B$19="Direktna",'NT dir.'!#REF!,),) -> 0 | DY12: =IFERROR(IF(Podloga!$B$19="Direktna",'NT dir.'!#REF!,),) -> 0 | DZ12: =IFERROR(IF(Podloga!$B$19="Direktna",'NT dir.'!#REF!,),) -> 0 | EA12: =IFERROR(IF(Podloga!$B$19="Direktna",'NT dir.'!#REF!,),) -> 0 | EE12: Ekonomičnost poslovnih aktivnosti | EF12: =EF9/EF10 -> 1.022173518 | EG12: =EG9/EG10 -> 1.033690249 | EH12: 1.010182165 | EI12: 1.010182165 | EJ12: 1.029713715
AT13: Grad Osijek | BA13: ROA | BB13: =IFERROR(RDG!C63/Bilanca!C68,) -> 0.008080671259 | BC13: =IFERROR(RDG!D63/Bilanca!D68,) -> 0.007673253006 | BD13: =IFERROR(RDG!E63/Bilanca!E68,) -> 0.009182955432 | BE13: =IFERROR(RDG!F63/Bilanca!F68,) -> 0.009182955432 | BF13: =IFERROR(RDG!G63/Bilanca!G68,) -> 0.01132182314 | BL13: X1 | BM13: =IFERROR('Altman Integral (A)'!C35/'Altman Integral (A)'!C36,) -> 0.5169870345 | BN13: =IFERROR('Altman Integral (A)'!D35/'Altman Integral (A)'!D36,) -> 0.5098037588 | BO13: =IFERROR('Altman Integral (A)'!E35/'Altman Integral (A)'!E36,) -> 0.5270267414 | BP13: =IFERROR('Altman Integral (A)'!F35/'Altman Integral (A)'!F36,) -> 0.5270267414 | BQ13: =IFERROR('Altman Integral (A)'!G35/'Altman Integral (A)'!G36,) -> 0.5308700143 | BR13: Koeficijent: | BS13: X1 | BT13: 0.717 | CH13: Troškovi osoblja Δ | CI13: =RDG!E17-RDG!F17 -> 0 | CK13: =IF(SUM(CI10:CI12)>=0,(IF(CI13>=0,SUM(CI10:CI12),(IF(ABS(SUM(CI10:CI12))>ABS(CI13),SUM(CI10:CI13),0)))),(IF(CI13<0,SUM(CI10:CI12),(IF(ABS(SUM(CI10:CI12))>ABS(CI13),SUM(CI10:CI13),0))))) -> 313690 | CL13: =IF(SUM(CI10:CI12)>=0,(IF(CI13<0,(IF(ABS(CI13)>ABS(SUM(CI10:CI12)),SUM(CI10:CI12),ABS(CI13))),CI13)),(IF(CI13>0,(IF(ABS(CI13)>ABS(SUM(CI10:CI12)),SUM(CI10:CI13),0)),0))) -> 0 | CM13: =IF(SUM(CI10:CI12)<0,(IF(CI13<0,CI13,(IF(ABS(CI13)>ABS(SUM(CI10:CI12)),SUM(CI10:CI12),0-CI13)))),(IF(CI13<0,(IF(ABS(CI13)>ABS(SUM(CI10:CI12)),SUM(CI10:CI13),0)),0))) -> 0 | CN13: Troškovi osoblja Δ | CP13: 313690 | CQ13: 0 | CR13: 0 | CS13: 0 | CT13: 0 | CU13: 0
AT14: Grad Poreč | BB14: =Podloga!B36 -> 2019. planirano | BC14: =Podloga!C36 -> 2019. ostvareno | BD14: =Podloga!D36 -> 2020. planirano | BE14: =Podloga!E36 -> 2020. procijenjeno | BF14: =Podloga!F36 -> 2021. planirano | BL14: X2 | BM14: =IFERROR('Altman Integral (A)'!C37/'Altman Integral (A)'!C36,) -> -0.1524309628 | BN14: =IFERROR('Altman Integral (A)'!D37/'Altman Integral (A)'!D36,) -> -0.1483641077 | BO14: =IFERROR('Altman Integral (A)'!E37/'Altman Integral (A)'!E36,) -> -0.1408752307 | BP14: =IFERROR('Altman Integral (A)'!F37/'Altman Integral (A)'!F36,) -> -0.1408752307 | BQ14: =IFERROR('Altman Integral (A)'!G37/'Altman Integral (A)'!G36,) -> -0.1313641016 | BS14: X2 | BT14: 0.847 | CH14: Ostali poslovni rashodi Δ | CI14: =(RDG!E11-RDG!E13-RDG!E17)-(RDG!F11-RDG!F13-RDG!F17) -> 0 | CK14: =IF(SUM(CI10:CI13)>=0,(IF(CI14>=0,SUM(CI10:CI13),(IF(ABS(SUM(CI10:CI13))>ABS(CI14),SUM(CI10:CI14),0)))),(IF(CI14<0,SUM(CI10:CI13),(IF(ABS(SUM(CI10:CI13))>ABS(CI14),SUM(CI10:CI14),0))))) -> 313690 | CL14: =IF(SUM(CI10:CI13)>=0,(IF(CI14<0,(IF(ABS(CI14)>ABS(SUM(CI10:CI13)),SUM(CI10:CI13),ABS(CI14))),CI14)),(IF(CI14>0,(IF(ABS(CI14)>ABS(SUM(CI10:CI13)),SUM(CI10:CI14),0)),0))) -> 0 | CM14: =IF(SUM(CI10:CI13)<0,(IF(CI14<0,CI14,(IF(ABS(CI14)>ABS(SUM(CI10:CI13)),SUM(CI10:CI13),0-CI14)))),(IF(CI14<0,(IF(ABS(CI14)>ABS(SUM(CI10:CI13)),SUM(CI10:CI14),0)),0))) -> 0 | CN14: Ostali poslovni rashodi Δ | CP14: 313690 | CQ14: 0 | CR14: 0 | CS14: 0 | CT14: 0 | CU14: 0 | EF14: =Podloga!B36 -> 2019. planirano | EG14: =Podloga!C36 -> 2019. ostvareno | EH14: =Podloga!D36 -> 2020. planirano | EI14: =Podloga!E36 -> 2020. procijenjeno | EJ14: =Podloga!F36 -> 2021. planirano
AT15: Grad Pula | BA15: EBIT/trošak kamata | BB15: =(RDG!C59+RDG!C46+RDG!C48)/(RDG!C46+RDG!C48) ->  | BC15: =(RDG!D59+RDG!D46+RDG!D48)/(RDG!D46+RDG!D48) -> 11931.09091 | BD15: =(RDG!E59+RDG!E46+RDG!E48)/(RDG!E46+RDG!E48) -> 1012.903226 | BE15: =(RDG!F59+RDG!F46+RDG!F48)/(RDG!F46+RDG!F48) -> 1012.903226 | BF15: =(RDG!G59+RDG!G46+RDG!G48)/(RDG!G46+RDG!G48) ->  | BL15: X3 | BM15: =IFERROR('Altman Integral (A)'!C38/'Altman Integral (A)'!C36,) -> 0.008080671259 | BN15: =IFERROR('Altman Integral (A)'!D38/'Altman Integral (A)'!D36,) -> 0.00767389619 | BO15: =IFERROR('Altman Integral (A)'!E38/'Altman Integral (A)'!E36,) -> 0.009192030367 | BP15: =IFERROR('Altman Integral (A)'!F38/'Altman Integral (A)'!F36,) -> 0.009192030367 | BQ15: =IFERROR('Altman Integral (A)'!G38/'Altman Integral (A)'!G36,) -> 0.01132182314 | BS15: X3 | BT15: 3.107 | CH15: Financijski i investicijski prihodi Δ | CI15: =(RDG!F34+RDG!F53+RDG!F54)-(RDG!E34+RDG!E53+RDG!E54) -> 0 | CK15: =IF(SUM(CI10:CI14)>=0,(IF(CI15>=0,SUM(CI10:CI14),(IF(ABS(SUM(CI10:CI14))>ABS(CI15),SUM(CI10:CI15),0)))),(IF(CI15<0,SUM(CI10:CI14),(IF(ABS(SUM(CI10:CI14))>ABS(CI15),SUM(CI10:CI15),0))))) -> 313690 | CL15: =IF(SUM(CI10:CI14)>=0,(IF(CI15<0,(IF(ABS(CI15)>ABS(SUM(CI10:CI14)),SUM(CI10:CI14),ABS(CI15))),CI15)),(IF(CI15>0,(IF(ABS(CI15)>ABS(SUM(CI10:CI14)),SUM(CI10:CI15),0)),0))) -> 0 | CM15: =IF(SUM(CI10:CI14)<0,(IF(CI15<0,CI15,(IF(ABS(CI15)>ABS(SUM(CI10:CI14)),SUM(CI10:CI14),0-CI15)))),(IF(CI15<0,(IF(ABS(CI15)>ABS(SUM(CI10:CI14)),SUM(CI10:CI15),0)),0))) -> 0 | CN15: Financijski i investicijski prihodi Δ | CP15: 313690 | CQ15: 0 | CR15: 0 | CS15: 0 | CT15: 0 | CU15: 0 | DX15: Omjer primitaka od poslovnih aktivnosti i poslovnih prihoda | EE15: Glavnica | EF15: =Bilanca!C75 -> 30817702.14 | EG15: =Bilanca!D75 -> 30903899 | EH15: =Bilanca!E75 -> 31217588.4 | EI15: =Bilanca!F75 -> 31217588.4 | EJ15: =Bilanca!G75 -> 31605308
AT16: Grad Rijeka | BA16: Trošak kamata | BB16: =RDG!C46+RDG!C48 -> 0 | BC16: =RDG!D46+RDG!D48 -> 22 | BD16: =RDG!E46+RDG!E48 -> 310 | BE16: =RDG!F46+RDG!F48 -> 310 | BF16: =RDG!G46+RDG!G48 -> 0 | BL16: X4 | BM16: =IFERROR('Altman Integral (A)'!C41/'Altman Integral (A)'!C39,) -> 47.5085297 | BN16: =IFERROR('Altman Integral (A)'!D41/'Altman Integral (A)'!D39,) -> 38.17558576 | BO16: =IFERROR('Altman Integral (A)'!E41/'Altman Integral (A)'!E39,) -> 40.01815126 | BP16: =IFERROR('Altman Integral (A)'!F41/'Altman Integral (A)'!F39,) -> 40.01815126 | BQ16: =IFERROR('Altman Integral (A)'!G41/'Altman Integral (A)'!G39,) -> 39.44362231 | BS16: X4 | BT16: 0.42 | CH16: Financijski i investicijski rashodi Δ | CI16: =(RDG!E45+RDG!E55+RDG!E56)-(RDG!F45+RDG!F55+RDG!F56) -> 0 | CK16: =IF(SUM(CI10:CI15)>=0,(IF(CI16>=0,SUM(CI10:CI15),(IF(ABS(SUM(CI10:CI15))>ABS(CI16),SUM(CI10:CI16),0)))),(IF(CI16<0,SUM(CI10:CI15),(IF(ABS(SUM(CI10:CI15))>ABS(CI16),SUM(CI10:CI16),0))))) -> 313690 | CL16: =IF(SUM(CI10:CI15)>=0,(IF(CI16<0,(IF(ABS(CI16)>ABS(SUM(CI10:CI15)),SUM(CI10:CI15),ABS(CI16))),CI16)),(IF(CI16>0,(IF(ABS(CI16)>ABS(SUM(CI10:CI15)),SUM(CI10:CI16),0)),0))) -> 0 | CM16: =IF(SUM(CI10:CI15)<0,(IF(CI16<0,CI16,(IF(ABS(CI16)>ABS(SUM(CI10:CI15)),SUM(CI10:CI15),0-CI16)))),(IF(CI16<0,(IF(ABS(CI16)>ABS(SUM(CI10:CI15)),SUM(CI10:CI16),0)),0))) -> 0 | CN16: Financijski i investicijski rashodi Δ | CP16: 313690 | CQ16: 0 | CR16: 0 | CS16: 0 | CT16: 0 | CU16: 0 | CW16: U milijunima kuna | DY16: =LEFT(Podloga!B36,5) -> 2019. | DZ16: =LEFT(Podloga!D36,5) -> 2020. | EA16: =LEFT(Podloga!F36,5) -> 2021. | EE16: Glavnica + dug. Obv | EF16: =Bilanca!C75+Bilanca!C103 -> 30817702.14 | EG16: =Bilanca!D75+Bilanca!D103 -> 30903899 | EH16: =Bilanca!E75+Bilanca!E103 -> 31217588.4 | EI16: =Bilanca!F75+Bilanca!F103 -> 31217588.4 | EJ16: =Bilanca!G75+Bilanca!G103 -> 31605308
AT17: Grad Split | BB17: =Podloga!B36 -> 2019. planirano | BC17: =Podloga!C36 -> 2019. ostvareno | BD17: =Podloga!D36 -> 2020. planirano | BE17: =Podloga!E36 -> 2020. procijenjeno | BF17: =Podloga!F36 -> 2021. planirano | BL17: X5 | BM17: =IFERROR('Altman Integral (A)'!C40/'Altman Integral (A)'!C36,) -> 0.3869781719 | BN17: =IFERROR('Altman Integral (A)'!D40/'Altman Integral (A)'!D36,) -> 0.4136862239 | BO17: =IFERROR('Altman Integral (A)'!E40/'Altman Integral (A)'!E36,) -> 0.3773474835 | BP17: =IFERROR('Altman Integral (A)'!F40/'Altman Integral (A)'!F36,) -> 0.3773474835 | BQ17: =IFERROR('Altman Integral (A)'!G40/'Altman Integral (A)'!G36,) -> 0.3917090335 | BS17: X5 | BT17: 0.998 | CH17: Procijenjena bruto dobit tekuće godine | CI17: =RDG!F59 -> 313690 | CJ17: =CI17 -> 313690 | CN17: Procijenjena bruto dobit tekuće godine | CO17: =CJ17 -> 313690 | CP17: 0 | CQ17: 0 | CR17: 0 | CS17: 0 | CT17: 0 | CU17: 0 | DL17: Analiza EBITDA (prethodne i tekuće godine) | DX17: Planirano | DY17: =DW4 -> 0 | DZ17: =DY4 -> 0 | EA17: =EA4 -> 0 | EE17: Dug. Imov | EF17: =Bilanca!C5 -> 16040947 | EG17: =Bilanca!D5 -> 16631857 | EH17: =Bilanca!E5 -> 16014779 | EI17: =Bilanca!F5 -> 16014779 | EJ17: =Bilanca!G5 -> 15930529
AT18: Grad Trogir | BA18: Dug. materijalna | BB18: =Bilanca!C13 -> 8987697 | BC18: =Bilanca!D13 -> 9860361 | BD18: =Bilanca!E13 -> 9890289 | BE18: =Bilanca!F13 -> 9890289 | BF18: =Bilanca!G13 -> 10436222 | BL18: Gornja granica | BM18: 2.9 | BN18: 2.9 | BO18: 2.9 | BP18: 2.9 | BQ18: 2.9 | DL18: U tisućama kuna | DR18: U milijunima kuna | DX18: Ostvareno | DY18: =DX4 -> 0 | DZ18: =DZ4 -> 0 | EE18: Stupanj pokrića I | EF18: =EF15/EF17 -> 1.921189699 | EG18: =EG15/EG17 -> 1.858114761 | EH18: 1.949298732 | EI18: 1.949298732 | EJ18: 1.983945919
AT19: Grad Zadar | BA19: Dug. nematerijalna | BB19: =Bilanca!C6 -> 1718717.5 | BC19: =Bilanca!D6 -> 4406183 | BD19: =Bilanca!E6 -> 4075490 | BE19: =Bilanca!F6 -> 4075490 | BF19: =Bilanca!G6 -> 3761620 | BL19: Donja granica | BM19: 1.23 | BN19: 1.23 | BO19: 1.23 | BP19: 1.23 | BQ19: 1.23 | CG19: U milijunima kuna | CH19: Bruto dobit prethodne godine | CI19: =CI1/1000 -> 262.462 | CJ19: =CJ1/1000 -> 262.462 | CN19: =CN1 -> Bruto dobit prethodne godine | CO19: =CO1/1000 -> 262.462 | CP19: =CP1/1000 -> 0 | CQ19: 0 | CR19: 0 | CS19: 0 | CT19: 0 | CU19: 0 | CX19: Planirana EBITDA tekuće godine | CY19: =CY1/1000 -> 1629 | CZ19: =CZ1/1000 -> 1629 | DD19: =DD1 -> Planirana EBITDA tekuće godine | DE19: =DE1/1000 -> 1629 | DF19: =DF1/1000 -> 0 | DG19: =IF(CY19>=0,DB19,0) -> 0 | DH19: =IF(CY19<0,DB19,0) -> 0 | DI19: =IF(CY19>=0,DC19,0) -> 0 | DJ19: =IF(CY19<0,DC19,0) -> 0 | DK19: 0 | DL19: EBITDA prethodne godine | DM19: =BC3 -> 1661822 | DN19: =DM19 -> 1661822 | DR19: Ostvarena EBITDA prethodne godine | DS19: =DM19/1000 -> 1661.822 | DT19: =DN19/1000 -> 1661.822 | EE19: Stupanj pokrića II | EF19: =EF16/EF17 -> 1.921189699 | EG19: =EG16/EG17 -> 1.858114761 | EH19: =EH16/EH17 -> 1.949298732 | EI19: =EI16/EI17 -> 1.949298732 | EJ19: =EJ16/EJ17 -> 1.983945919
AT20: Grad Zagreb | BA20: Potraživanja | BB20: =Bilanca!C34+Bilanca!C49 -> 1670000 | BC20: =Bilanca!D34+Bilanca!D49 -> 1657391 | BD20: =Bilanca!E34+Bilanca!E49 -> 1610000 | BE20: =Bilanca!F34+Bilanca!F49 -> 1610000 | BF20: =Bilanca!G34+Bilanca!G49 -> 1740000 | CH20: Poslovni prihodi Δ | CI20: =CI2/1000 -> -1341.963 | CK20: =CK2/1000 -> 0 | CL20: =CL2/1000 -> 262.462 | CM20: =CM2/1000 -> -1079.501 | CN20: =CN2 -> Poslovni prihodi Δ | CO20: =CO2/1000 -> 0 | CP20: 0 | CQ20: 0 | CR20: 262.462 | CS20: 0 | CT20: -1079.501 | CU20: 0 | CX20: Prihodi od prodaje Δ | CY20: =CY2/1000 -> 0 | DA20: =DA2/1000 -> 1629 | DB20: =DB2/1000 -> 0 | DC20: =DC2/1000 -> 0 | DD20: =DD2 -> Prihodi od prodaje Δ | DE20: =DE2/1000 -> 0 | DF20: 1629 | DG20: 0 | DH20: 0 | DI20: 0 | DJ20: 0 | DK20: 0 | DL20: Prihodi od prodaje Δ | DM20: =(RDG!F6+RDG!F7)-(RDG!D6+RDG!D7) -> -1304753 | DO20: =IF(SUM(DM19)>=0,(IF(DM20>=0,SUM(DM19),(IF(ABS(SUM(DM19))>ABS(DM20),SUM(DM19:DM20),0)))),(IF(DM20<0,SUM(DM19),(IF(ABS(SUM(DM19))>ABS(DM20),SUM(DM19:DM20),0))))) -> 357069 | DP20: =IF(SUM(DM19)>=0,(IF(DM20<0,(IF(ABS(DM20)>ABS(SUM(DM19)),SUM(DM19),ABS(DM20))),DM20)),(IF(DM20>0,(IF(ABS(DM20)>ABS(SUM(DM19)),SUM(DM19:DM20),0)),0))) -> 1304753 | DQ20: =IF(SUM(DM19)<0,(IF(DM20<0,DM20,(IF(ABS(DM20)>ABS(SUM(DM19)),SUM(DM19),0-DM20)))),(IF(DM20<0,(IF(ABS(DM20)>ABS(SUM(DM19)),SUM(DM19:DM20),0)),0))) -> 0 | DR20: Prihodi od prodaje Δ | DS20: =DM20/1000 -> -1304.753 | DU20: =DO20/1000 -> 357.069 | DV20: =DP20/1000 -> 1304.753 | DW20: =DQ20/1000 -> 0 | DX20: Koeficijent obrtaja imovine
AT21: Dubrovačko - neretvanska županija | BA21: Financijska imovina | BB21: =Bilanca!C23+Bilanca!C56+Bilanca!C39 -> 5384532.5 | BC21: =Bilanca!D23+Bilanca!D56+Bilanca!D39 -> 2415313 | BD21: =Bilanca!E23+Bilanca!E56+Bilanca!E39 -> 2049000 | BE21: =Bilanca!F23+Bilanca!F56+Bilanca!F39 -> 2049000 | BF21: =Bilanca!G23+Bilanca!G56+Bilanca!G39 -> 1732687 | CH21: Materijalni troškovi Δ | CI21: 496.759 | CK21: =CK3/1000 -> -582.742 | CL21: 0 | CM21: =CM3/1000 -> -496.759 | CN21: =CN3 -> Materijalni troškovi Δ | CO21: 0 | CP21: -582.742 | CQ21: 0 | CR21: 0 | CS21: -496.759 | CT21: 0 | CU21: 0 | CX21: Ostali prihodi Δ | CY21: 0 | DA21: 1629 | DB21: 0 | DC21: =DC3/1000 -> 0 | DD21: Ostali prihodi Δ | DE21: 0 | DF21: 1629 | DG21: 0 | DH21: 0 | DI21: 0 | DJ21: 0 | DK21: 0 | DL21: Ostali prihodi Δ | DM21: =(RDG!F57-RDG!F6-RDG!F7)-(RDG!D57-RDG!D6-RDG!D7) -> 44903 | DO21: =IF(SUM(DM19:DM20)>=0,(IF(DM21>=0,SUM(DM19:DM20),(IF(ABS(SUM(DM19:DM20))>ABS(DM21),SUM(DM19:DM21),0)))),(IF(DM21<0,SUM(DM19:DM20),(IF(ABS(SUM(DM19:DM20))>ABS(DM21),SUM(DM19:DM21),0))))) -> 357069 | DP21: =IF(SUM(DM19:DM20)>=0,(IF(DM21<0,(IF(ABS(DM21)>ABS(SUM(DM19:DM20)),SUM(DM19:DM20),ABS(DM21))),DM21)),(IF(DM21>0,(IF(ABS(DM21)>ABS(SUM(DM19:DM20)),SUM(DM19:DM21),0)),0))) -> 44903 | DQ21: =IF(SUM(DM19:DM20)<0,(IF(DM21<0,DM21,(IF(ABS(DM21)>ABS(SUM(DM19:DM20)),SUM(DM19:DM20),0-DM21)))),(IF(DM21<0,(IF(ABS(DM21)>ABS(SUM(DM19:DM20)),SUM(DM19:DM21),0)),0))) -> 0 | DR21: Ostali prihodi Δ | DS21: 44.903 | DU21: =DO21/1000 -> 357.069 | DV21: =DP21/1000 -> 44.903 | DW21: 0 | DY21: =LEFT(Podloga!B36,5) -> 2019. | DZ21: =LEFT(Podloga!D36,5) -> 2020. | EA21: =LEFT(Podloga!F36,5) -> 2021.
AT22: Istarska županija | BA22: Zalihe | BB22: =Bilanca!C41 -> 902000 | BC22: =Bilanca!D41 -> 836189 | BD22: =Bilanca!E41 -> 840452 | BE22: =Bilanca!F41 -> 840452 | BF22: =Bilanca!G41 -> 825000 | BL22: Altman b | CH22: Troškovi osoblja Δ | CI22: 45.65 | CK22: -537.092 | CL22: 0 | CM22: =CM4/1000 -> -45.65 | CN22: Troškovi osoblja Δ | CO22: 0 | CP22: -537.092 | CQ22: 0 | CR22: 0 | CS22: -45.65 | CT22: 0 | CU22: 0 | CX22: Promjena vrijednosti zaliha Δ | CY22: 0 | DA22: 1629 | DB22: 0 | DC22: =DC4/1000 -> 0 | DD22: Promjena vrijednosti zaliha Δ | DE22: 0 | DF22: 1629 | DG22: 0 | DH22: 0 | DI22: 0 | DJ22: 0 | DK22: 0 | DL22: Promjena vrijednosti zaliha Δ | DM22: =RDG!D12-RDG!F12 -> 0 | DO22: =IF(SUM(DM19:DM21)>=0,(IF(DM22>=0,SUM(DM19:DM21),(IF(ABS(SUM(DM19:DM21))>ABS(DM22),SUM(DM19:DM22),0)))),(IF(DM22<0,SUM(DM19:DM21),(IF(ABS(SUM(DM19:DM21))>ABS(DM22),SUM(DM19:DM22),0))))) -> 401972 | DP22: =IF(SUM(DM19:DM21)>=0,(IF(DM22<0,(IF(ABS(DM22)>ABS(SUM(DM19:DM21)),SUM(DM19:DM21),ABS(DM22))),DM22)),(IF(DM22>0,(IF(ABS(DM22)>ABS(SUM(DM20:DM21)),SUM(DM19:DM22),0)),0))) -> 0 | DQ22: =IF(SUM(DM19:DM21)<0,(IF(DM22<0,DM22,(IF(ABS(DM22)>ABS(SUM(DM19:DM21)),SUM(DM19:DM21),0-DM22)))),(IF(DM22<0,(IF(ABS(DM22)>ABS(SUM(DM19:DM21)),SUM(DM19:DM22),0)),0))) -> 0 | DR22: Promjena vrijednosti zaliha Δ | DS22: 0 | DU22: 401.972 | DV22: 0 | DW22: 0 | DX22: Planirano | DY22: =EF4 -> 0.3869781719 | DZ22: =EH4 -> 0.3773474835 | EA22: =EJ4 -> 0.3917090335
AT23: Osječko - baranjska županija | BA23: Novac u banci i blagajni | BB23: =Bilanca!C66 -> 14921850.14 | BC23: =Bilanca!D66 -> 14894150 | BD23: =Bilanca!E66 -> 15552795.4 | BE23: =Bilanca!F66 -> 15552795.4 | BF23: =Bilanca!G66 -> 15614839 | BL23: X1 | BM23: ='Altman Integral (B)'!C35/'Altman Integral (B)'!C36 -> 0.5169870345 | BN23: ='Altman Integral (B)'!D35/'Altman Integral (B)'!D36 -> 0.5098037588 | BO23: ='Altman Integral (B)'!E35/'Altman Integral (B)'!E36 -> 0.5270267414 | BP23: ='Altman Integral (B)'!F35/'Altman Integral (B)'!F36 -> 0.5270267414 | BQ23: ='Altman Integral (B)'!G35/'Altman Integral (B)'!G36 -> 0.5308700143 | BR23: Koeficijent: | BS23: X1 | BT23: 6.56 | CH23: Ostali poslovni rashodi Δ | CI23: 469.928 | CK23: -67.164 | CL23: 0 | CM23: =CM5/1000 -> -469.928 | CN23: Ostali poslovni rashodi Δ | CO23: 0 | CP23: -67.164 | CQ23: 0 | CR23: 0 | CS23: -469.928 | CT23: 0 | CU23: 0 | CX23: Materijalni troškovi Δ | CY23: 0 | DA23: 1629 | DB23: 0 | DC23: =DC5/1000 -> 0 | DD23: Materijalni troškovi Δ | DE23: 0 | DF23: 1629 | DG23: 0 | DH23: 0 | DI23: 0 | DJ23: 0 | DK23: 0 | DL23: Materijalni troškovi Δ | DM23: =RDG!D13-RDG!F13 -> 496759 | DO23: =IF(SUM(DM19:DM22)>=0,(IF(DM23>=0,SUM(DM19:DM22),(IF(ABS(SUM(DM19:DM22))>ABS(DM23),SUM(DM19:DM23),0)))),(IF(DM23<0,SUM(DM19:DM22),(IF(ABS(SUM(DM19:DM22))>ABS(DM23),SUM(DM19:DM23),0))))) -> 401972 | DP23: =IF(SUM(DM19:DM22)>=0,(IF(DM23<0,(IF(ABS(DM23)>ABS(SUM(DM19:DM22)),SUM(DM19:DM22),ABS(DM23))),DM23)),(IF(DM23>0,(IF(ABS(DM23)>ABS(SUM(DM19:DM22)),SUM(DM19:DM23),0)),0))) -> 496759 | DQ23: =IF(SUM(DM19:DM22)<0,(IF(DM23<0,DM23,(IF(ABS(DM23)>ABS(SUM(DM19:DM22)),SUM(DM19:DM22),0-DM23)))),(IF(DM23<0,(IF(ABS(DM23)>ABS(SUM(DM19:DM22)),SUM(DM19:DM23),0)),0))) -> 0 | DR23: Materijalni troškovi Δ | DS23: 496.759 | DU23: 401.972 | DV23: 496.759 | DW23: 0 | DX23: Ostvareno | DY23: =EG4 -> 0.4136862239 | DZ23: =EI4 -> 0.3773474835
AT24: Primorsko-goranska županija | BA24: Ostalo | BB24: =Bilanca!C4+Bilanca!C67 -> 350000 | BC24: =Bilanca!D4+Bilanca!D67 -> 135202 | BD24: =Bilanca!E4+Bilanca!E67 -> 142000 | BE24: =Bilanca!F4+Bilanca!F67 -> 142000 | BF24: =Bilanca!G4+Bilanca!G67 -> 135000 | BL24: X2 | BM24: ='Altman Integral (B)'!C37/'Altman Integral (B)'!C36 -> -0.1524309628 | BN24: ='Altman Integral (B)'!D37/'Altman Integral (B)'!D36 -> -0.1483641077 | BO24: ='Altman Integral (B)'!E37/'Altman Integral (B)'!E36 -> -0.1408752307 | BP24: ='Altman Integral (B)'!F37/'Altman Integral (B)'!F36 -> -0.1408752307 | BQ24: ='Altman Integral (B)'!G37/'Altman Integral (B)'!G36 -> -0.1313641016 | BS24: X2 | BT24: 3.26 | CH24: Financijski i investicijski prihodi Δ | CI24: 82.113 | CK24: 0 | CL24: 14.949 | CM24: =CM6/1000 -> -67.164 | CN24: Financijski i investicijski prihodi Δ | CO24: 0 | CP24: 0 | CQ24: 14.949 | CR24: 0 | CS24: -67.164 | CT24: 0 | CU24: 0 | CX24: Troškovi osoblja Δ | CY24: 0 | DA24: 1629 | DB24: 0 | DC24: =DC6/1000 -> 0 | DD24: Troškovi osoblja Δ | DE24: 0 | DF24: 1629 | DG24: 0 | DH24: 0 | DI24: 0 | DJ24: 0 | DK24: 0 | DL24: Troškovi osoblja Δ | DM24: =RDG!D17-RDG!F17 -> 45650 | DO24: =IF(SUM(DM19:DM23)>=0,(IF(DM24>=0,SUM(DM19:DM23),(IF(ABS(SUM(DM19:DM23))>ABS(DM24),SUM(DM19:DM24),0)))),(IF(DM24<0,SUM(DM19:DM23),(IF(ABS(SUM(DM19:DM23))>ABS(DM24),SUM(DM19:DM24),0))))) -> 898731 | DP24: =IF(SUM(DM19:DM23)>=0,(IF(DM24<0,(IF(ABS(DM24)>ABS(SUM(DM19:DM23)),SUM(DM19:DM23),ABS(DM24))),DM24)),(IF(DM24>0,(IF(ABS(DM24)>ABS(SUM(DM19:DM23)),SUM(DM19:DM24),0)),0))) -> 45650 | DQ24: =IF(SUM(DM19:DM23)<0,(IF(DM24<0,DM24,(IF(ABS(DM24)>ABS(SUM(DM19:DM23)),SUM(DM19:DM23),0-DM24)))),(IF(DM24<0,(IF(ABS(DM24)>ABS(SUM(DM19:DM23)),SUM(DM19:DM24),0)),0))) -> 0 | DR24: Troškovi osoblja Δ | DS24: 45.65 | DU24: 898.731 | DV24: 45.65 | DW24: 0
AT25: Splitsko-dalmatinska županija | BA25: Dug. materijalna / dug. izvori financiranja | BB25: =Bilanca!C13/(Bilanca!C75+Bilanca!C103) -> 0.2916407252 | BC25: =Bilanca!D13/(Bilanca!D75+Bilanca!D103) -> 0.3190652739 | BD25: =Bilanca!E13/(Bilanca!E75+Bilanca!E103) -> 0.3168178423 | BE25: =Bilanca!F13/(Bilanca!F75+Bilanca!F103) -> 0.3168178423 | BF25: =Bilanca!G13/(Bilanca!G75+Bilanca!G103) -> 0.3302047238 | BL25: X3 | BM25: ='Altman Integral (B)'!C38/'Altman Integral (B)'!C36 -> 0.008080671259 | BN25: ='Altman Integral (B)'!D38/'Altman Integral (B)'!D36 -> 0.00767389619 | BO25: ='Altman Integral (B)'!E38/'Altman Integral (B)'!E36 -> 0.009192030367 | BP25: ='Altman Integral (B)'!F38/'Altman Integral (B)'!F36 -> 0.009192030367 | BQ25: ='Altman Integral (B)'!G38/'Altman Integral (B)'!G36 -> 0.01132182314 | BS25: X3 | BT25: 6.72 | CH25: Financijski i investicijski rashodi Δ | CI25: 298.741 | CK25: 14.949 | CL25: 298.741 | CM25: =CM7/1000 -> 0 | CN25: Financijski i investicijski rashodi Δ | CO25: 0 | CP25: 14.949 | CQ25: 298.741 | CR25: 0 | CS25: 0 | CT25: 0 | CU25: 0 | CX25: Vrijednosna usklađenja Δ | CY25: 0 | DA25: 1629 | DB25: 0 | DC25: =DC7/1000 -> 0 | DD25: Vrijednosna usklađenja Δ | DE25: 0 | DF25: 1629 | DG25: 0 | DH25: 0 | DI25: 0 | DJ25: 0 | DK25: 0 | DL25: Vrijednosna usklađenja Δ | DM25: =RDG!D23-RDG!F23 -> 0 | DO25: =IF(SUM(DM19:DM24)>=0,(IF(DM25>=0,SUM(DM19:DM24),(IF(ABS(SUM(DM19:DM24))>ABS(DM25),SUM(DM19:DM25),0)))),(IF(DM25<0,SUM(DM19:DM24),(IF(ABS(SUM(DM19:DM24))>ABS(DM25),SUM(DM19:DM25),0))))) -> 944381 | DP25: =IF(SUM(DM19:DM24)>=0,(IF(DM25<0,(IF(ABS(DM25)>ABS(SUM(DM19:DM24)),SUM(DM19:DM24),ABS(DM25))),DM25)),(IF(DM25>0,(IF(ABS(DM25)>ABS(SUM(DM19:DM24)),SUM(DM19:DM25),0)),0))) -> 0 | DQ25: =IF(SUM(DM19:DM24)<0,(IF(DM25<0,DM25,(IF(ABS(DM25)>ABS(SUM(DM19:DM24)),SUM(DM19:DM24),0-DM25)))),(IF(DM25<0,(IF(ABS(DM25)>ABS(SUM(DM19:DM24)),SUM(DM19:DM25),0)),0))) -> 0 | DR25: Vrijednosna usklađenja Δ | DS25: 0 | DU25: 944.381 | DV25: 0 | DW25: 0
AT26: Zadarska županija | BA26: Ukupno: | BB26: =SUM(BB18:BB24) -> 33934797.14 | BC26: =SUM(BC18:BC24) -> 34204789 | BD26: 34160026.4 | BE26: 34160026.4 | BF26: 34245368 | BL26: X4 | BM26: ='Altman Integral (B)'!C41/'Altman Integral (B)'!C39 -> 0 | BN26: ='Altman Integral (B)'!D41/'Altman Integral (B)'!D39 -> 0 | BO26: ='Altman Integral (B)'!E41/'Altman Integral (B)'!E39 -> 0 | BP26: ='Altman Integral (B)'!F41/'Altman Integral (B)'!F39 -> 0 | BQ26: ='Altman Integral (B)'!G41/'Altman Integral (B)'!G39 -> 0 | BS26: X4 | BT26: 1.05 | CH26: Procijenjena bruto dobit tekuće godine | CI26: 313.69 | CJ26: =CJ8/1000 -> 313.69 | CN26: Procijenjena bruto dobit tekuće godine | CO26: 313.69 | CP26: 0 | CQ26: 0 | CR26: 0 | CS26: 0 | CT26: 0 | CU26: 0 | CX26: Rezerviranja Δ | CY26: 0 | DA26: 1629 | DB26: 0 | DC26: =DC8/1000 -> 0 | DD26: Rezerviranja Δ | DE26: 0 | DF26: 1629 | DG26: 0 | DH26: 0 | DI26: 0 | DJ26: 0 | DK26: 0 | DL26: Rezerviranja Δ | DM26: =RDG!D26-RDG!F26 -> 0 | DO26: =IF(SUM(DM19:DM25)>=0,(IF(DM26>=0,SUM(DM19:DM25),(IF(ABS(SUM(DM19:DM25))>ABS(DM26),SUM(DM19:DM26),0)))),(IF(DM26<0,SUM(DM19:DM25),(IF(ABS(SUM(DM19:DM25))>ABS(DM26),SUM(DM19:DM26),0))))) -> 944381 | DP26: =IF(SUM(DM19:DM25)>=0,(IF(DM26<0,(IF(ABS(DM26)>ABS(SUM(DM19:DM25)),SUM(DM19:DM25),ABS(DM26))),DM26)),(IF(DM26>0,(IF(ABS(DM26)>ABS(SUM(DM19:DM25)),SUM(DM19:DM26),0)),0))) -> 0 | DQ26: =IF(SUM(DM19:DM25)<0,(IF(DM26<0,DM26,(IF(ABS(DM26)>ABS(SUM(DM19:DM25)),SUM(DM19:DM25),0-DM26)))),(IF(DM26<0,(IF(ABS(DM26)>ABS(SUM(DM19:DM25)),SUM(DM19:DM26),0)),0))) -> 0 | DR26: Rezerviranja Δ | DS26: 0 | DU26: 944.381 | DV26: 0 | DW26: 0
AT27: općina Zemunik Donji | BB27: =Podloga!B36 -> 2019. planirano | BC27: =Podloga!C36 -> 2019. ostvareno | BD27: =Podloga!D36 -> 2020. planirano | BE27: =Podloga!E36 -> 2020. procijenjeno | BF27: =Podloga!F36 -> 2021. planirano | BL27: Gornja granica | BM27: 2.6 | BN27: 2.6 | BO27: 2.6 | BP27: 2.6 | BQ27: 2.6 | CX27: Ostali poslovni rashodi Δ | CY27: =CY9/1000 -> 0 | DA27: 1629 | DB27: 0 | DC27: =DC9/1000 -> 0 | DD27: Ostali poslovni rashodi Δ | DE27: 0 | DF27: 1629 | DG27: 0 | DH27: 0 | DI27: 0 | DJ27: 0 | DK27: 0 | DL27: Ostali poslovni rashodi Δ | DM27: =(RDG!D22+RDG!D33+RDG!D55+RDG!D56)-(RDG!F22+RDG!F33+RDG!F55+RDG!F56) -> 385590 | DO27: =IF(SUM(DM19:DM26)>=0,(IF(DM27>=0,SUM(DM19:DM26),(IF(ABS(SUM(DM19:DM26))>ABS(DM27),SUM(DM19:DM27),0)))),(IF(DM27<0,SUM(DM19:DM26),(IF(ABS(SUM(DM19:DM26))>ABS(DM27),SUM(DM19:DM27),0))))) -> 944381 | DP27: =IF(SUM(DM19:DM26)>=0,(IF(DM27<0,(IF(ABS(DM27)>ABS(SUM(DM19:DM26)),SUM(DM19:DM26),ABS(DM27))),DM27)),(IF(DM27>0,(IF(ABS(DM27)>ABS(SUM(DM19:DM26)),SUM(DM19:DM27),0)),0))) -> 385590 | DQ27: =IF(SUM(DM19:DM26)<0,(IF(DM27<0,DM27,(IF(ABS(DM27)>ABS(SUM(DM19:DM26)),SUM(DM19:DM26),0-DM27)))),(IF(DM27<0,(IF(ABS(DM27)>ABS(SUM(DM19:DM26)),SUM(DM19:DM27),0)),0))) -> 0 | DR27: Ostali poslovni rashodi Δ | DS27: 385.59 | DU27: 944.381 | DV27: 385.59 | DW27: 0
BA28: Neto radni kapital | BB28: =Bilanca!C40-Bilanca!C115 -> 16792065.14 | BC28: =Bilanca!D40-Bilanca!D115 -> 16502153 | BD28: =Bilanca!E40-Bilanca!E115 -> 17110747.4 | BE28: =Bilanca!F40-Bilanca!F115 -> 17110747.4 | BF28: =Bilanca!G40-Bilanca!G115 -> 17274339 | BL28: Donja granica | BM28: 1.1 | BN28: 1.1 | BO28: 1.1 | BP28: 1.1 | BQ28: 1.1 | CH28: Planirana bruto dobit tekuće godine | CI28: =CI10/1000 -> 313.69 | CJ28: =CJ10/1000 -> 313.69 | CN28: Planirana bruto dobit tekuće godine | CO28: 313.69 | CP28: 0 | CQ28: 0 | CR28: 0 | CS28: 0 | CT28: 0 | CU28: 0 | CX28: Financijski rashodi (bez kamata) Δ | CY28: 0 | DA28: 1629 | DB28: 0 | DC28: =DC10/1000 -> 0 | DD28: Financijski rashodi (bez kamata) Δ | DE28: 0 | DF28: 1629 | DG28: 0 | DH28: 0 | DI28: 0 | DJ28: 0 | DK28: 0 | DL28: Financijski rashodi (bez kamata) Δ | DM28: =(RDG!D45-RDG!D46-RDG!D48)-(RDG!F45-RDG!F46-RDG!F48) -> 299029 | DO28: =IF(SUM(DM19:DM27)>=0,(IF(DM28>=0,SUM(DM19:DM27),(IF(ABS(SUM(DM19:DM27))>ABS(DM28),SUM(DM19:DM28),0)))),(IF(DM28<0,SUM(DM19:DM27),(IF(ABS(SUM(DM19:DM27))>ABS(DM28),SUM(DM19:DM28),0))))) -> 1329971 | DP28: =IF(SUM(DM19:DM27)>=0,(IF(DM28<0,(IF(ABS(DM28)>ABS(SUM(DM19:DM27)),SUM(DM19:DM27),ABS(DM28))),DM28)),(IF(DM28>0,(IF(ABS(DM28)>ABS(SUM(DM19:DM27)),SUM(DM19:DM28),0)),0))) -> 299029 | DQ28: =IF(SUM(DM19:DM27)<0,(IF(DM28<0,DM28,(IF(ABS(DM28)>ABS(SUM(DM19:DM27)),SUM(DM19:DM27),0-DM28)))),(IF(DM28<0,(IF(ABS(DM28)>ABS(SUM(DM19:DM27)),SUM(DM19:DM28),0)),0))) -> 0 | DR28: Financijski rashodi (bez kamata) Δ | DS28: 299.029 | DU28: 1329.971 | DV28: 299.029 | DW28: 0
BA29: Koeficijent tekuće likvidnosti | BB29: =Bilanca!C40/Bilanca!C115 -> 23.33625989 | BC29: =Bilanca!D40/Bilanca!D115 -> 18.63847658 | BD29: =Bilanca!E40/Bilanca!E115 -> 20.17170577 | BE29: =Bilanca!F40/Bilanca!F115 -> 20.17170577 | BF29: =Bilanca!G40/Bilanca!G115 -> 20.07712755 | CH29: Poslovni prihodi Δ | CI29: =CI11/1000 -> 0 | CK29: =CK11/1000 -> 313.69 | CL29: 0 | CM29: =CM11/1000 -> 0 | CN29: Poslovni prihodi Δ | CO29: 0 | CP29: 313.69 | CQ29: 0 | CR29: 0 | CS29: 0 | CT29: =IF(CI29<0,CM29,0) -> 0 | CU29: 0 | CX29: Procijenjena EBITDA tekuće godine | CY29: =CY11/1000 -> 1629 | CZ29: =CZ11/1000 -> 1629 | DD29: Procijenjena EBITDA tekuće godine | DE29: 1629 | DF29: 0 | DG29: 0 | DH29: 0 | DI29: 0 | DJ29: 0 | DK29: 0 | DL29: Procijenjena EBITDA tekuće godine | DM29: =BE3 -> 1629000 | DN29: =DM29 -> 1629000 | DR29: Procijenjena EBITDA tekuće godine | DS29: 1629 | DT29: =DN29/1000 -> 1629
BA30: Koeficijent ubrzane likvidnosti | BB30: =(Bilanca!C40-Bilanca!C41)/Bilanca!C115 -> 22.13644877 | BC30: =(Bilanca!D40-Bilanca!D41)/Bilanca!D115 -> 17.74470835 | BD30: =(Bilanca!E40-Bilanca!E41)/Bilanca!E115 -> 19.23002286 | BE30: =(Bilanca!F40-Bilanca!F41)/Bilanca!F115 -> 19.23002286 | BF30: =(Bilanca!G40-Bilanca!G41)/Bilanca!G115 -> 19.16602871 | CH30: Materijalni troškovi Δ | CI30: 0 | CK30: 313.69 | CL30: 0 | CM30: =CM12/1000 -> 0 | CN30: Materijalni troškovi Δ | CO30: 0 | CP30: 313.69 | CQ30: 0 | CR30: 0 | CS30: 0 | CT30: 0 | CU30: 0 | DO30: =DR19 -> Ostvarena EBITDA prethodne godine | DP30: =DS19 -> 1661.822 | DQ30: =DT19 -> 1661.822 | DR30: =DU19 -> 0 | DS30: =IF(DS19>=0,DV19,0) -> 0 | DT30: =IF(DS19<0,DV19,0) -> 0 | DU30: =IF(DS19>=0,DW19,0) -> 0 | DV30: =IF(DS19<0,DW19,0) -> 0 | DW30: 0
BB31: =Podloga!B36 -> 2019. planirano | BC31: =Podloga!C36 -> 2019. ostvareno | BD31: =Podloga!D36 -> 2020. planirano | BE31: =Podloga!E36 -> 2020. procijenjeno | BF31: =Podloga!F36 -> 2021. planirano | CH31: Troškovi osoblja Δ | CI31: 0 | CK31: 313.69 | CL31: 0 | CM31: =CM13/1000 -> 0 | CN31: Troškovi osoblja Δ | CO31: 0 | CP31: 313.69 | CQ31: 0 | CR31: 0 | CS31: 0 | CT31: 0 | CU31: 0 | DO31: =DR20 -> Prihodi od prodaje Δ | DP31: =DS20 -> -1304.753 | DR31: =DU20 -> 357.069 | DS31: 0 | DT31: 1304.753 | DU31: 0 | DV31: 0 | DW31: 0
BA32: Kapital/imovina | BB32: =Bilanca!C75/Bilanca!C68 -> 0.9081445813 | BC32: =Bilanca!D75/Bilanca!D68 -> 0.9034962619 | BD32: =Bilanca!E75/Bilanca!E68 -> 0.9138631228 | BE32: =Bilanca!F75/Bilanca!F68 -> 0.9138631228 | BF32: =Bilanca!G75/Bilanca!G68 -> 0.9229075302 | CH32: Ostali poslovni rashodi Δ | CI32: 0 | CK32: 313.69 | CL32: 0 | CM32: =CM14/1000 -> 0 | CN32: Ostali poslovni rashodi Δ | CO32: 0 | CP32: 313.69 | CQ32: 0 | CR32: 0 | CS32: 0 | CT32: 0 | CU32: 0 | DO32: Ostali prihodi Δ | DP32: 44.903 | DR32: 357.069 | DS32: 44.903 | DT32: 0 | DU32: 0 | DV32: 0 | DW32: 0
BA33: Kapacitet zaduženja na 5 godina | BB33: =BB3*5 -> 8749014.162 | BC33: =BC3*5 -> 8309110 | BD33: 8145000 | BE33: 8145000 | BF33: 8838600 | CH33: Financijski i investicijski prihodi Δ | CI33: 0 | CK33: 313.69 | CL33: 0 | CM33: =CM15/1000 -> 0 | CN33: Financijski i investicijski prihodi Δ | CO33: 0 | CP33: 313.69 | CQ33: 0 | CR33: 0 | CS33: 0 | CT33: 0 | CU33: 0 | DO33: Promjena vrijednosti zaliha Δ | DP33: 0 | DR33: 401.972 | DS33: 0 | DT33: 0 | DU33: 0 | DV33: 0 | DW33: 0
BA34: Odnos duga i EBITDA | BB34: =BB44/BB3 -> 1.781397848 | BC34: 1.9863078 | BD34: 1.806284837 | BE34: 1.806284837 | BF34: 1.493483131 | CH34: Financijski i investicijski rashodi Δ | CI34: 0 | CK34: 313.69 | CL34: 0 | CM34: =CM16/1000 -> 0 | CN34: Financijski i investicijski rashodi Δ | CO34: 0 | CP34: 313.69 | CQ34: 0 | CR34: 0 | CS34: 0 | CT34: 0 | CU34: 0 | DO34: Materijalni troškovi Δ | DP34: 496.759 | DR34: 401.972 | DS34: 496.759 | DT34: 0 | DU34: 0 | DV34: 0 | DW34: 0
BB35: =Podloga!B36 -> 2019. planirano | BC35: =Podloga!C36 -> 2019. ostvareno | BD35: =Podloga!D36 -> 2020. planirano | BE35: =Podloga!E36 -> 2020. procijenjeno | BF35: =Podloga!F36 -> 2021. planirano | CH35: Procijenjena bruto dobit tekuće godine | CI35: 313.69 | CJ35: =CJ17/1000 -> 313.69 | CN35: Procijenjena bruto dobit tekuće godine | CO35: 313.69 | CP35: 0 | CQ35: 0 | CR35: 0 | CS35: 0 | CT35: 0 | CU35: 0 | DO35: Troškovi osoblja Δ | DP35: 45.65 | DR35: 898.731 | DS35: 45.65 | DT35: 0 | DU35: 0 | DV35: 0 | DW35: 0
BA36: Dani vezivanja zaliha | BB36: =365/BB37 -> 27.15301208 | BC36: 23.38093765 | BD36: 26.10987999 | BE36: 26.10987999 | BF36: 24.19039984 | DO36: Vrijednosna usklađenja Δ | DP36: 0 | DR36: 944.381 | DS36: 0 | DT36: 0 | DU36: 0 | DV36: 0 | DW36: 0
BA37: Koeficijent obrtaja zaliha | BB37: =(RDG!C6+RDG!C7)/Bilanca!C41 -> 13.44233925 | BC37: =(RDG!D6+RDG!D7)/Bilanca!D41 -> 15.6110078 | BD37: =(RDG!E6+RDG!E7)/Bilanca!E41 -> 13.97938252 | BE37: =(RDG!F6+RDG!F7)/Bilanca!F41 -> 13.97938252 | BF37: =(RDG!G6+RDG!G7)/Bilanca!G41 -> 15.0886303 | DO37: Rezerviranja Δ | DP37: 0 | DR37: 944.381 | DS37: 0 | DT37: 0 | DU37: 0 | DV37: 0 | DW37: 0
BA38: Dugoročne obveze | BB38: =Bilanca!C103 -> 0 | BC38: =Bilanca!D103 -> 0 | BD38: =Bilanca!E103 -> 0 | BE38: =Bilanca!F103 -> 0 | BF38: =Bilanca!G103 -> 0 | DO38: Ostali poslovni rashodi Δ | DP38: 385.59 | DR38: 944.381 | DS38: 385.59 | DT38: 0 | DU38: 0 | DV38: 0 | DW38: 0
BB39: =Podloga!B36 -> 2019. planirano | BC39: =Podloga!C36 -> 2019. ostvareno | BD39: =Podloga!D36 -> 2020. planirano | BE39: =Podloga!E36 -> 2020. procijenjeno | BF39: =Podloga!F36 -> 2021. planirano | DO39: Financijski rashodi (bez kamata) Δ | DP39: 299.029 | DR39: 1329.971 | DS39: 299.029 | DT39: 0 | DU39: 0 | DV39: 0 | DW39: 0
BA40: Trajanje naplate potraživanja | BB40: =365/BB41 -> 45.15467642 | BC40: 43.87707926 | BD40: 46.59971061 | BE40: 46.59971061 | BF40: 48.38079967 | DO40: Procijenjena EBITDA tekuće godine | DP40: 1629 | DQ40: =DT29 -> 1629 | DR40: 0 | DS40: 0 | DT40: 0 | DU40: 0 | DV40: 0 | DW40: 0
BA41: Koeficijent obrtaja potraživanja | BB41: =(RDG!C6+RDG!C7)/(Bilanca!C52) -> 8.083326667 | BC41: =(RDG!D6+RDG!D7)/(Bilanca!D52) -> 8.318694092 | BD41: =(RDG!E6+RDG!E7)/(Bilanca!E52) -> 7.832666667 | BE41: =(RDG!F6+RDG!F7)/(Bilanca!F52) -> 7.832666667 | BF41: =(RDG!G6+RDG!G7)/(Bilanca!G52) -> 7.544315152
BB43: =Podloga!B36 -> 2019. planirano | BC43: =Podloga!C36 -> 2019. ostvareno | BD43: =Podloga!D36 -> 2020. planirano | BE43: =Podloga!E36 -> 2020. procijenjeno | BF43: =Podloga!F36 -> 2021. planirano
BA44: Dug | BB44: =Bilanca!C103+Bilanca!C115+Bilanca!C130 -> 3117095 | BC44: =Bilanca!D103+Bilanca!D115+Bilanca!D130 -> 3300890 | BD44: =Bilanca!E103+Bilanca!E115+Bilanca!E130 -> 2942438 | BE44: =Bilanca!F103+Bilanca!F115+Bilanca!F130 -> 2942438 | BF44: =Bilanca!G103+Bilanca!G115+Bilanca!G130 -> 2640060
BB46: =Podloga!C36 -> 2019. ostvareno | BC46: =Podloga!E36 -> 2020. procijenjeno | BD46: =Podloga!B36 -> 2019. planirano | BE46: =Podloga!D36 -> 2020. planirano | BF46: =Podloga!F36 -> 2021. planirano
BA47: Dug/EBITDA | BB47: =BC44/BC3 -> 1.9863078 | BC47: =BE44/BE3 -> 1.806284837 | BD47: =BB44/BB3 -> 1.781397848 | BE47: =BD44/BD3 -> 1.806284837 | BF47: =BF44/BF3 -> 1.493483131
BA48: Dug/Pasiva | BB48: =BC44/BC91 -> 0.09650373812 | BC48: =BE44/BE91 -> 0.08613687722 | BD48: =BB44/BB91 -> 0.09185541871 | BE48: =BD44/BD91 -> 0.08613687722 | BF48: =BF44/BF91 -> 0.07709246985
BA49: Tekuća likvidnost | BB49: =IFERROR(Bilanca!D40/Bilanca!D115,) -> 18.63847658 | BC49: =IFERROR(Bilanca!F40/Bilanca!F115,) -> 20.17170577 | BD49: =IFERROR(Bilanca!C40/Bilanca!C115,) -> 23.33625989 | BE49: =IFERROR(Bilanca!E40/Bilanca!E115,) -> 20.17170577 | BF49: =IFERROR(Bilanca!G40/Bilanca!G115,) -> 20.07712755
BB52: =Podloga!B36 -> 2019. planirano | BC52: =Podloga!C36 -> 2019. ostvareno | BD52: =Podloga!D36 -> 2020. planirano | BE52: =Podloga!E36 -> 2020. procijenjeno | BF52: =Podloga!F36 -> 2021. planirano
BA53: Poslovne akt. | BB53: =IF(Podloga!$B$19="Direktna",'NT dir.'!C18,'NT indir.'!C26) -> 1307570.132 | BC53: =IF(Podloga!$B$19="Direktna",'NT dir.'!D18,'NT indir.'!D26) -> 2617684 | BD53: =IF(Podloga!$B$19="Direktna",'NT dir.'!E18,'NT indir.'!E26) -> 1542545 | BE53: =IF(Podloga!$B$19="Direktna",'NT dir.'!F18,'NT indir.'!F26) -> 1542545 | BF53: =IF(Podloga!$B$19="Direktna",'NT dir.'!G18,'NT indir.'!G26) -> 1162044
BA54: Investicijske akt. | BB54: =IF(Podloga!$B$19="Direktna",'NT dir.'!C33,'NT indir.'!C41) -> -41000 | BC54: =IF(Podloga!$B$19="Direktna",'NT dir.'!D33,'NT indir.'!D41) -> -1320100 | BD54: =IF(Podloga!$B$19="Direktna",'NT dir.'!E33,'NT indir.'!E41) -> -883900 | BE54: =IF(Podloga!$B$19="Direktna",'NT dir.'!F33,'NT indir.'!F41) -> -883900 | BF54: =IF(Podloga!$B$19="Direktna",'NT dir.'!G33,'NT indir.'!G41) -> -1100000
BA55: Financijske akt. | BB55: =IF(Podloga!$B$19="Direktna",'NT dir.'!C46+'NT dir.'!C47,'NT indir.'!C54+'NT indir.'!C55) -> 0 | BC55: =IF(Podloga!$B$19="Direktna",'NT dir.'!D46+'NT dir.'!D47,'NT indir.'!D54+'NT indir.'!D55) -> 0 | BD55: =IF(Podloga!$B$19="Direktna",'NT dir.'!E46+'NT dir.'!E47,'NT indir.'!E54+'NT indir.'!E55) -> 0 | BE55: =IF(Podloga!$B$19="Direktna",'NT dir.'!F46+'NT dir.'!F47,'NT indir.'!F54+'NT indir.'!F55) -> 0 | BF55: =IF(Podloga!$B$19="Direktna",'NT dir.'!G46+'NT dir.'!G47,'NT indir.'!G54+'NT indir.'!G55) -> 0
BA56: Ukupno novč. tokovi | BB56: =IF(Podloga!$B$19="Direktna",'NT dir.'!C48,'NT indir.'!C56) -> 1266570.132 | BC56: =IF(Podloga!$B$19="Direktna",'NT dir.'!D48,'NT indir.'!D56) -> 1297584 | BD56: =IF(Podloga!$B$19="Direktna",'NT dir.'!E48,'NT indir.'!E56) -> 658645 | BE56: =IF(Podloga!$B$19="Direktna",'NT dir.'!F48,'NT indir.'!F56) -> 658645 | BF56: =IF(Podloga!$B$19="Direktna",'NT dir.'!G48,'NT indir.'!G56) -> 62044
BB59: =Podloga!B36 -> 2019. planirano | BC59: =Podloga!C36 -> 2019. ostvareno | BD59: =Podloga!D36 -> 2020. planirano | BE59: =Podloga!E36 -> 2020. procijenjeno | BF59: =Podloga!F36 -> 2021. planirano
BA60: Ukupni prihodi | BB60: =RDG!C57 -> 13132025.76 | BC60: =RDG!D57 -> 14150050 | BD60: =RDG!E57 -> 12890200 | BE60: =RDG!F57 -> 12890200 | BF60: =RDG!G57 -> 13414220
BA61: Prihodi od prodaje | BB61: =RDG!C6+RDG!C7 -> 12124990 | BC61: =RDG!D6+RDG!D7 -> 13053753 | BD61: =RDG!E6+RDG!E7 -> 11749000 | BE61: =RDG!F6+RDG!F7 -> 11749000 | BF61: =RDG!G6+RDG!G7 -> 12448120
BA62: Ostali prihodi | BB62: =RDG!C57-RDG!C6-RDG!C7 -> 1007035.76 | BC62: =RDG!D57-RDG!D6-RDG!D7 -> 1096297 | BD62: =RDG!E57-RDG!E6-RDG!E7 -> 1141200 | BE62: =RDG!F57-RDG!F6-RDG!F7 -> 1141200 | BF62: =RDG!G57-RDG!G6-RDG!G7 -> 966100
BA63: Ukupni rashodi | BB63: =(0-RDG!C58) -> -12857809.82 | BC63: =(0-RDG!D58) -> -13887588 | BD63: =(0-RDG!E58) -> -12576510 | BE63: =(0-RDG!F58) -> -12576510 | BF63: =(0-RDG!G58) -> -13026500
BA64: Bruto dobit | BB64: =RDG!C59 -> 274215.9399 | BC64: =RDG!D59 -> 262462 | BD64: =RDG!E59 -> 313690 | BE64: =RDG!F59 -> 313690 | BF64: =RDG!G59 -> 387720
BA65: Marža bruto dobiti | BB65: =BB64/BB60 -> 0.02088146528 | BC65: =BC64/BC60 -> 0.01854848569 | BD65: 0.02433554173 | BE65: 0.02433554173 | BF65: 0.02890365597
BB68: =Podloga!B36 -> 2019. planirano | BC68: =Podloga!C36 -> 2019. ostvareno | BD68: =Podloga!D36 -> 2020. planirano | BE68: =Podloga!E36 -> 2020. procijenjeno | BF68: =Podloga!F36 -> 2021. planirano
BA69: Promjene vrijednosti zaliha | BB69: =RDG!C12 -> 0 | BC69: =RDG!D12 -> 0 | BD69: =RDG!E12 -> 0 | BE69: =RDG!F12 -> 0 | BF69: =RDG!G12 -> 0
BA70: Materijalni troškovi | BB70: =RDG!C13 -> 3910250.11 | BC70: =RDG!D13 -> 4373759 | BD70: =RDG!E13 -> 3877000 | BE70: =RDG!F13 -> 3877000 | BF70: =RDG!G13 -> 3955000
BA71: Troškovi osoblja | BB71: =RDG!C17 -> 6002555.317 | BC71: =RDG!D17 -> 6089650 | BD71: =RDG!E17 -> 6044000 | BE71: =RDG!F17 -> 6044000 | BF71: =RDG!G17 -> 6220000
BA72: Amortizacija | BB72: =RDG!C21 -> 1475586.893 | BC72: =RDG!D21 -> 1399338 | BD72: =RDG!E21 -> 1315000 | BE72: =RDG!F21 -> 1315000 | BF72: =RDG!G21 -> 1380000
BA73: Vrijednosna usklađenja | BB73: =RDG!C23 -> 0 | BC73: =RDG!D23 -> 0 | BD73: =RDG!E23 -> 0 | BE73: =RDG!F23 -> 0 | BF73: =RDG!G23 -> 0
BA74: Rezerviranja | BB74: =RDG!C26 -> 0 | BC74: =RDG!D26 -> 0 | BD74: =RDG!E26 -> 0 | BE74: =RDG!F26 -> 0 | BF74: =RDG!G26 -> 0
BA75: Ostali poslovni rashodi | BB75: =RDG!C22+RDG!C33 -> 1429417.5 | BC75: =RDG!D22+RDG!D33 -> 1720590 | BD75: =RDG!E22+RDG!E33 -> 1335000 | BE75: =RDG!F22+RDG!F33 -> 1335000 | BF75: =RDG!G22+RDG!G33 -> 1456500
BA79: Bilanca (u 000 kn)
BB80: =Podloga!B36 -> 2019. planirano | BC80: =Podloga!C36 -> 2019. ostvareno | BD80: =Podloga!D36 -> 2020. planirano | BE80: =Podloga!E36 -> 2020. procijenjeno | BF80: =Podloga!F36 -> 2021. planirano
BA81: Dugotrajna imovina | BB81: =Bilanca!C5+Bilanca!C4 -> 16040947 | BC81: =Bilanca!D5+Bilanca!D4 -> 16631857 | BD81: =Bilanca!E5+Bilanca!E4 -> 16014779 | BE81: =Bilanca!F5+Bilanca!F4 -> 16014779 | BF81: =Bilanca!G5+Bilanca!G4 -> 15930529
BA82: Kratkotrajna imovina | BB82: =Bilanca!C40 -> 17543850.14 | BC82: =Bilanca!D40 -> 17437730 | BD82: =Bilanca!E40 -> 18003247.4 | BE82: =Bilanca!F40 -> 18003247.4 | BF82: =Bilanca!G40 -> 18179839
BA83: Plaćeni troškovi budućeg razdoblja i obračunati prihodi | BB83: =Bilanca!C67 -> 350000 | BC83: =Bilanca!D67 -> 135202 | BD83: =Bilanca!E67 -> 142000 | BE83: =Bilanca!F67 -> 142000 | BF83: =Bilanca!G67 -> 135000
BA84: Ukupno aktiva | BB84: =SUM(BB81:BB83) -> 33934797.14 | BC84: 34204789 | BD84: 34160026.4 | BE84: 34160026.4 | BF84: 34245368
BA86: Kapital i rezerve | BB86: =Bilanca!C75 -> 30817702.14 | BC86: =Bilanca!D75 -> 30903899 | BD86: =Bilanca!E75 -> 31217588.4 | BE86: =Bilanca!F75 -> 31217588.4 | BF86: =Bilanca!G75 -> 31605308
BA87: Rezerviranja | BB87: =Bilanca!C96 -> 0 | BC87: =Bilanca!D96 -> 0 | BD87: =Bilanca!E96 -> 0 | BE87: =Bilanca!F96 -> 0 | BF87: =Bilanca!G96 -> 0
BA88: Dugoročne obveze | BB88: =Bilanca!C103 -> 0 | BC88: =Bilanca!D103 -> 0 | BD88: =Bilanca!E103 -> 0 | BE88: =Bilanca!F103 -> 0 | BF88: =Bilanca!G103 -> 0
BA89: Kratkoročne obveze | BB89: =Bilanca!C115 -> 751785 | BC89: =Bilanca!D115 -> 935577 | BD89: =Bilanca!E115 -> 892500 | BE89: =Bilanca!F115 -> 892500 | BF89: =Bilanca!G115 -> 905500
BA90: Odgođeno plaćanje troškova i prihod budućeg razdoblja | BB90: =Bilanca!C130 -> 2365310 | BC90: =Bilanca!D130 -> 2365313 | BD90: =Bilanca!E130 -> 2049938 | BE90: =Bilanca!F130 -> 2049938 | BF90: =Bilanca!G130 -> 1734560
BA91: Ukupna pasiva | BB91: =SUM(BB86:BB90) -> 33934797.14 | BC91: 34204789 | BD91: 34160026.4 | BE91: 34160026.4 | BF91: 34245368
BA92: Ukupne obveze | BB92: =SUM(BB87:BB90) -> 3117095 | BC92: 3300890 | BD92: 2942438 | BE92: 2942438 | BF92: 2640060
BB93: =IFERROR(((Bilanca!C96+Bilanca!C103+Bilanca!C115+Bilanca!C130)/Bilanca!C68),) -> 0.09185541871 | BC93: =IFERROR(((Bilanca!D96+Bilanca!D103+Bilanca!D115+Bilanca!D130)/Bilanca!D68),) -> 0.09650373812 | BD93: =IFERROR(((Bilanca!E96+Bilanca!E103+Bilanca!E115+Bilanca!E130)/Bilanca!E68),) -> 0.08613687722 | BE93: =IFERROR(((Bilanca!F96+Bilanca!F103+Bilanca!F115+Bilanca!F130)/Bilanca!F68),) -> 0.08613687722 | BF93: =IFERROR(((Bilanca!G96+Bilanca!G103+Bilanca!G115+Bilanca!G130)/Bilanca!G68),) -> 0.07709246985
BB94: =IFERROR((Bilanca!C75/Bilanca!C68),) -> 0.9081445813 | BC94: =IFERROR((Bilanca!D75/Bilanca!D68),) -> 0.9034962619 | BD94: =IFERROR((Bilanca!E75/Bilanca!E68),) -> 0.9138631228 | BE94: =IFERROR((Bilanca!F75/Bilanca!F68),) -> 0.9138631228 | BF94: =IFERROR((Bilanca!G75/Bilanca!G68),) -> 0.9229075302
BB95: =Podloga!D36 -> 2020. planirano | BC95: =Podloga!E36 -> 2020. procijenjeno
BA96: Ukupni prihod | BB96: =RDG!E57 -> 12890200 | BC96: =RDG!F57 -> 12890200
BA97: Trošak prodanih proizvoda | BB97: =RDG!E13 -> 3877000 | BC97: =RDG!F13 -> 3877000
BA98: Bruto marža | BB98: =BB96-BB97 -> 9013200 | BC98: =BC96-BC97 -> 9013200
BA99: Promjene vrijednosti zaliha | BB99: =RDG!E12 -> 0 | BC99: =RDG!F12 -> 0
BA100: Trošak osoblja | BB100: =RDG!E17 -> 6044000 | BC100: =RDG!F17 -> 6044000
BA101: Vrijednosna usklađenja | BB101: =RDG!E23 -> 0 | BC101: =RDG!F23 -> 0
BA102: Rezerviranja | BB102: =RDG!E26 -> 0 | BC102: =RDG!F26 -> 0
BA103: Financijski rashod (bez kamata) | BB103: =RDG!E45-RDG!E46-RDG!E48 -> 5200 | BC103: =RDG!F45-RDG!F46-RDG!F48 -> 5200
BA104: Ostali rashodi | BB104: =RDG!E22+RDG!E33+RDG!E55+RDG!E56 -> 1335000 | BC104: =RDG!F22+RDG!F33+RDG!F55+RDG!F56 -> 1335000
BA105: EBITDA | BB105: =BD3 -> 1629000 | BC105: =BE3 -> 1629000
BA107: Kontrola | BB107: =BB96-BB97-BB99-BB100-BB101-BB102-BB103-BB104 -> 1629000 | BC107: =BC96-BC97-BC99-BC100-BC101-BC102-BC103-BC104 -> 1629000
BN120: Analiza novčanih izdataka
BO121: =Podloga!B36 -> 2019. planirano | BP121: =Podloga!C36 -> 2019. ostvareno | BQ121: =Podloga!D36 -> 2020. planirano | BR121: =Podloga!E36 -> 2020. procijenjeno | BS121: =Podloga!F36 -> 2021. planirano
BN122: Novčani izdaci dobavljačima | BO122: =IFERROR(IF(Podloga!$B$19="Direktna",'NT dir.'!C11,),) -> -4585521.07 | BP122: =IFERROR(IF(Podloga!$B$19="Direktna",'NT dir.'!D11,),) -> -5111433 | BQ122: =IFERROR(IF(Podloga!$B$19="Direktna",'NT dir.'!E11,),) -> -4235000 | BR122: =IFERROR(IF(Podloga!$B$19="Direktna",'NT dir.'!F11,),) -> -4235000 | BS122: =IFERROR(IF(Podloga!$B$19="Direktna",'NT dir.'!G11,),) -> -4500000
BN123: Novčani izdaci za zaposlene | BO123: =IFERROR(IF(Podloga!$B$19="Direktna",'NT dir.'!C12,),) -> -4926028.8 | BP123: =IFERROR(IF(Podloga!$B$19="Direktna",'NT dir.'!D12,),) -> -5154302 | BQ123: =IFERROR(IF(Podloga!$B$19="Direktna",'NT dir.'!E12,),) -> -5070000 | BR123: =IFERROR(IF(Podloga!$B$19="Direktna",'NT dir.'!F12,),) -> -5070000 | BS123: =IFERROR(IF(Podloga!$B$19="Direktna",'NT dir.'!G12,),) -> -5150000
BN124: Novčani izdaci za osiguranje za naknadu štete | BO124: =IFERROR(IF(Podloga!$B$19="Direktna",'NT dir.'!C13,),) -> 0 | BP124: =IFERROR(IF(Podloga!$B$19="Direktna",'NT dir.'!D13,),) -> -4000 | BQ124: =IFERROR(IF(Podloga!$B$19="Direktna",'NT dir.'!E13,),) -> 0 | BR124: =IFERROR(IF(Podloga!$B$19="Direktna",'NT dir.'!F13,),) -> 0 | BS124: =IFERROR(IF(Podloga!$B$19="Direktna",'NT dir.'!G13,),) -> 0
BN125: Novčani izdaci za kamate | BO125: =IFERROR(IF(Podloga!$B$19="Direktna",'NT dir.'!C16,),) -> 0 | BP125: =IFERROR(IF(Podloga!$B$19="Direktna",'NT dir.'!D16,),) -> 0 | BQ125: =IFERROR(IF(Podloga!$B$19="Direktna",'NT dir.'!E16,),) -> -310 | BR125: =IFERROR(IF(Podloga!$B$19="Direktna",'NT dir.'!F16,),) -> -310 | BS125: =IFERROR(IF(Podloga!$B$19="Direktna",'NT dir.'!G16,),) -> 0
BN126: Plaćeni porez na dobit | BO126: =IFERROR(IF(Podloga!$B$19="Direktna",'NT dir.'!C17,),) -> 0 | BP126: =IFERROR(IF(Podloga!$B$19="Direktna",'NT dir.'!D17,),) -> 0 | BQ126: =IFERROR(IF(Podloga!$B$19="Direktna",'NT dir.'!E17,),) -> 0 | BR126: =IFERROR(IF(Podloga!$B$19="Direktna",'NT dir.'!F17,),) -> 0 | BS126: =IFERROR(IF(Podloga!$B$19="Direktna",'NT dir.'!G17,),) -> 0
BN127: Ostali novčani izdaci iz poslovanja | BO127: =IFERROR(IF(Podloga!$B$19="Direktna",'NT dir.'!C14,),) -> -1898492.978 | BP127: =IFERROR(IF(Podloga!$B$19="Direktna",'NT dir.'!D14,),) -> -2339352 | BQ127: =IFERROR(IF(Podloga!$B$19="Direktna",'NT dir.'!E14,),) -> -1852145 | BR127: =IFERROR(IF(Podloga!$B$19="Direktna",'NT dir.'!F14,),) -> -1852145 | BS127: =IFERROR(IF(Podloga!$B$19="Direktna",'NT dir.'!G14,),) -> -2167956

Sheet Sektorski pokazatelji
A1: Sektorski ključni pokazatelji
A2: Obveznik: | B2: =IF(ISBLANK(Podloga!B2),"",Podloga!B2) -> LUKA-VUKOVAR d.o.o. | C2: =Podloga!B36 -> 2019. planirano | D2: =Podloga!C36 -> 2019. ostvareno | E2: =Podloga!D36 -> 2020. planirano | F2: =Podloga!E36 -> 2020. procijenjeno | G2: =Podloga!F36 -> 2021. planirano | H2: ="Indeks "& RIGHT(LEFT(Podloga!C36,7),5) &" / "& RIGHT(LEFT(Podloga!B36,8),6) -> Indeks 19. o / 19. pl | I2: ="Indeks "& RIGHT(LEFT(Podloga!E36,8),6) &" / "& RIGHT(LEFT(Podloga!D36,8),6) -> Indeks 20. pr / 20. pl | J2: ="Indeks "& RIGHT(LEFT(Podloga!E36,8),6) &" / "& RIGHT(LEFT(Podloga!C36,7),5) -> Indeks 20. pr / 19. o | K2: ="Indeks "& RIGHT(LEFT(Podloga!D36,8),6) &" / "& RIGHT(LEFT(Podloga!B36,8),6) -> Indeks 20. pl / 19. pl | L2: ="Indeks "& RIGHT(LEFT(Podloga!F36,8),6) &" / "& RIGHT(LEFT(Podloga!D36,8),6) -> Indeks 21. pl / 20. pl | M2: ="Indeks "& RIGHT(LEFT(Podloga!F36,8),6) &" / "& RIGHT(LEFT(Podloga!E36,8),6) -> Indeks 21. pl / 20. pr
A3: Operativni pokazatelji | B3: Način izračuna
A4: Godišnji promet | B4: Prometne po toni u luci (terminalu) godišnje | C4: 364000 | D4: =SUM('[1]Sektorski pokazatelji'!$D$4:$G$4) -> 356986.09 | E4: 315729 | F4: 315729 | G4: 359729 | H4: =IFERROR(D4/C4*100,) -> 98.07310165 | I4: =IFERROR(F4/E4*100,) -> 100 | J4: =IFERROR(F4/D4*100,) -> 88.44294185 | K4: =IFERROR(E4/C4*100,) -> 86.73873626 | L4: =IFERROR(G4/E4*100,) -> 113.9360021 | M4: =IFERROR(G4/F4*100,) -> 113.9360021
A5: Prosječni obrt broda u luci | B5: Ukupno vrijeme broda u luci: ukupan broj brodova | C5: =SUM(D5*1.01) -> 60.6 | D5: 60 | E5: 19.44333333 | F5: 19.44333333 | G5: =SUM(F5*1.14) -> 22.1654 | H5: =IFERROR(D5/C5*100,) -> 99.00990099 | I5: 100 | J5: =IFERROR(F5/D5*100,) -> 32.40555556 | K5: 32.08470847 | L5: 114 | M5: =IFERROR(G5/F5*100,) -> 114
A6: Promet po brodu na dan/sat | B6: Količina tereta; ukupno vrijeme boravka broda na vezu | C6: =SUM(D6*1.01) -> 1586.28075 | D6: =SUM('[2]Sektorski pokazatelji'!$D$6:$G$6)/4 -> 1570.575 | E6: 921.6533333 | F6: 921.6533333 | G6: =SUM(F6*1.14) -> 1050.6848 | H6: =IFERROR(D6/C6*100,) -> 99.00990099 | I6: 100 | J6: =IFERROR(F6/D6*100,) -> 58.68254196 | K6: 58.10152669 | L6: 114 | M6: =IFERROR(G6/F6*100,) -> 114
A7: Iskorištenost veza | B7: Operat. vrijeme broda na vezu x 100: ukupno vrij. provedeno na vezu | C7: 85.48135 | D7: =SUM('[2]Sektorski pokazatelji'!$D$7:$G$7)/4 -> 84.635 | E7: 93.81666667 | F7: 93.81666667 | G7: 106.951 | H7: =IFERROR(D7/C7*100,) -> 99.00990099 | I7: 100 | J7: =IFERROR(F7/D7*100,) -> 110.8485457 | K7: 109.7510354 | L7: 114 | M7: =IFERROR(G7/F7*100,) -> 114
A8: Zauzetost veza | B8: Ukupno vrijeme brodova na vezu x 100: broj vezova x mj. br radnih h | C8: 31.3201 | D8: =SUM('[2]Sektorski pokazatelji'!$D$8:$G$8)/4 -> 31.01 | E8: 34.31 | F8: 34.31 | G8: 39.1134 | H8: =IFERROR(D8/C8*100,) -> 99.00990099 | I8: =IFERROR(F8/E8*100,) -> 100 | J8: =IFERROR(F8/D8*100,) -> 110.6417285 | K8: =IFERROR(E8/C8*100,) -> 109.5462658 | L8: =IFERROR(G8/E8*100,) -> 114 | M8: =IFERROR(G8/F8*100,) -> 114
A9: Prosječno vrij. broda na vezu | B9: Ukupno vrijeme brodova na vezu: ukupan broj brodova | C9: 10.304525 | D9: =SUM('[2]Sektorski pokazatelji'!$D$9:$G$9)/4 -> 10.2025 | E9: 18.79 | F9: 18.79 | G9: 21.4206 | H9: 99.00990099 | I9: 100 | J9: 184.1705464 | K9: 182.3470757 | L9: 114 | M9: 114
A10: Proizvodnost veza | B10: Količina tereta: broj vezova (4) na terminalu (luci) | C10: 12286.13743 | D10: =SUM('[2]Sektorski pokazatelji'!$D$10:$G$10)/4 -> 12164.4925 | E10: 19678.19 | F10: 19678.19 | G10: 22433.1366 | H10: 99.00990099 | I10: 100 | J10: 161.7674556 | K10: 160.1657976 | L10: 114 | M10: 114
A11: Proizvodnost terminala | B11: Količina tereta: broj radnika (45) | C11: 1687.232775 | D11: =SUM('[2]Sektorski pokazatelji'!$D$11:$G$11)/4 -> 1670.5275 | E11: 1749.173333 | F11: 1749.173333 | G11: 1994.0576 | H11: =IFERROR(D11/C11*100,) -> 99.00990099 | I11: =IFERROR(F11/E11*100,) -> 100 | J11: =IFERROR(F11/D11*100,) -> 104.7078443 | K11: =IFERROR(E11/C11*100,) -> 103.6711329 | L11: =IFERROR(G11/E11*100,) -> 114 | M11: =IFERROR(G11/F11*100,) -> 114
A12: Proizvodnost smjene | B12: Količina tereta: broj smjena | C12: 824.82155 | D12: =SUM('[2]Sektorski pokazatelji'!$D$12:$G$12)/4 -> 816.655 | E12: 399.3733333 | F12: 399.3733333 | G12: 455.2856 | H12: 99.00990099 | I12: 100 | J12: 48.90355577 | K12: 48.41936214 | L12: 114 | M12: 114
A13: Proizvodnost transpor. sred. | B13: Količina tereta: sati rada trans. sredstava | C13: 149.421925 | D13: =SUM('[2]Sektorski pokazatelji'!$D$13:$G$13)/4 -> 147.9425 | E13: 185.2 | F13: 185.2 | G13: 211.128 | H13: 99.00990099 | I13: 100 | J13: 125.1837707 | K13: 123.9443274 | L13: 114 | M13: 114
A14: Prosječno vrijeme tereta u luci | B14: Količina tereta x dani zadrž. od istovara do izl. Iz luke | C14: 59.16075 | D14: =SUM('[2]Sektorski pokazatelji'!$D$14:$F$14)/4 -> 58.575 | E14: 6.54 | F14: 6.54 | G14: 7.4556 | H14: 99.00990099 | I14: 100 | J14: 11.16517286 | K14: 11.05462659 | L14: 114 | M14: 114
H15: 0 | I15: 0 | J15: 0 | K15: 0 | L15: 0 | M15: 0
H16: 0 | I16: 0 | J16: 0 | K16: 0 | L16: 0 | M16: 0
H17: 0 | I17: 0 | J17: 0 | K17: 0 | L17: 0 | M17: 0
H18: 0 | I18: 0 | J18: 0 | K18: 0 | L18: 0 | M18: 0
H19: 0 | I19: 0 | J19: 0 | K19: 0 | L19: 0 | M19: 0
H20: 0 | I20: 0 | J20: 0 | K20: 0 | L20: 0 | M20: 0
H21: 0 | I21: 0 | J21: 0 | K21: 0 | L21: 0 | M21: 0
H22: 0 | I22: 0 | J22: 0 | K22: 0 | L22: 0 | M22: 0
H23: 0 | I23: 0 | J23: 0 | K23: 0 | L23: 0 | M23: 0
A24: Financijsko - naturalni pokazatelji
A25: prihod po toni pretovara | B25: Ukupni prihodi/pretovarene tone | C25: =SUM(RDG!C57/'Sektorski pokazatelji'!C4) -> 36.07699385 | D25: =SUM(RDG!D57/'Sektorski pokazatelji'!D4) -> 39.63753882 | E25: =SUM(RDG!E57/'Sektorski pokazatelji'!E4) -> 40.826785 | F25: =SUM(RDG!F57/'Sektorski pokazatelji'!F4) -> 40.826785 | G25: =SUM(RDG!G57/'Sektorski pokazatelji'!G4) -> 37.28979315 | H25: =IFERROR(D25/C25*100,) -> 109.8692951 | I25: 100 | J25: =IFERROR(F25/D25*100,) -> 103.0003028 | K25: 113.1657066 | L25: 91.33658982 | M25: =IFERROR(G25/F25*100,) -> 91.33658982
A26: trošak po toni | B26: Ukupni rashodi/pretovarene tone | C26: =SUM(RDG!C58/'Sektorski pokazatelji'!C4) -> 35.32365335 | D26: =SUM(RDG!D58/'Sektorski pokazatelji'!D4) -> 38.9023225 | E26: =SUM(RDG!E58/'Sektorski pokazatelji'!E4) -> 39.83324307 | F26: =SUM(RDG!F58/'Sektorski pokazatelji'!F4) -> 39.83324307 | G26: =SUM(RDG!G58/'Sektorski pokazatelji'!G4) -> 36.2119818 | H26: =IFERROR(D26/C26*100,) -> 110.1310844 | I26: =IFERROR(F26/E26*100,) -> 100 | J26: =IFERROR(F26/D26*100,) -> 102.3929691 | K26: =IFERROR(E26/C26*100,) -> 112.7664873 | L26: =IFERROR(G26/E26*100,) -> 90.90894692 | M26: =IFERROR(G26/F26*100,) -> 90.90894692
H27: 0 | I27: 0 | J27: 0 | K27: 0 | L27: 0 | M27: 0
A28: Tržišni pokazatelji
A29: ekonomičnost ukupnog poslovanja | B29: ukupni prihodi/ukupni rashodi | C29: =SUM(RDG!C57/RDG!C58) -> 1.0213268 | D29: =SUM(RDG!D57/RDG!D58) -> 1.018899034 | E29: =SUM(RDG!E57/RDG!E58) -> 1.024942532 | F29: =SUM(RDG!F57/RDG!F58) -> 1.024942532 | G29: =SUM(RDG!G57/RDG!G58) -> 1.029763943 | H29: =IFERROR(D29/C29*100,) -> 99.76229294 | I29: 100 | J29: =IFERROR(F29/D29*100,) -> 100.59314 | K29: 100.354023 | L29: 100.4704079 | M29: =IFERROR(G29/F29*100,) -> 100.4704079
H30: 0 | I30: 0 | J30: 0 | K30: 0 | L30: 0 | M30: 0
H31: 0 | I31: 0 | J31: 0 | K31: 0 | L31: 0 | M31: 0
A32: Razvojni pokazatelji
H33: =IFERROR(D33/C33*100,) -> 0 | I33: 0 | J33: =IFERROR(F33/D33*100,) -> 0 | K33: 0 | L33: 0 | M33: =IFERROR(G33/F33*100,) -> 0
H34: =IFERROR(D34/C34*100,) -> 0 | I34: 0 | J34: 0 | K34: 0 | L34: 0 | M34: =IFERROR(G34/F34*100,) -> 0
H35: =IFERROR(D35/C35*100,) -> 0 | I35: 0 | J35: 0 | K35: 0 | L35: 0 | M35: =IFERROR(G35/F35*100,) -> 0
A38: * Plavo osjenčana pozadina označava planirane vrijednosti

Sheet Compliance
B1: Izvješće o provođenju funkcije praćenja usklađenosti
B2: =Podloga!B2 -> LUKA-VUKOVAR d.o.o.
B4: AKTI | C4: ODGOVOR | D4: DODATNI KOMENTAR / OBRAZLOŽENJE
B5: Je li donesen interni akt kojim je definirana funkcija praćenja usklađenosti? | C5: DA
B6: Naziv akta | C6: ODLUKA O IMENOVANJU OSOBE
B7: Tko donosi interne akte u društvu / pravnoj osobi? | C7: DIREKTOR DRUŠTVA
B8: Je li internim aktom kojim je definirana funkcija praćenja usklađenosti predviđeno donošenje drugih akata? | C8: NE
B9: Naziv drugih akata
B10: Jesu li doneseni drugi akti predviđeni internim aktom kojim je definirana funkcija praćenja usklađenosti?
B11: Je li internim aktima o funkciji usklađenosti predviđena samostalnost i neovisnost osobe zadužene za funkcije praćenja usklađenosti? | C11: DA
B12: Je li internim aktom propisana minimalna stručna sprema i potrebna znanja za obavljanje funkcije praćenja usklađenosti | C12: NE
B14: Formalni status funkcije praćenja usklađenosti | C14: ODGOVOR | D14: DODATNI KOMENTAR / OBRAZLOŽENJE
B15: Na koji je način organizirana funkcija praćenja usklađenosti? | C15: IMENOVANA OSOBA
B16: (A) Jedinica za praćenje funkcije usklađenosti
B17: (B) osoba / službenik | C17: DARKO VICKOVIĆ
B18: Obavljaju li funkciju praćenja usklađenosti zaposlenici koji su već zaposleni u pravnoj osobi? | C18: DA
B19: A) Ustrojstvena jedinica | C19: ODGOVOR | D19: DODATNI KOMENTAR / OBRAZLOŽENJE
B20: Je li formirana nova ustrojstvena jedinica za funkciju praćenje usklađenosti poslovanja?
B21: Naziv ustrojstvene jedinice
B22: Je li rađena nova sistematizacija zbog uvođenja ustrojstvene jedinice za praćenje funkcije praćenja usklađenosti poslovanja?
B23: Je li tom sistematizacijom povećan ukupni broj zaposlenika u pravnoj osobi?
B24: Ako DA, u kojim je ustrojstvenim jedinicama bilo promjena i za koliko?
B25: Je li ustrojstvena jedinica ustrojena samo za obavljanje poslova funkcije praćenja usklađenosti?
B26: Ako NE, koje dodatne poslove obavlja?
B27: Broj službenika predviđenih ustrojstvenom jedinicom
B28: Broj službenika zaposlenih u ustrojstvenoj jedinici
B29: B) Osoba / službenik | C29: ODGOVOR | D29: DODATNI KOMENTAR / OBRAZLOŽENJE
B30: Obavlja li funkciju praćenja usklađenosti samostalni službenik? | C30: DA
B31: Kojim je aktom imenovana osoba unutar organizacije? | C31: ODLUKOM O IMENOVANJU
B32: Naziv radnog mjesta osobe? | C32: RUKOVODITELJ SEKTORA ZA OPĆE, PRAVNE KADROVSKE POTREBE
B33: Je li službenik zaposlen na to radno mjesto samo za obavljanje posla funkcije praćenja usklađenosti? | C33: NE
B34: Ako NE, koje poslove obavlja pored poslova funkcije usklađenosti? | C34: KADROVSKE I PRAVNE POSLOVE
B36: OPIS POSLOVA | C36: ODGOVOR | D36: DODATNI KOMENTAR / OBRAZLOŽENJE
B37: Kratak opis poslova funkcije praćenja usklađenosti | C37: NALIZIRANJE POSLOVANJA DRUŠTVA I PREDLAGANJE MJERAUKOLIKO SE UTVRDE NEPRAVILNOSTIKOJIMA BI SE OTKLONILE NEPRAVILNOSTI
B38: Jesu li osobe zadužene za funkciju praćenja usklađenosti neovisne u obavljanju poslova? | C38: DA
B39: Ako NE, obrazložiti.
B40: Jesu li osobe zadužene za funkciju praćenja usklađenosti samostalne u obavljanju poslova? | C40: DA
B41: Ako NE, obrazložiti.
B42: Imaju li osobe zadužene za funkciju praćenja usklađenosti pristup osoblju i stručnim službama u društvu koje su potrebne za obavljanje poslova funkcije usklađenosti? | C42: DA
B43: Ako NE, obrazložiti.
B44: Jesu li osobe zadužene za funkciju praćenja usklađenosti u sukobu interesa između obavljanja poslova funkcije usklađenosti i drugih svojih odgovornosti? | C44: NE
B45: Ako DA, obrazložiti.
B46: Imaju li osobe zadužene za funkciju funkciju praćenja usklađenosti potrebne ovlasti i pristup svim bitnim podacima za obavljanje funkcije poslova praćenja usklađenosti? | C46: DA
B48: Povezane PO | C48: ODGOVOR | D48: DODATNI KOMENTAR / OBRAZLOŽENJE
B49: Je li funkcija usklađenosti uvedena u povezanim pravnim osobama društva?
B50: U kojima?
B51: Na koji je način organizirana funkcija praćenja usklađenosti?
B52: (A) Jedinica za praćenje funkcije usklađenosti
B53: (B) Samostalna osoba / službenik
B54: Da li je donesen interni akt kojim je definirana funkcija praćenja usklađenosti?
B55: Naziv akta
B56: Izvještavaju li povezane osobe matičnu pravnu osobu o provođenju funkcije praćenja usklađenosti?
B57: Na koji način povezane pravne osobe izvještavaju matičnu pravnu osobu?
B59: KOMUNIKACIJA | C59: ODGOVOR | D59: DODATNI KOMENTAR / OBRAZLOŽENJE
B60: Imaju li osobe zadužene za obavljanje funkcije praćenja usklađenosti mogućnost izravne komunikacije s NO ili drugim nadzornim tijelom PO? | C60: DA
B61: Oblik komunikacije (formalna, neformalna) | C61: FORMALNA
B64: Utjecaj funkcije praćenja usklađenosti na poslovanje PO (opisati efekte) | C64: ODGOVOR | D64: DODATNI KOMENTAR / OBRAZLOŽENJE
B65: Financijski
B66: Organizacijski
B67: Antikorupcijski
B69: IZVJEŠTAVANJE | C69: ODGOVOR | D69: DODATNI KOMENTAR / OBRAZLOŽENJE
B70: Prate li i ocjenjuju osobe zadužene za funkciju praćenja usklađenosti učinkovitost politika, mjera i postupaka propisanih u svrhu praćenja usklađenosti poslovanja društva u cilju rješavanja nedostataka i nepravilnosti u poslovanju?
B71: Izvještavaju li osobe zadužene za funkciju praćenja usklađenosti poslovanja društva tijela društva o nedostacima i nepravilnostima otkrivenim u provođenju svojih aktivnosti? | C71: DA
B72: Savjetuju li osobe zadužene za funkciju praćenja usklađenosti poslovanja društva tijela društva o ispravljanju nedostaka i nepravilnosti otkrivenih u provođenju svojih aktivnosti? | C72: DA
B73: Broj zaprimljenih prijava o nepravilnosti: | C73: 0
B74: Broj riješenih prijava o nepravilnosti: | C74: 0
B75: Broj uočenih nepravilnosti: | C75: 0
B76: Broj riješenih uočenih nepravilnosti: | C76: 0
B77: Je li uprava ili drugo tijelo upravljanja identificiralo glavne rizike usklađenosti poslovanja?
B78: Donosi li uprava ili drugo tijelo upravljanja godišnje planove za upravljanje rizicima usklađenosti?
B80: * Stupac DODATNI KOMENTAR / OBRAZLOŽENJE popuniti ukoliko smatrate potrebnim

Sheet Sazetak (hidden)
L1: Tablica za Interni izvještaj
B2: =Podloga!B2 -> LUKA-VUKOVAR d.o.o. | L2: =Podloga!L2 -> 0
B6: BILANCA (HRK 000) | C6: =Podloga!B36 -> 2019. planirano | D6: =Podloga!C36 -> 2019. ostvareno | E6: =Podloga!D36 -> 2020. planirano | F6: =Podloga!E36 -> 2020. procijenjeno | G6: =Podloga!F36 -> 2021. planirano | I6: Pokazatelji | J6: Izračun | L6: BILANCA (HRK 000) | M6: =D6 -> 2019. ostvareno | N6: =F6 -> 2020. procijenjeno | O6: =G6 -> 2021. planirano
B7: Dugotrajna imovina | C7: =Bilanca!C5 -> 16040947 | D7: =Bilanca!D5 -> 16631857 | E7: =Bilanca!E5 -> 16014779 | F7: =Bilanca!F5 -> 16014779 | G7: =Bilanca!G5 -> 15930529 | I7: EBITDA | J7: Poslovni prihod - poslovni rashod + amortizacija | L7: Dugotrajna imovina | M7: =D7 -> 16631857 | N7: =F7 -> 16014779 | O7: =G7 -> 15930529
B8: Kratkotrajna imovina | C8: =Bilanca!C40 -> 17543850.14 | D8: =Bilanca!D40 -> 17437730 | E8: =Bilanca!E40 -> 18003247.4 | F8: =Bilanca!F40 -> 18003247.4 | G8: =Bilanca!G40 -> 18179839 | I8: EBITDA marža | J8: (Pos. prihod - pos. rashod + amortizacija) / posl. prihod | L8: Kratkotrajna imovina | M8: 17437730 | N8: 18003247.4 | O8: 18179839
B9: Pl. troš. budućeg razd.. | C9: =Bilanca!C67 -> 350000 | D9: =Bilanca!D67 -> 135202 | E9: =Bilanca!E67 -> 142000 | F9: =Bilanca!F67 -> 142000 | G9: =Bilanca!G67 -> 135000 | I9: Neto profitna marža | J9: Neto dobit / uk. prihod | L9: Pl. troš. budućeg razd.. | M9: 135202 | N9: 142000 | O9: 135000
B10: Aktiva | C10: =Bilanca!C68 -> 33934797.14 | D10: =Bilanca!D68 -> 34204789 | E10: =Bilanca!E68 -> 34160026.4 | F10: =Bilanca!F68 -> 34160026.4 | G10: =Bilanca!G68 -> 34245368 | I10: RoA | J10: Neto dobit / aktiva | L10: Aktiva | M10: 34204789 | N10: 34160026.4 | O10: 34245368
B11: Kapital i rezerve | C11: =Bilanca!C75 -> 30817702.14 | D11: =Bilanca!D75 -> 30903899 | E11: =Bilanca!E75 -> 31217588.4 | F11: =Bilanca!F75 -> 31217588.4 | G11: =Bilanca!G75 -> 31605308 | I11: RoE | J11: Neto dobit / kapital i rezerve | L11: Kapital i rezerve | M11: 30903899 | N11: 31217588.4 | O11: 31605308
B12: Rezerviranja | C12: =Bilanca!C96 -> 0 | D12: =Bilanca!D96 -> 0 | E12: =Bilanca!E96 -> 0 | F12: =Bilanca!F96 -> 0 | G12: =Bilanca!G96 -> 0 | I12: Koef. tekuće likvidnosti | J12: Kratkotrajna imovina / kratkoročne obveze | L12: Rezerviranja | M12: 0 | N12: 0 | O12: 0
B13: Dugoročne obveze | C13: =Bilanca!C103 -> 0 | D13: =Bilanca!D103 -> 0 | E13: =Bilanca!E103 -> 0 | F13: =Bilanca!F103 -> 0 | G13: =Bilanca!G103 -> 0 | I13: Koeficijent financijske stabilnosti | J13: Dugotrajna imovina / (Kapital i rezerve + Dugoročne obveze) | L13: Dugoročne obveze | M13: 0 | N13: 0 | O13: 0
B14: Kratkoročne obveze | C14: =Bilanca!C115 -> 751785 | D14: =Bilanca!D115 -> 935577 | E14: =Bilanca!E115 -> 892500 | F14: =Bilanca!F115 -> 892500 | G14: =Bilanca!G115 -> 905500 | I14: Koef. zaduženosti | J14: (Rezerviranja + Dugoročne obveze + Kratkoročne obveze + Ostalo) / Aktiva | L14: Kratkoročne obveze | M14: 935577 | N14: 892500 | O14: 905500
B15: Odg. pl. troš. i prihod.. | C15: =Bilanca!C130 -> 2365310 | D15: =Bilanca!D130 -> 2365313 | E15: =Bilanca!E130 -> 2049938 | F15: =Bilanca!F130 -> 2049938 | G15: =Bilanca!G130 -> 1734560 | L15: Odg. pl. troš. i prihod.. | M15: 2365313 | N15: 2049938 | O15: 1734560
B16: Pasiva | C16: =Bilanca!C131 -> 33934797.14 | D16: =Bilanca!D131 -> 34204789 | E16: =Bilanca!E131 -> 34160026.4 | F16: =Bilanca!F131 -> 34160026.4 | G16: =Bilanca!G131 -> 34245368 | L16: Pasiva | M16: 34204789 | N16: 34160026.4 | O16: 34245368
B18: RAČUN DOBITI I GUBITKA (HRK 000) | L18: RAČUN DOBITI I GUBITKA (HRK 000) | M18: 0 | N18: 0 | O18: 0
B19: Poslovni prihodi | C19: =RDG!C5 -> 13102025.76 | D19: =RDG!D5 -> 14040963 | E19: =RDG!E5 -> 12699000 | F19: =RDG!F5 -> 12699000 | G19: =RDG!G5 -> 13398120 | L19: Poslovni prihodi | M19: 14040963 | N19: 12699000 | O19: 13398120
B20: Poslovni rashodi | C20: =RDG!C11 -> 12817809.82 | D20: =RDG!D11 -> 13583337 | E20: =RDG!E11 -> 12571000 | F20: =RDG!F11 -> 12571000 | G20: =RDG!G11 -> 13011500 | L20: Poslovni rashodi | M20: 13583337 | N20: 12571000 | O20: 13011500
B21: Financijski prihodi | C21: =RDG!C34 -> 30000 | D21: =RDG!D34 -> 109087 | E21: =RDG!E34 -> 191200 | F21: =RDG!F34 -> 191200 | G21: =RDG!G34 -> 16100 | L21: Financijski prihodi | M21: 109087 | N21: 191200 | O21: 16100
B22: Financijski rashodi | C22: =RDG!C45 -> 40000 | D22: =RDG!D45 -> 304251 | E22: =RDG!E45 -> 5510 | F22: =RDG!F45 -> 5510 | G22: =RDG!G45 -> 15000 | L22: Financijski rashodi | M22: 304251 | N22: 5510 | O22: 15000
B23: Ukupni prihodi | C23: =RDG!C57 -> 13132025.76 | D23: =RDG!D57 -> 14150050 | E23: =RDG!E57 -> 12890200 | F23: =RDG!F57 -> 12890200 | G23: =RDG!G57 -> 13414220 | L23: Ukupni prihodi | M23: 14150050 | N23: 12890200 | O23: 13414220
B24: Ukupni rashodi | C24: =RDG!C58 -> 12857809.82 | D24: =RDG!D58 -> 13887588 | E24: =RDG!E58 -> 12576510 | F24: =RDG!F58 -> 12576510 | G24: =RDG!G58 -> 13026500 | L24: Ukupni rashodi | M24: 13887588 | N24: 12576510 | O24: 13026500
B25: Dobit/gubitak prije oporezivanja | C25: =RDG!C59 -> 274215.9399 | D25: =RDG!D59 -> 262462 | E25: =RDG!E59 -> 313690 | F25: =RDG!F59 -> 313690 | G25: =RDG!G59 -> 387720 | L25: Dobit/gubitak prije oporezivanja | M25: 262462 | N25: 313690 | O25: 387720
B26: Porez na dobit | C26: =RDG!C62 -> 0 | D26: =RDG!D62 -> 0 | E26: =RDG!E62 -> 0 | F26: =RDG!F62 -> 0 | G26: =RDG!G62 -> 0 | L26: Porez na dobit | M26: 0 | N26: 0 | O26: 0
B27: Neto dobit/gubitak | C27: =RDG!C63 -> 274215.9399 | D27: =RDG!D63 -> 262462 | E27: =RDG!E63 -> 313690 | F27: =RDG!F63 -> 313690 | G27: =RDG!G63 -> 387720 | L27: Neto dobit/gubitak | M27: 262462 | N27: 313690 | O27: 387720
B29: KLJUČNI POKAZATELJI | L29: KLJUČNI POKAZATELJI
B30: EBITDA (HRK 000) | C30: =C19-C20+C42 -> 1759802.832 | D30: =D19-D20+D42 -> 1856964 | E30: 1443000 | F30: 1443000 | G30: 1766620 | L30: EBITDA (HRK 000) | M30: 1856964 | N30: 1443000 | O30: 1766620
B31: EBITDA marža | C31: =IFERROR(C30/C19,0) -> 0.1343153238 | D31: =IFERROR(D30/D19,0) -> 0.1322533219 | E31: 0.1136309946 | F31: 0.1136309946 | G31: 0.1318558126 | L31: EBITDA marža | M31: 0.1322533219 | N31: 0.1136309946 | O31: 0.1318558126
B32: Neto profitna marža | C32: =IFERROR(C27/C23,0) -> 0.02088146528 | D32: =IFERROR(D27/D23,0) -> 0.01854848569 | E32: 0.02433554173 | F32: 0.02433554173 | G32: 0.02890365597 | L32: Neto profitna marža | M32: 0.01854848569 | N32: 0.02433554173 | O32: 0.02890365597
B33: ROA | C33: =IFERROR(C27/C10,0) -> 0.008080671259 | D33: =IFERROR(D27/D10,0) -> 0.007673253006 | E33: 0.009182955432 | F33: 0.009182955432 | G33: 0.01132182314 | L33: ROA | M33: 0.007673253006 | N33: 0.009182955432 | O33: 0.01132182314
B34: ROE | C34: =IFERROR(C27/C11,0) -> 0.008898000853 | D34: =IFERROR(D27/D11,0) -> 0.00849284422 | E34: 0.01004850202 | F34: 0.01004850202 | G34: 0.01226755961 | L34: ROE | M34: 0.00849284422 | N34: 0.01004850202 | O34: 0.01226755961
B35: Koef. tekuće likvidnosti | C35: =IFERROR(C8/C14,0) -> 23.33625989 | D35: =IFERROR(D8/D14,0) -> 18.63847658 | E35: 20.17170577 | F35: 20.17170577 | G35: 20.07712755 | L35: Koef. tekuće likvidnosti | M35: 18.63847658 | N35: 20.17170577 | O35: 20.07712755
B36: Koef. financijske stab. | C36: =IFERROR(C7/(C11+C13),0) -> 0.5205108067 | D36: =IFERROR(D7/(D11+D13),0) -> 0.5381798912 | E36: 0.513005002 | F36: 0.513005002 | G36: 0.5040459976 | L36: Koef. financijske stab. | M36: 0.5381798912 | N36: 0.513005002 | O36: 0.5040459976
B37: Koef. zaduženosti | C37: =IFERROR((C12+C13+C14+C15)/C10,0) -> 0.09185541871 | D37: =IFERROR((D12+D13+D14+D15)/D10,0) -> 0.09650373812 | E37: 0.08613687722 | F37: 0.08613687722 | G37: 0.07709246985 | L37: Koef. zaduženosti | M37: 0.09650373812 | N37: 0.08613687722 | O37: 0.07709246985
B38: Zaposleni | C38: =Podloga!B37 -> 68 | D38: =Podloga!C37 -> 69 | E38: =Podloga!D37 -> 69 | F38: =Podloga!E37 -> 65 | G38: =Podloga!F37 -> 65 | L38: Zaposleni | M38: 69 | N38: 65 | O38: 65
B39: Investicije (HRK 000) | C39: =Podloga!B38 -> 41000 | D39: =Podloga!C38 -> 1372976 | E39: =Podloga!D38 -> 885000 | F39: =Podloga!E38 -> 885000 | G39: =Podloga!F38 -> 1100000 | L39: Investicije (HRK 000) | M39: 1372976 | N39: 885000 | O39: 1100000
B42: Amortizacija | C42: =RDG!C21 -> 1475586.893 | D42: =RDG!D21 -> 1399338 | E42: =RDG!E21 -> 1315000 | F42: =RDG!F21 -> 1315000 | G42: =RDG!G21 -> 1380000 | L42: Amortizacija | M42: 1399338 | N42: 1315000 | O42: 1380000

Sheet AI (hidden)
A2: Naziv društva | B2: Ukupni prihodi | G2: Ukupni rashodi | L2: Neto dobit/gubitak | Q2: Planirane investicije | V2: Dugotrajna imovina | AA2: Kratkotrajna imovina | AF2: Pl. troš. budućeg razd.. | AK2: Aktiva | AP2: Kapital i rezerve | AU2: Rezerviranja | AZ2: Dugoročne obveze | BE2: Kratkoročne obveze | BJ2: Odg. pl. troš. i prihod.. | BO2: Pasiva | BT2: Poslovni prihodi | BY2: Poslovni rashodi | CD2: Financijski prihodi | CI2: Financijski rashodi | CN2: Ukupni prihodi | CS2: Ukupni rashodi | CX2: Dobit/gubitak prije oporezivanja | DC2: Porez na dobit | DH2: Neto dobit/gubitak | DM2: EBITDA (HRK 000) | DR2: EBITDA marža | DW2: Neto profitna marža | EB2: ROA | EG2: ROE | EL2: Tekuća likvidnost | EQ2: Koef. financijske stab. | EV2: Koef. zaduženosti | FA2: Zaposleni | FF2: Investicije (HRK 000) | FK2: Amortizacija
B3: 2019. planirano | C3: 2019. ostvareno | D3: 2020. planirano | E3: 2020. procijenjeno | F3: 2021. planirano | G3: 2019. planirano | H3: 2019. ostvareno | I3: 2020. planirano | J3: 2020. procijenjeno | K3: 2021. planirano | L3: 2019. planirano | M3: 2019. ostvareno | N3: 2020. planirano | O3: 2020. procijenjeno | P3: 2021. planirano | Q3: 2019. planirano | R3: 2019. ostvareno | S3: 2020. planirano | T3: 2020. procijenjeno | U3: 2021. planirano | V3: 2019. planirano | W3: 2019. ostvareno | X3: 2020. planirano | Y3: 2020. procijenjeno | Z3: 2021. planirano | AA3: 2019. planirano | AB3: 2019. ostvareno | AC3: 2020. planirano | AD3: 2020. procijenjeno | AE3: 2021. planirano | AF3: 2019. planirano | AG3: 2019. ostvareno | AH3: 2020. planirano | AI3: 2020. procijenjeno | AJ3: 2021. planirano | AK3: 2019. planirano | AL3: 2019. ostvareno | AM3: 2020. planirano | AN3: 2020. procijenjeno | AO3: 2021. planirano | AP3: 2019. planirano | AQ3: 2019. ostvareno | AR3: 2020. planirano | AS3: 2020. procijenjeno | AT3: 2021. planirano | AU3: 2019. planirano | AV3: 2019. ostvareno | AW3: 2020. planirano | AX3: 2020. procijenjeno | AY3: 2021. planirano | AZ3: 2019. planirano | BA3: 2019. ostvareno | BB3: 2020. planirano | BC3: 2020. procijenjeno | BD3: 2021. planirano | BE3: 2019. planirano | BF3: 2019. ostvareno | BG3: 2020. planirano | BH3: 2020. procijenjeno | BI3: 2021. planirano | BJ3: 2019. planirano | BK3: 2019. ostvareno | BL3: 2020. planirano | BM3: 2020. procijenjeno | BN3: 2021. planirano | BO3: 2019. planirano | BP3: 2019. ostvareno | BQ3: 2020. planirano | BR3: 2020. procijenjeno | BS3: 2021. planirano | BT3: 2019. planirano | BU3: 2019. ostvareno | BV3: 2020. planirano | BW3: 2020. procijenjeno | BX3: 2021. planirano | BY3: 2019. planirano | BZ3: 2019. ostvareno | CA3: 2020. planirano | CB3: 2020. procijenjeno | CC3: 2021. planirano | CD3: 2019. planirano | CE3: 2019. ostvareno | CF3: 2020. planirano | CG3: 2020. procijenjeno | CH3: 2021. planirano | CI3: 2019. planirano | CJ3: 2019. ostvareno | CK3: 2020. planirano | CL3: 2020. procijenjeno | CM3: 2021. planirano | CN3: 2019. planirano | CO3: 2019. ostvareno | CP3: 2020. planirano | CQ3: 2020. procijenjeno | CR3: 2021. planirano | CS3: 2019. planirano | CT3: 2019. ostvareno | CU3: 2020. planirano | CV3: 2020. procijenjeno | CW3: 2021. planirano | CX3: 2019. planirano | CY3: 2019. ostvareno | CZ3: 2020. planirano | DA3: 2020. procijenjeno | DB3: 2021. planirano | DC3: 2019. planirano | DD3: 2019. ostvareno | DE3: 2020. planirano | DF3: 2020. procijenjeno | DG3: 2021. planirano | DH3: 2019. planirano | DI3: 2019. ostvareno | DJ3: 2020. planirano | DK3: 2020. procijenjeno | DL3: 2021. planirano | DM3: 2019. planirano | DN3: 2019. ostvareno | DO3: 2020. planirano | DP3: 2020. procijenjeno | DQ3: 2021. planirano | DR3: 2019. planirano | DS3: 2019. ostvareno | DT3: 2020. planirano | DU3: 2020. procijenjeno | DV3: 2021. planirano | DW3: 2019. planirano | DX3: 2019. ostvareno | DY3: 2020. planirano | DZ3: 2020. procijenjeno | EA3: 2021. planirano | EB3: 2019. planirano | EC3: 2019. ostvareno | ED3: 2020. planirano | EE3: 2020. procijenjeno | EF3: 2021. planirano | EG3: 2019. planirano | EH3: 2019. ostvareno | EI3: 2020. planirano | EJ3: 2020. procijenjeno | EK3: 2021. planirano | EL3: 2019. planirano | EM3: 2019. ostvareno | EN3: 2020. planirano | EO3: 2020. procijenjeno | EP3: 2021. planirano | EQ3: 2019. planirano | ER3: 2019. ostvareno | ES3: 2020. planirano | ET3: 2020. procijenjeno | EU3: 2021. planirano | EV3: 2019. planirano | EW3: 2019. ostvareno | EX3: 2020. planirano | EY3: 2020. procijenjeno | EZ3: 2021. planirano | FA3: 2019. planirano | FB3: 2019. ostvareno | FC3: 2020. planirano | FD3: 2020. procijenjeno | FE3: 2021. planirano | FF3: 2019. planirano | FG3: 2019. ostvareno | FH3: 2020. planirano | FI3: 2020. procijenjeno | FJ3: 2021. planirano | FK3: 2019. planirano | FL3: 2019. ostvareno | FM3: 2020. planirano | FN3: 2020. procijenjeno | FO3: 2021. planirano | FP3: 2019. planirano | FQ3: 2019. ostvareno | FR3: 2020. planirano | FS3: 2020. procijenjeno | FT3: 2021. planirano | FU3: 2019. planirano | FV3: 2019. ostvareno | FW3: 2020. planirano | FX3: 2020. procijenjeno | FY3: 2021. planirano
A4: =Podloga!B2 -> LUKA-VUKOVAR d.o.o. | B4: =Sazetak!C23 -> 13132025.76 | C4: =Sazetak!D23 -> 14150050 | D4: =Sazetak!E23 -> 12890200 | E4: =Sazetak!F23 -> 12890200 | F4: =Sazetak!G23 -> 13414220 | G4: =Sazetak!C24 -> 12857809.82 | H4: =Sazetak!D24 -> 13887588 | I4: =Sazetak!E24 -> 12576510 | J4: =Sazetak!F24 -> 12576510 | K4: =Sazetak!G24 -> 13026500 | L4: =Sazetak!C27 -> 274215.9399 | M4: =Sazetak!D27 -> 262462 | N4: =Sazetak!E27 -> 313690 | O4: =Sazetak!F27 -> 313690 | P4: =Sazetak!G27 -> 387720 | Q4: =Sazetak!C39 -> 41000 | R4: =Sazetak!D39 -> 1372976 | S4: =Sazetak!E39 -> 885000 | T4: =Sazetak!F39 -> 885000 | U4: =Sazetak!G39 -> 1100000 | V4: =Sazetak!C7 -> 16040947 | W4: =Sazetak!D7 -> 16631857 | X4: =Sazetak!E7 -> 16014779 | Y4: =Sazetak!F7 -> 16014779 | Z4: =Sazetak!G7 -> 15930529 | AA4: =Sazetak!C8 -> 17543850.14 | AB4: =Sazetak!D8 -> 17437730 | AC4: =Sazetak!E8 -> 18003247.4 | AD4: =Sazetak!F8 -> 18003247.4 | AE4: =Sazetak!G8 -> 18179839 | AF4: =Sazetak!C9 -> 350000 | AG4: =Sazetak!D9 -> 135202 | AH4: =Sazetak!E9 -> 142000 | AI4: =Sazetak!F9 -> 142000 | AJ4: =Sazetak!G9 -> 135000 | AK4: =Sazetak!C10 -> 33934797.14 | AL4: =Sazetak!D10 -> 34204789 | AM4: =Sazetak!E10 -> 34160026.4 | AN4: =Sazetak!F10 -> 34160026.4 | AO4: =Sazetak!G10 -> 34245368 | AP4: =Sazetak!C11 -> 30817702.14 | AQ4: =Sazetak!D11 -> 30903899 | AR4: =Sazetak!E11 -> 31217588.4 | AS4: =Sazetak!F11 -> 31217588.4 | AT4: =Sazetak!G11 -> 31605308 | AU4: =Sazetak!C12 -> 0 | AV4: =Sazetak!D12 -> 0 | AW4: =Sazetak!E12 -> 0 | AX4: =Sazetak!F12 -> 0 | AY4: =Sazetak!G12 -> 0 | AZ4: =Sazetak!C13 -> 0 | BA4: =Sazetak!D13 -> 0 | BB4: =Sazetak!E13 -> 0 | BC4: =Sazetak!F13 -> 0 | BD4: =Sazetak!G13 -> 0 | BE4: =Sazetak!C14 -> 751785 | BF4: =Sazetak!D14 -> 935577 | BG4: =Sazetak!E14 -> 892500 | BH4: =Sazetak!F14 -> 892500 | BI4: =Sazetak!G14 -> 905500 | BJ4: =Sazetak!C15 -> 2365310 | BK4: =Sazetak!D15 -> 2365313 | BL4: =Sazetak!E15 -> 2049938 | BM4: =Sazetak!F15 -> 2049938 | BN4: =Sazetak!G15 -> 1734560 | BO4: =Sazetak!C16 -> 33934797.14 | BP4: =Sazetak!D16 -> 34204789 | BQ4: =Sazetak!E16 -> 34160026.4 | BR4: =Sazetak!F16 -> 34160026.4 | BS4: =Sazetak!G16 -> 34245368 | BT4: =Sazetak!C19 -> 13102025.76 | BU4: =Sazetak!D19 -> 14040963 | BV4: =Sazetak!E19 -> 12699000 | BW4: =Sazetak!F19 -> 12699000 | BX4: =Sazetak!G19 -> 13398120 | BY4: =Sazetak!C20 -> 12817809.82 | BZ4: =Sazetak!D20 -> 13583337 | CA4: =Sazetak!E20 -> 12571000 | CB4: =Sazetak!F20 -> 12571000 | CC4: =Sazetak!G20 -> 13011500 | CD4: =Sazetak!C21 -> 30000 | CE4: =Sazetak!D21 -> 109087 | CF4: =Sazetak!E21 -> 191200 | CG4: =Sazetak!F21 -> 191200 | CH4: =Sazetak!G21 -> 16100 | CI4: =Sazetak!C22 -> 40000 | CJ4: =Sazetak!D22 -> 304251 | CK4: =Sazetak!E22 -> 5510 | CL4: =Sazetak!F22 -> 5510 | CM4: =Sazetak!G22 -> 15000 | CN4: =Sazetak!C23 -> 13132025.76 | CO4: =Sazetak!D23 -> 14150050 | CP4: =Sazetak!E23 -> 12890200 | CQ4: =Sazetak!F23 -> 12890200 | CR4: =Sazetak!G23 -> 13414220 | CS4: =Sazetak!C24 -> 12857809.82 | CT4: =Sazetak!D24 -> 13887588 | CU4: =Sazetak!E24 -> 12576510 | CV4: =Sazetak!F24 -> 12576510 | CW4: =Sazetak!G24 -> 13026500 | CX4: =Sazetak!C25 -> 274215.9399 | CY4: =Sazetak!D25 -> 262462 | CZ4: =Sazetak!E25 -> 313690 | DA4: =Sazetak!F25 -> 313690 | DB4: =Sazetak!G25 -> 387720 | DC4: =Sazetak!C26 -> 0 | DD4: =Sazetak!D26 -> 0 | DE4: =Sazetak!E26 -> 0 | DF4: =Sazetak!F26 -> 0 | DG4: =Sazetak!G26 -> 0 | DH4: =Sazetak!C27 -> 274215.9399 | DI4: =Sazetak!D27 -> 262462 | DJ4: =Sazetak!E27 -> 313690 | DK4: =Sazetak!F27 -> 313690 | DL4: =Sazetak!G27 -> 387720 | DM4: =Sazetak!C30 -> 1759802.832 | DN4: =Sazetak!D30 -> 1856964 | DO4: =Sazetak!E30 -> 1443000 | DP4: =Sazetak!F30 -> 1443000 | DQ4: =Sazetak!G30 -> 1766620 | DR4: =Sazetak!C31 -> 0.1343153238 | DS4: =Sazetak!D31 -> 0.1322533219 | DT4: =Sazetak!E31 -> 0.1136309946 | DU4: =Sazetak!F31 -> 0.1136309946 | DV4: =Sazetak!G31 -> 0.1318558126 | DW4: =Sazetak!C32 -> 0.02088146528 | DX4: =Sazetak!D32 -> 0.01854848569 | DY4: =Sazetak!E32 -> 0.02433554173 | DZ4: =Sazetak!F32 -> 0.02433554173 | EA4: =Sazetak!G32 -> 0.02890365597 | EB4: =Sazetak!C33 -> 0.008080671259 | EC4: =Sazetak!D33 -> 0.007673253006 | ED4: =Sazetak!E33 -> 0.009182955432 | EE4: =Sazetak!F33 -> 0.009182955432 | EF4: =Sazetak!G33 -> 0.01132182314 | EG4: =Sazetak!C34 -> 0.008898000853 | EH4: =Sazetak!D34 -> 0.00849284422 | EI4: =Sazetak!E34 -> 0.01004850202 | EJ4: =Sazetak!F34 -> 0.01004850202 | EK4: =Sazetak!G34 -> 0.01226755961 | EL4: =Sazetak!C35 -> 23.33625989 | EM4: =Sazetak!D35 -> 18.63847658 | EN4: =Sazetak!E35 -> 20.17170577 | EO4: =Sazetak!F35 -> 20.17170577 | EP4: =Sazetak!G35 -> 20.07712755 | EQ4: =Sazetak!C36 -> 0.5205108067 | ER4: =Sazetak!D36 -> 0.5381798912 | ES4: =Sazetak!E36 -> 0.513005002 | ET4: =Sazetak!F36 -> 0.513005002 | EU4: =Sazetak!G36 -> 0.5040459976 | EV4: =Sazetak!C37 -> 0.09185541871 | EW4: =Sazetak!D37 -> 0.09650373812 | EX4: =Sazetak!E37 -> 0.08613687722 | EY4: =Sazetak!F37 -> 0.08613687722 | EZ4: =Sazetak!G37 -> 0.07709246985 | FA4: =Sazetak!C38 -> 68 | FB4: =Sazetak!D38 -> 69 | FC4: =Sazetak!E38 -> 69 | FD4: =Sazetak!F38 -> 65 | FE4: =Sazetak!G38 -> 65 | FF4: =Sazetak!C39 -> 41000 | FG4: =Sazetak!D39 -> 1372976 | FH4: =Sazetak!E39 -> 885000 | FI4: =Sazetak!F39 -> 885000 | FJ4: =Sazetak!G39 -> 1100000 | FK4: =Sazetak!C42 -> 1475586.893 | FL4: =Sazetak!D42 -> 1399338 | FM4: =Sazetak!E42 -> 1315000 | FN4: =Sazetak!F42 -> 1315000 | FO4: =Sazetak!G42 -> 1380000 | FP4: =Sazetak!FF39 -> 0 | FQ4: =Sazetak!FG39 -> 0 | FR4: =Sazetak!FH39 -> 0 | FS4: =Sazetak!FI39 -> 0 | FT4: =Sazetak!FJ39 -> 0 | FU4: =Sazetak!FK39 -> 0 | FV4: =Sazetak!FL39 -> 0 | FW4: =Sazetak!FM39 -> 0 | FX4: =Sazetak!FN39 -> 0 | FY4: =Sazetak!FO39 -> 0
